Workbook

Sheet 計算表
B1: 必須項目
B2: 個体値計算時 | D2: No. | F2: 330 | AF2: 他候補 | AT2: ひざしがつよい
B3: ステータス計算時 | D3: なまえ | F3: メガフライゴン | AF3: フライゴン | AN3: 1 | AT3: ひざしがとてもつよい
D4: タイプ | F4: はがね | G4: ドラゴン | AB4: =IF(F5="","",F5) -> ふゆう | AT4: あめ
B5: 自動計算項目 | D5: とくせい | F5: ふゆう | AB5: =IF(G5="","",G5) ->  | AT5: つよいあめ
D6: かくれとくせい | AB6: =IF(F6="","",F6) ->  | AT6: あられ
AT7: すなあらし
D8: =IF(SUM(D13:D18)=510,"努力値OK",IF(SUM(D13:D18)<510,"努力値OK","努力値NG")) -> 努力値OK | G8: 努力値配分表示 | AT8: らんきりゅう
B9: ステータス計算 | D9: 合計 | F9: =SUM(D13:D18) -> 510
B10: 性格： | C10: ようき | D10: 残り | F10: =510-F9 -> 0 | G10: =TRUNC(G18*IF(B19="こだわりスカーフ",1.5,1)) -> 171 | AE10: めざめるパワー 診断結果 | AH10: 普 | AI10: 炎 | AJ10: 水 | AK10: 電 | AL10: 草 | AM10: 氷 | AN10: 格 | AO10: 毒 | AP10: 地 | AQ10: 飛 | AR10: 超
A11: 赤色：上方修正 | B11: 特性： | C11: ふゆう | D11: Lv. | F11: 50 | G11: =IF(MOD(G13+1,16)=0,"Lv.50:HP=16n-1",IF(MOD(G13-1,8)=0,"Lv.50:HP=8n+1","")) ->  | AH11: =TypeData!C28 -> △ | AI11: =TypeData!D28 ->  | AJ11: =TypeData!E28 -> △ | AK11: =TypeData!F28 -> △ | AL11: =TypeData!G28 -> ▲ | AM11: =TypeData!H28 ->  | AN11: =TypeData!I28 -> ○ | AO11: =TypeData!J28 -> × | AP11: =TypeData!K28 -> ○ | AQ11: =TypeData!L28 -> △ | AR11: =TypeData!M28 -> △
A12: 青色：下方修正 | B12: 種族値 | C12: 個体値 | D12: 努力値 | F12: 現在のステータス | G12: Lv.50時 | H12: Lv.100時 | J12: A | L12: さみしがり | M12: いじっぱり | N12: やんちゃ | O12: ゆうかん | Q12: =C10 -> ようき | R12: =C10 -> ようき | S12: =C10 -> ようき | T12: =C10 -> ようき | V12: =IF(L12=Q12,"○","") ->  | W12: =IF(M12=R12,"○","") ->  | X12: =IF(N12=S12,"○","") ->  | Y12: =IF(O12=T12,"○","") ->  | Z12: =IF(CONCATENATE(U12,V12,W12,X12,Y12,)="",1,1.1) -> 1 | AB12: 個体値 | AE12: こおり | AH12: 虫 | AI12: 岩 | AJ12: 幽 | AK12: 竜 | AL12: 悪 | AM12: 鋼 | AN12: 妖 | AO12: フライングプレス
A13: HP（H） | B13: 80 | C13: 31 | D13: 6 | F13: 156 | G13: =IF(B13=1,1,TRUNC(((B13*2+C13+TRUNC(D13/4))*50)/100)+10+50) -> 156 | H13: =IF(B13=1,1,TRUNC(TRUNC(TRUNC(B13*2+C13+D13/4)*100/100)+10+100)) -> 302 | J13: B | K13: ずぶとい | M13: わんぱく | N13: のうてんき | O13: のんき | P13: =C10 -> ようき | R13: =C10 -> ようき | S13: =C10 -> ようき | T13: =C10 -> ようき | U13: =IF(K13=P13,"○","") ->  | W13: =IF(M13=R13,"○","") ->  | X13: =IF(N13=S13,"○","") ->  | Y13: =IF(O13=T13,"○","") ->  | Z13: =IF(CONCATENATE(U13,V13,W13,X13,Y13,)="",1,1.1) -> 1 | AB13: =IF(B13=1,0,StatusCalculation!AH11) -> 31 | AC13: ～ | AD13: =IF(B13=1,31,StatusCalculation!AI11) -> 31 | AE13: =IFERROR(めざめるパワー!BF3,"該当個体値なし") -> 31 | AH13: =TypeData!N28 -> △ | AI13: =TypeData!O28 -> △ | AJ13: =TypeData!P28 ->  | AK13: =TypeData!Q28 ->  | AL13: =TypeData!R28 ->  | AM13: =TypeData!S28 -> △ | AN13: =TypeData!T28 ->  | AO13: =TypeData!U28 -> 
A14: こうげき（A） | B14: 145 | C14: 31 | D14: 252 | E14: =U17*Z12 -> 1 | F14: 152 | G14: =TRUNC((TRUNC((B14*2+C14+TRUNC(D14/4))*50/100)+5)*(E14)) -> 197 | H14: =TRUNC(TRUNC(TRUNC(TRUNC(B14*2+C14+D14/4)*100/100)+5)*(E14)) -> 389 | J14: C | K14: ひかえめ | L14: おっとり | N14: うっかりや | O14: れいせい | P14: =C10 -> ようき | Q14: =C10 -> ようき | S14: =C10 -> ようき | T14: =C10 -> ようき | U14: =IF(K14=P14,"○","") ->  | V14: =IF(L14=Q14,"○","") ->  | X14: =IF(N14=S14,"○","") ->  | Y14: =IF(O14=T14,"○","") ->  | Z14: =IF(CONCATENATE(U14,V14,W14,X14,Y14,)="",1,1.1) -> 1 | AB14: =StatusCalculation!AH12 -> 0 | AC14: ～ | AD14: =StatusCalculation!AI12 -> 0 | AE14: =IFERROR(めざめるパワー!BF4,"該当個体値なし") -> 0 | AH14: ◎ | AI14: … | AJ14: 4倍
A15: ぼうぎょ（B） | B15: 105 | C15: 31 | E15: =V17*Z13 -> 1 | F15: 100 | G15: =TRUNC((TRUNC((B15*2+C15+TRUNC(D15/4))*50/100)+5)*(E15)) -> 125 | H15: =TRUNC(TRUNC(TRUNC(TRUNC(B15*2+C15+D15/4)*100/100)+5)*(E15)) -> 246 | J15: D | K15: おだやか | L15: おとなしい | M15: しんちょう | O15: なまいき | P15: =C10 -> ようき | Q15: =C10 -> ようき | R15: =C10 -> ようき | T15: =C10 -> ようき | U15: =IF(K15=P15,"○","") ->  | V15: =IF(L15=Q15,"○","") ->  | W15: =IF(M15=R15,"○","") ->  | Y15: =IF(O15=T15,"○","") ->  | Z15: =IF(CONCATENATE(U15,V15,W15,X15,Y15,)="",1,1.1) -> 1 | AB15: =StatusCalculation!AH13 -> 0 | AC15: ～ | AD15: =StatusCalculation!AI13 -> 0 | AE15: =IFERROR(めざめるパワー!BF5,"該当個体値なし") -> 0 | AH15: ○ | AI15: … | AJ15: 2倍
A16: とくこう（C） | B16: 80 | C16: 31 | E16: =W17*Z14 -> 0.9 | F16: 90 | G16: =TRUNC((TRUNC((B16*2+C16+TRUNC(D16/4))*50/100)+5)*(E16)) -> 90 | H16: =TRUNC(TRUNC(TRUNC(TRUNC(B16*2+C16+D16/4)*100/100)+5)*(E16)) -> 176 | J16: S | K16: おくびょう | L16: せっかち | M16: ようき | N16: むじゃき | P16: =C10 -> ようき | Q16: =C10 -> ようき | R16: =C10 -> ようき | S16: =C10 -> ようき | U16: =IF(K16=P16,"○","") ->  | V16: =IF(L16=Q16,"○","") ->  | W16: =IF(M16=R16,"○","") -> ○ | X16: =IF(N16=S16,"○","") ->  | Z16: =IF(CONCATENATE(U16,V16,W16,X16,Y16,)="",1,1.1) -> 1.1 | AB16: =StatusCalculation!AH14 -> 30 | AC16: ～ | AD16: =StatusCalculation!AI14 -> 31 | AE16: =IFERROR(めざめるパワー!BF6,"該当個体値なし") -> 31 | AH16: 無 | AI16: … | AJ16: 等倍
A17: とくぼう（D） | B17: 105 | C17: 31 | E17: =X17*Z15 -> 1 | F17: 100 | G17: =TRUNC((TRUNC((B17*2+C17+TRUNC(D17/4))*50/100)+5)*(E17)) -> 125 | H17: =TRUNC(TRUNC(TRUNC(TRUNC(B17*2+C17+D17/4)*100/100)+5)*(E17)) -> 246 | U17: =IF(CONCATENATE(U12,U13,U14,U15,U16)="",1,0.9) -> 1 | V17: =IF(CONCATENATE(V12,V13,V14,V15,V16)="",1,0.9) -> 1 | W17: =IF(CONCATENATE(W12,W13,W14,W15,W16)="",1,0.9) -> 0.9 | X17: =IF(CONCATENATE(X12,X13,X14,X15,X16)="",1,0.9) -> 1 | Y17: =IF(CONCATENATE(Y12,Y13,Y14,Y15,Y16)="",1,0.9) -> 1 | AB17: =StatusCalculation!AH15 -> 0 | AC17: ～ | AD17: =StatusCalculation!AI15 -> 0 | AE17: =IFERROR(めざめるパワー!BF7,"該当個体値なし") -> 該当個体値なし | AH17: △ | AI17: … | AJ17: 0.5倍
A18: すばやさ（S） | B18: 105 | C18: 30 | D18: 252 | E18: =Y17*Z16 -> 1.1 | F18: 166 | G18: =TRUNC((TRUNC((B18*2+C18+TRUNC(D18/4))*50/100)+5)*(E18)) -> 171 | H18: =TRUNC(TRUNC(TRUNC(TRUNC(B18*2+C18+D18/4)*100/100)+5)*(E18)) -> 338 | AB18: =StatusCalculation!AH16 -> 19 | AC18: ～ | AD18: =StatusCalculation!AI16 -> 20 | AE18: =IFERROR(めざめるパワー!BF8,"該当個体値なし") -> 19,20 | AH18: ▲ | AI18: … | AJ18: 0.25倍
A19: もちもの | B19: その他 | D19: 物理耐久指数 | F19: =G13*G15 -> 19500 | H19: 総合耐久指数 | AB19: =SUM(F19:F20) -> 39000 | AH19: × | AI19: … | AJ19: 0倍
B20: めざめるパワー | C20: =めざめるパワー!R66 -> こおり | D20: 特殊耐久指数 | F20: =G13*G17 -> 19500
D21: =#REF! ->  | AF21: 優先 | AG21: 急所 | AH21: 毒 | AI21: 猛毒 | AJ21: 麻痺 | AK21: 火傷 | AL21: 眠り | AM21: 凍り | AN21: 混乱 | AO21: メロ | AP21: 怯み
A22: 技名 | B22: げきりん | H22: 天候
A23: 技の威力 | B23: 120 | D23: 対象 | F23: ランダム1体 | AJ23: =AF24*ダメージ計算!E24 -> 115 | AL23: ダメージ | AN23: 急所時
A24: 命中 | B24: 100 | D24: 接触 | F24: ○ | H24: フィールド | AE24: 防ステータス | AF24: 115 | AK24: 最低値 | AL24: =ダメージ計算!L18 -> 234 | AN24: =ダメージ計算!M18 -> 351
A25: 技の種類 | B25: 物理 | D25: PP | F25: 10 / 16 | H25: なし | AE25: もちもの | AF25: こだわりハチマキ | AK25: 中乱数 | AL25: =ダメージ計算!L19 -> 254 | AN25: =ダメージ計算!M19 -> 381
A26: 技のタイプ | B26: ドラゴン | D26: 説明 | F26: 2～3ターン連続で攻撃し、その後自分は1～4ターンの間『こんらん』状態になる。 | AE26: 特性 | AF26: さめはだ | AK26: 最大値 | AL26: =ダメージ計算!L20 -> 276 | AN26: =ダメージ計算!M20 -> 414
A27: タイプ相性 | B27: =EnemyData!U29 -> ばつぐん(2倍) | AE27: タイプ | AF27: ドラゴン | AH27: じめん | AK27: 火力指数 | AL27: =IFERROR(ダメージ計算!I6*ダメージ計算!I7*ダメージ計算!I9*ダメージ計算!I11*ダメージ計算!L6*ダメージ計算!M6,"-") -> 70920
A30: 無振り補正なし100族 | C30: 120
A31: 無振り補正なしガブリアス | C31: 122
A32: 無振り補正あり100族 | C32: 132
A33: 無振り陽気ガブリアス | C33: 134
A34: 無振り補正無し130族 | C34: 150
A35: 準速100族 | C35: 152
A36: 準速ガブリアス | C36: 154
A37: 準速三闘 | C37: 160
A38: 準速110族 | C38: 162
A39: 準速ボルトロス | C39: 163
A40: 無振り補正有り130族 | C40: 165
A41: 最速100族 | C41: 167
A42: 準速115族 | C42: 167
A43: 最速ガブリアス | C43: 169
A44: 準速120族 | C44: 172
A45: 最速三闘 | C45: 176
A46: 最速110族 | C46: 178
A47: 最速ボルトロス | C47: 179
A48: 準速130族 | C48: 182
A49: 最速115族 | C49: 183
A50: 準速135族 | C50: 187
A51: 最速120族 | C51: 189
A52: 準速145族 | C52: 197
A53: 最速130族 | C53: 200
A54: 準速150族 | C54: 202
A55: 最速135族 | C55: 205
A56: 最速145族 | C56: 216
A57: 最速150族 | C57: 222
A58: 準速スカーフ100族 | C58: 226
A59: 準速スカーフガブリアス | C59: 231
A60: 最速スカーフ100族 | C60: 249
A61: 最速スカーフガブリアス | C61: 253
A62: 準速かるわざルチャブル | C62: 340
A63: 最速かるわざルチャブル | C63: 374

Sheet StatusCalculation (hidden)
B2: 0 | C2: 1 | D2: 2 | E2: 3 | F2: 4 | G2: 5 | H2: 6 | I2: 7 | J2: 8 | K2: 9 | L2: 10 | M2: 11 | N2: 12 | O2: 13 | P2: 14 | Q2: 15 | R2: 16 | S2: 17 | T2: 18 | U2: 19 | V2: 20 | W2: 21 | X2: 22 | Y2: 23 | Z2: 24 | AA2: 25 | AB2: 26 | AC2: 27 | AD2: 28 | AE2: 29 | AF2: 30 | AG2: 31
A3: H | B3: =TRUNC((計算表!B13*2+0+TRUNC(計算表!D13/4))*計算表!F11/100)+計算表!F11+10 -> 140 | C3: =TRUNC((計算表!B13*2+1+TRUNC(計算表!D13/4))*計算表!F11/100)+計算表!F11+10 -> 141 | D3: =TRUNC((計算表!B13*2+2+TRUNC(計算表!D13/4))*計算表!F11/100)+計算表!F11+10 -> 141 | E3: =TRUNC((計算表!B13*2+3+TRUNC(計算表!D13/4))*計算表!F11/100)+計算表!F11+10 -> 142 | F3: =TRUNC((計算表!B13*2+4+TRUNC(計算表!D13/4))*計算表!F11/100)+計算表!F11+10 -> 142 | G3: =TRUNC((計算表!B13*2+5+TRUNC(計算表!D13/4))*計算表!F11/100)+計算表!F11+10 -> 143 | H3: =TRUNC((計算表!B13*2+6+TRUNC(計算表!D13/4))*計算表!F11/100)+計算表!F11+10 -> 143 | I3: =TRUNC((計算表!B13*2+7+TRUNC(計算表!D13/4))*計算表!F11/100)+計算表!F11+10 -> 144 | J3: =TRUNC((計算表!B13*2+8+TRUNC(計算表!D13/4))*計算表!F11/100)+計算表!F11+10 -> 144 | K3: =TRUNC((計算表!B13*2+9+TRUNC(計算表!D13/4))*計算表!F11/100)+計算表!F11+10 -> 145 | L3: =TRUNC((計算表!B13*2+10+TRUNC(計算表!D13/4))*計算表!F11/100)+計算表!F11+10 -> 145 | M3: =TRUNC((計算表!B13*2+11+TRUNC(計算表!D13/4))*計算表!F11/100)+計算表!F11+10 -> 146 | N3: =TRUNC((計算表!B13*2+12+TRUNC(計算表!D13/4))*計算表!F11/100)+計算表!F11+10 -> 146 | O3: =TRUNC((計算表!B13*2+13+TRUNC(計算表!D13/4))*計算表!F11/100)+計算表!F11+10 -> 147 | P3: =TRUNC((計算表!B13*2+14+TRUNC(計算表!D13/4))*計算表!F11/100)+計算表!F11+10 -> 147 | Q3: =TRUNC((計算表!B13*2+15+TRUNC(計算表!D13/4))*計算表!F11/100)+計算表!F11+10 -> 148 | R3: =TRUNC((計算表!B13*2+16+TRUNC(計算表!D13/4))*計算表!F11/100)+計算表!F11+10 -> 148 | S3: =TRUNC((計算表!B13*2+17+TRUNC(計算表!D13/4))*計算表!F11/100)+計算表!F11+10 -> 149 | T3: =TRUNC((計算表!B13*2+18+TRUNC(計算表!D13/4))*計算表!F11/100)+計算表!F11+10 -> 149 | U3: =TRUNC((計算表!B13*2+19+TRUNC(計算表!D13/4))*計算表!F11/100)+計算表!F11+10 -> 150 | V3: =TRUNC((計算表!B13*2+20+TRUNC(計算表!D13/4))*計算表!F11/100)+計算表!F11+10 -> 150 | W3: =TRUNC((計算表!B13*2+21+TRUNC(計算表!D13/4))*計算表!F11/100)+計算表!F11+10 -> 151 | X3: =TRUNC((計算表!B13*2+22+TRUNC(計算表!D13/4))*計算表!F11/100)+計算表!F11+10 -> 151 | Y3: =TRUNC((計算表!B13*2+23+TRUNC(計算表!D13/4))*計算表!F11/100)+計算表!F11+10 -> 152 | Z3: =TRUNC((計算表!B13*2+24+TRUNC(計算表!D13/4))*計算表!F11/100)+計算表!F11+10 -> 152 | AA3: =TRUNC((計算表!B13*2+25+TRUNC(計算表!D13/4))*計算表!F11/100)+計算表!F11+10 -> 153 | AB3: =TRUNC((計算表!B13*2+26+TRUNC(計算表!D13/4))*計算表!F11/100)+計算表!F11+10 -> 153 | AC3: =TRUNC((計算表!B13*2+27+TRUNC(計算表!D13/4))*計算表!F11/100)+計算表!F11+10 -> 154 | AD3: =TRUNC((計算表!B13*2+28+TRUNC(計算表!D13/4))*計算表!F11/100)+計算表!F11+10 -> 154 | AE3: =TRUNC((計算表!B13*2+29+TRUNC(計算表!D13/4))*計算表!F11/100)+計算表!F11+10 -> 155 | AF3: =TRUNC((計算表!B13*2+30+TRUNC(計算表!D13/4))*計算表!F11/100)+計算表!F11+10 -> 155 | AG3: =TRUNC((計算表!B13*2+31+TRUNC(計算表!D13/4))*計算表!F11/100)+計算表!F11+10 -> 156
A4: A | B4: =TRUNC((TRUNC((計算表!B14*2+0+TRUNC(計算表!D14/4))*計算表!F11/100)+5)*(計算表!E14)) -> 181 | C4: =TRUNC((TRUNC((計算表!B14*2+1+TRUNC(計算表!D14/4))*計算表!F11/100)+5)*(計算表!E14)) -> 182 | D4: =TRUNC((TRUNC((計算表!B14*2+2+TRUNC(計算表!D14/4))*計算表!F11/100)+5)*(計算表!E14)) -> 182 | E4: =TRUNC((TRUNC((計算表!B14*2+3+TRUNC(計算表!D14/4))*計算表!F11/100)+5)*(計算表!E14)) -> 183 | F4: =TRUNC((TRUNC((計算表!B14*2+4+TRUNC(計算表!D14/4))*計算表!F11/100)+5)*(計算表!E14)) -> 183 | G4: =TRUNC((TRUNC((計算表!B14*2+5+TRUNC(計算表!D14/4))*計算表!F11/100)+5)*(計算表!E14)) -> 184 | H4: =TRUNC((TRUNC((計算表!B14*2+6+TRUNC(計算表!D14/4))*計算表!F11/100)+5)*(計算表!E14)) -> 184 | I4: =TRUNC((TRUNC((計算表!B14*2+7+TRUNC(計算表!D14/4))*計算表!F11/100)+5)*(計算表!E14)) -> 185 | J4: =TRUNC((TRUNC((計算表!B14*2+8+TRUNC(計算表!D14/4))*計算表!F11/100)+5)*(計算表!E14)) -> 185 | K4: =TRUNC((TRUNC((計算表!B14*2+9+TRUNC(計算表!D14/4))*計算表!F11/100)+5)*(計算表!E14)) -> 186 | L4: =TRUNC((TRUNC((計算表!B14*2+10+TRUNC(計算表!D14/4))*計算表!F11/100)+5)*(計算表!E14)) -> 186 | M4: =TRUNC((TRUNC((計算表!B14*2+11+TRUNC(計算表!D14/4))*計算表!F11/100)+5)*(計算表!E14)) -> 187 | N4: =TRUNC((TRUNC((計算表!B14*2+12+TRUNC(計算表!D14/4))*計算表!F11/100)+5)*(計算表!E14)) -> 187 | O4: =TRUNC((TRUNC((計算表!B14*2+13+TRUNC(計算表!D14/4))*計算表!F11/100)+5)*(計算表!E14)) -> 188 | P4: =TRUNC((TRUNC((計算表!B14*2+14+TRUNC(計算表!D14/4))*計算表!F11/100)+5)*(計算表!E14)) -> 188 | Q4: =TRUNC((TRUNC((計算表!B14*2+15+TRUNC(計算表!D14/4))*計算表!F11/100)+5)*(計算表!E14)) -> 189 | R4: =TRUNC((TRUNC((計算表!B14*2+16+TRUNC(計算表!D14/4))*計算表!F11/100)+5)*(計算表!E14)) -> 189 | S4: =TRUNC((TRUNC((計算表!B14*2+17+TRUNC(計算表!D14/4))*計算表!F11/100)+5)*(計算表!E14)) -> 190 | T4: =TRUNC((TRUNC((計算表!B14*2+18+TRUNC(計算表!D14/4))*計算表!F11/100)+5)*(計算表!E14)) -> 190 | U4: =TRUNC((TRUNC((計算表!B14*2+19+TRUNC(計算表!D14/4))*計算表!F11/100)+5)*(計算表!E14)) -> 191 | V4: =TRUNC((TRUNC((計算表!B14*2+20+TRUNC(計算表!D14/4))*計算表!F11/100)+5)*(計算表!E14)) -> 191 | W4: =TRUNC((TRUNC((計算表!B14*2+21+TRUNC(計算表!D14/4))*計算表!F11/100)+5)*(計算表!E14)) -> 192 | X4: =TRUNC((TRUNC((計算表!B14*2+22+TRUNC(計算表!D14/4))*計算表!F11/100)+5)*(計算表!E14)) -> 192 | Y4: =TRUNC((TRUNC((計算表!B14*2+23+TRUNC(計算表!D14/4))*計算表!F11/100)+5)*(計算表!E14)) -> 193 | Z4: =TRUNC((TRUNC((計算表!B14*2+24+TRUNC(計算表!D14/4))*計算表!F11/100)+5)*(計算表!E14)) -> 193 | AA4: =TRUNC((TRUNC((計算表!B14*2+25+TRUNC(計算表!D14/4))*計算表!F11/100)+5)*(計算表!E14)) -> 194 | AB4: =TRUNC((TRUNC((計算表!B14*2+26+TRUNC(計算表!D14/4))*計算表!F11/100)+5)*(計算表!E14)) -> 194 | AC4: =TRUNC((TRUNC((計算表!B14*2+27+TRUNC(計算表!D14/4))*計算表!F11/100)+5)*(計算表!E14)) -> 195 | AD4: =TRUNC((TRUNC((計算表!B14*2+28+TRUNC(計算表!D14/4))*計算表!F11/100)+5)*(計算表!E14)) -> 195 | AE4: =TRUNC((TRUNC((計算表!B14*2+29+TRUNC(計算表!D14/4))*計算表!F11/100)+5)*(計算表!E14)) -> 196 | AF4: =TRUNC((TRUNC((計算表!B14*2+30+TRUNC(計算表!D14/4))*計算表!F11/100)+5)*(計算表!E14)) -> 196 | AG4: =TRUNC((TRUNC((計算表!B14*2+31+TRUNC(計算表!D14/4))*計算表!F11/100)+5)*(計算表!E14)) -> 197
A5: B | B5: =TRUNC((TRUNC((計算表!B15*2+0+TRUNC(計算表!D15/4))*計算表!F11/100)+5)*(計算表!E15)) -> 110 | C5: =TRUNC((TRUNC((計算表!B15*2+1+TRUNC(計算表!D15/4))*計算表!F11/100)+5)*(計算表!E15)) -> 110 | D5: =TRUNC((TRUNC((計算表!B15*2+2+TRUNC(計算表!D15/4))*計算表!F11/100)+5)*(計算表!E15)) -> 111 | E5: =TRUNC((TRUNC((計算表!B15*2+3+TRUNC(計算表!D15/4))*計算表!F11/100)+5)*(計算表!E15)) -> 111 | F5: =TRUNC((TRUNC((計算表!B15*2+4+TRUNC(計算表!D15/4))*計算表!F11/100)+5)*(計算表!E15)) -> 112 | G5: =TRUNC((TRUNC((計算表!B15*2+5+TRUNC(計算表!D15/4))*計算表!F11/100)+5)*(計算表!E15)) -> 112 | H5: =TRUNC((TRUNC((計算表!B15*2+6+TRUNC(計算表!D15/4))*計算表!F11/100)+5)*(計算表!E15)) -> 113 | I5: =TRUNC((TRUNC((計算表!B15*2+7+TRUNC(計算表!D15/4))*計算表!F11/100)+5)*(計算表!E15)) -> 113 | J5: =TRUNC((TRUNC((計算表!B15*2+8+TRUNC(計算表!D15/4))*計算表!F11/100)+5)*(計算表!E15)) -> 114 | K5: =TRUNC((TRUNC((計算表!B15*2+9+TRUNC(計算表!D15/4))*計算表!F11/100)+5)*(計算表!E15)) -> 114 | L5: =TRUNC((TRUNC((計算表!B15*2+10+TRUNC(計算表!D15/4))*計算表!F11/100)+5)*(計算表!E15)) -> 115 | M5: =TRUNC((TRUNC((計算表!B15*2+11+TRUNC(計算表!D15/4))*計算表!F11/100)+5)*(計算表!E15)) -> 115 | N5: =TRUNC((TRUNC((計算表!B15*2+12+TRUNC(計算表!D15/4))*計算表!F11/100)+5)*(計算表!E15)) -> 116 | O5: =TRUNC((TRUNC((計算表!B15*2+13+TRUNC(計算表!D15/4))*計算表!F11/100)+5)*(計算表!E15)) -> 116 | P5: =TRUNC((TRUNC((計算表!B15*2+14+TRUNC(計算表!D15/4))*計算表!F11/100)+5)*(計算表!E15)) -> 117 | Q5: =TRUNC((TRUNC((計算表!B15*2+15+TRUNC(計算表!D15/4))*計算表!F11/100)+5)*(計算表!E15)) -> 117 | R5: =TRUNC((TRUNC((計算表!B15*2+16+TRUNC(計算表!D15/4))*計算表!F11/100)+5)*(計算表!E15)) -> 118 | S5: =TRUNC((TRUNC((計算表!B15*2+17+TRUNC(計算表!D15/4))*計算表!F11/100)+5)*(計算表!E15)) -> 118 | T5: =TRUNC((TRUNC((計算表!B15*2+18+TRUNC(計算表!D15/4))*計算表!F11/100)+5)*(計算表!E15)) -> 119 | U5: =TRUNC((TRUNC((計算表!B15*2+19+TRUNC(計算表!D15/4))*計算表!F11/100)+5)*(計算表!E15)) -> 119 | V5: =TRUNC((TRUNC((計算表!B15*2+20+TRUNC(計算表!D15/4))*計算表!F11/100)+5)*(計算表!E15)) -> 120 | W5: =TRUNC((TRUNC((計算表!B15*2+21+TRUNC(計算表!D15/4))*計算表!F11/100)+5)*(計算表!E15)) -> 120 | X5: =TRUNC((TRUNC((計算表!B15*2+22+TRUNC(計算表!D15/4))*計算表!F11/100)+5)*(計算表!E15)) -> 121 | Y5: =TRUNC((TRUNC((計算表!B15*2+23+TRUNC(計算表!D15/4))*計算表!F11/100)+5)*(計算表!E15)) -> 121 | Z5: =TRUNC((TRUNC((計算表!B15*2+24+TRUNC(計算表!D15/4))*計算表!F11/100)+5)*(計算表!E15)) -> 122 | AA5: =TRUNC((TRUNC((計算表!B15*2+25+TRUNC(計算表!D15/4))*計算表!F11/100)+5)*(計算表!E15)) -> 122 | AB5: =TRUNC((TRUNC((計算表!B15*2+26+TRUNC(計算表!D15/4))*計算表!F11/100)+5)*(計算表!E15)) -> 123 | AC5: =TRUNC((TRUNC((計算表!B15*2+27+TRUNC(計算表!D15/4))*計算表!F11/100)+5)*(計算表!E15)) -> 123 | AD5: =TRUNC((TRUNC((計算表!B15*2+28+TRUNC(計算表!D15/4))*計算表!F11/100)+5)*(計算表!E15)) -> 124 | AE5: =TRUNC((TRUNC((計算表!B15*2+29+TRUNC(計算表!D15/4))*計算表!F11/100)+5)*(計算表!E15)) -> 124 | AF5: =TRUNC((TRUNC((計算表!B15*2+30+TRUNC(計算表!D15/4))*計算表!F11/100)+5)*(計算表!E15)) -> 125 | AG5: =TRUNC((TRUNC((計算表!B15*2+31+TRUNC(計算表!D15/4))*計算表!F11/100)+5)*(計算表!E15)) -> 125
A6: C | B6: =TRUNC((TRUNC((計算表!B16*2+0+TRUNC(計算表!D16/4))*計算表!F11/100)+5)*(計算表!E16)) -> 76 | C6: =TRUNC((TRUNC((計算表!B16*2+1+TRUNC(計算表!D16/4))*計算表!F11/100)+5)*(計算表!E16)) -> 76 | D6: =TRUNC((TRUNC((計算表!B16*2+2+TRUNC(計算表!D16/4))*計算表!F11/100)+5)*(計算表!E16)) -> 77 | E6: =TRUNC((TRUNC((計算表!B16*2+3+TRUNC(計算表!D16/4))*計算表!F11/100)+5)*(計算表!E16)) -> 77 | F6: =TRUNC((TRUNC((計算表!B16*2+4+TRUNC(計算表!D16/4))*計算表!F11/100)+5)*(計算表!E16)) -> 78 | G6: =TRUNC((TRUNC((計算表!B16*2+5+TRUNC(計算表!D16/4))*計算表!F11/100)+5)*(計算表!E16)) -> 78 | H6: =TRUNC((TRUNC((計算表!B16*2+6+TRUNC(計算表!D16/4))*計算表!F11/100)+5)*(計算表!E16)) -> 79 | I6: =TRUNC((TRUNC((計算表!B16*2+7+TRUNC(計算表!D16/4))*計算表!F11/100)+5)*(計算表!E16)) -> 79 | J6: =TRUNC((TRUNC((計算表!B16*2+8+TRUNC(計算表!D16/4))*計算表!F11/100)+5)*(計算表!E16)) -> 80 | K6: =TRUNC((TRUNC((計算表!B16*2+9+TRUNC(計算表!D16/4))*計算表!F11/100)+5)*(計算表!E16)) -> 80 | L6: =TRUNC((TRUNC((計算表!B16*2+10+TRUNC(計算表!D16/4))*計算表!F11/100)+5)*(計算表!E16)) -> 81 | M6: =TRUNC((TRUNC((計算表!B16*2+11+TRUNC(計算表!D16/4))*計算表!F11/100)+5)*(計算表!E16)) -> 81 | N6: =TRUNC((TRUNC((計算表!B16*2+12+TRUNC(計算表!D16/4))*計算表!F11/100)+5)*(計算表!E16)) -> 81 | O6: =TRUNC((TRUNC((計算表!B16*2+13+TRUNC(計算表!D16/4))*計算表!F11/100)+5)*(計算表!E16)) -> 81 | P6: =TRUNC((TRUNC((計算表!B16*2+14+TRUNC(計算表!D16/4))*計算表!F11/100)+5)*(計算表!E16)) -> 82 | Q6: =TRUNC((TRUNC((計算表!B16*2+15+TRUNC(計算表!D16/4))*計算表!F11/100)+5)*(計算表!E16)) -> 82 | R6: =TRUNC((TRUNC((計算表!B16*2+16+TRUNC(計算表!D16/4))*計算表!F11/100)+5)*(計算表!E16)) -> 83 | S6: =TRUNC((TRUNC((計算表!B16*2+17+TRUNC(計算表!D16/4))*計算表!F11/100)+5)*(計算表!E16)) -> 83 | T6: =TRUNC((TRUNC((計算表!B16*2+18+TRUNC(計算表!D16/4))*計算表!F11/100)+5)*(計算表!E16)) -> 84 | U6: =TRUNC((TRUNC((計算表!B16*2+19+TRUNC(計算表!D16/4))*計算表!F11/100)+5)*(計算表!E16)) -> 84 | V6: =TRUNC((TRUNC((計算表!B16*2+20+TRUNC(計算表!D16/4))*計算表!F11/100)+5)*(計算表!E16)) -> 85 | W6: =TRUNC((TRUNC((計算表!B16*2+21+TRUNC(計算表!D16/4))*計算表!F11/100)+5)*(計算表!E16)) -> 85 | X6: =TRUNC((TRUNC((計算表!B16*2+22+TRUNC(計算表!D16/4))*計算表!F11/100)+5)*(計算表!E16)) -> 86 | Y6: =TRUNC((TRUNC((計算表!B16*2+23+TRUNC(計算表!D16/4))*計算表!F11/100)+5)*(計算表!E16)) -> 86 | Z6: =TRUNC((TRUNC((計算表!B16*2+24+TRUNC(計算表!D16/4))*計算表!F11/100)+5)*(計算表!E16)) -> 87 | AA6: =TRUNC((TRUNC((計算表!B16*2+25+TRUNC(計算表!D16/4))*計算表!F11/100)+5)*(計算表!E16)) -> 87 | AB6: =TRUNC((TRUNC((計算表!B16*2+26+TRUNC(計算表!D16/4))*計算表!F11/100)+5)*(計算表!E16)) -> 88 | AC6: =TRUNC((TRUNC((計算表!B16*2+27+TRUNC(計算表!D16/4))*計算表!F11/100)+5)*(計算表!E16)) -> 88 | AD6: =TRUNC((TRUNC((計算表!B16*2+28+TRUNC(計算表!D16/4))*計算表!F11/100)+5)*(計算表!E16)) -> 89 | AE6: =TRUNC((TRUNC((計算表!B16*2+29+TRUNC(計算表!D16/4))*計算表!F11/100)+5)*(計算表!E16)) -> 89 | AF6: =TRUNC((TRUNC((計算表!B16*2+30+TRUNC(計算表!D16/4))*計算表!F11/100)+5)*(計算表!E16)) -> 90 | AG6: =TRUNC((TRUNC((計算表!B16*2+31+TRUNC(計算表!D16/4))*計算表!F11/100)+5)*(計算表!E16)) -> 90
A7: D | B7: =TRUNC((TRUNC((計算表!B17*2+0+TRUNC(計算表!D17/4))*計算表!F11/100)+5)*(計算表!E17)) -> 110 | C7: =TRUNC((TRUNC((計算表!B17*2+1+TRUNC(計算表!D17/4))*計算表!F11/100)+5)*(計算表!E17)) -> 110 | D7: =TRUNC((TRUNC((計算表!B17*2+2+TRUNC(計算表!D17/4))*計算表!F11/100)+5)*(計算表!E17)) -> 111 | E7: =TRUNC((TRUNC((計算表!B17*2+3+TRUNC(計算表!D17/4))*計算表!F11/100)+5)*(計算表!E17)) -> 111 | F7: =TRUNC((TRUNC((計算表!B17*2+4+TRUNC(計算表!D17/4))*計算表!F11/100)+5)*(計算表!E17)) -> 112 | G7: =TRUNC((TRUNC((計算表!B17*2+5+TRUNC(計算表!D17/4))*計算表!F11/100)+5)*(計算表!E17)) -> 112 | H7: =TRUNC((TRUNC((計算表!B17*2+6+TRUNC(計算表!D17/4))*計算表!F11/100)+5)*(計算表!E17)) -> 113 | I7: =TRUNC((TRUNC((計算表!B17*2+7+TRUNC(計算表!D17/4))*計算表!F11/100)+5)*(計算表!E17)) -> 113 | J7: =TRUNC((TRUNC((計算表!B17*2+8+TRUNC(計算表!D17/4))*計算表!F11/100)+5)*(計算表!E17)) -> 114 | K7: =TRUNC((TRUNC((計算表!B17*2+9+TRUNC(計算表!D17/4))*計算表!F11/100)+5)*(計算表!E17)) -> 114 | L7: =TRUNC((TRUNC((計算表!B17*2+10+TRUNC(計算表!D17/4))*計算表!F11/100)+5)*(計算表!E17)) -> 115 | M7: =TRUNC((TRUNC((計算表!B17*2+11+TRUNC(計算表!D17/4))*計算表!F11/100)+5)*(計算表!E17)) -> 115 | N7: =TRUNC((TRUNC((計算表!B17*2+12+TRUNC(計算表!D17/4))*計算表!F11/100)+5)*(計算表!E17)) -> 116 | O7: =TRUNC((TRUNC((計算表!B17*2+13+TRUNC(計算表!D17/4))*計算表!F11/100)+5)*(計算表!E17)) -> 116 | P7: =TRUNC((TRUNC((計算表!B17*2+14+TRUNC(計算表!D17/4))*計算表!F11/100)+5)*(計算表!E17)) -> 117 | Q7: =TRUNC((TRUNC((計算表!B17*2+15+TRUNC(計算表!D17/4))*計算表!F11/100)+5)*(計算表!E17)) -> 117 | R7: =TRUNC((TRUNC((計算表!B17*2+16+TRUNC(計算表!D17/4))*計算表!F11/100)+5)*(計算表!E17)) -> 118 | S7: =TRUNC((TRUNC((計算表!B17*2+17+TRUNC(計算表!D17/4))*計算表!F11/100)+5)*(計算表!E17)) -> 118 | T7: =TRUNC((TRUNC((計算表!B17*2+18+TRUNC(計算表!D17/4))*計算表!F11/100)+5)*(計算表!E17)) -> 119 | U7: =TRUNC((TRUNC((計算表!B17*2+19+TRUNC(計算表!D17/4))*計算表!F11/100)+5)*(計算表!E17)) -> 119 | V7: =TRUNC((TRUNC((計算表!B17*2+20+TRUNC(計算表!D17/4))*計算表!F11/100)+5)*(計算表!E17)) -> 120 | W7: =TRUNC((TRUNC((計算表!B17*2+21+TRUNC(計算表!D17/4))*計算表!F11/100)+5)*(計算表!E17)) -> 120 | X7: =TRUNC((TRUNC((計算表!B17*2+22+TRUNC(計算表!D17/4))*計算表!F11/100)+5)*(計算表!E17)) -> 121 | Y7: =TRUNC((TRUNC((計算表!B17*2+23+TRUNC(計算表!D17/4))*計算表!F11/100)+5)*(計算表!E17)) -> 121 | Z7: =TRUNC((TRUNC((計算表!B17*2+24+TRUNC(計算表!D17/4))*計算表!F11/100)+5)*(計算表!E17)) -> 122 | AA7: =TRUNC((TRUNC((計算表!B17*2+25+TRUNC(計算表!D17/4))*計算表!F11/100)+5)*(計算表!E17)) -> 122 | AB7: =TRUNC((TRUNC((計算表!B17*2+26+TRUNC(計算表!D17/4))*計算表!F11/100)+5)*(計算表!E17)) -> 123 | AC7: =TRUNC((TRUNC((計算表!B17*2+27+TRUNC(計算表!D17/4))*計算表!F11/100)+5)*(計算表!E17)) -> 123 | AD7: =TRUNC((TRUNC((計算表!B17*2+28+TRUNC(計算表!D17/4))*計算表!F11/100)+5)*(計算表!E17)) -> 124 | AE7: =TRUNC((TRUNC((計算表!B17*2+29+TRUNC(計算表!D17/4))*計算表!F11/100)+5)*(計算表!E17)) -> 124 | AF7: =TRUNC((TRUNC((計算表!B17*2+30+TRUNC(計算表!D17/4))*計算表!F11/100)+5)*(計算表!E17)) -> 125 | AG7: =TRUNC((TRUNC((計算表!B17*2+31+TRUNC(計算表!D17/4))*計算表!F11/100)+5)*(計算表!E17)) -> 125
A8: S | B8: =TRUNC((TRUNC((計算表!B18*2+0+TRUNC(計算表!D18/4))*計算表!F11/100)+5)*(計算表!E18)) -> 155 | C8: =TRUNC((TRUNC((計算表!B18*2+1+TRUNC(計算表!D18/4))*計算表!F11/100)+5)*(計算表!E18)) -> 156 | D8: =TRUNC((TRUNC((計算表!B18*2+2+TRUNC(計算表!D18/4))*計算表!F11/100)+5)*(計算表!E18)) -> 156 | E8: =TRUNC((TRUNC((計算表!B18*2+3+TRUNC(計算表!D18/4))*計算表!F11/100)+5)*(計算表!E18)) -> 157 | F8: =TRUNC((TRUNC((計算表!B18*2+4+TRUNC(計算表!D18/4))*計算表!F11/100)+5)*(計算表!E18)) -> 157 | G8: =TRUNC((TRUNC((計算表!B18*2+5+TRUNC(計算表!D18/4))*計算表!F11/100)+5)*(計算表!E18)) -> 158 | H8: =TRUNC((TRUNC((計算表!B18*2+6+TRUNC(計算表!D18/4))*計算表!F11/100)+5)*(計算表!E18)) -> 158 | I8: =TRUNC((TRUNC((計算表!B18*2+7+TRUNC(計算表!D18/4))*計算表!F11/100)+5)*(計算表!E18)) -> 159 | J8: =TRUNC((TRUNC((計算表!B18*2+8+TRUNC(計算表!D18/4))*計算表!F11/100)+5)*(計算表!E18)) -> 159 | K8: =TRUNC((TRUNC((計算表!B18*2+9+TRUNC(計算表!D18/4))*計算表!F11/100)+5)*(計算表!E18)) -> 160 | L8: =TRUNC((TRUNC((計算表!B18*2+10+TRUNC(計算表!D18/4))*計算表!F11/100)+5)*(計算表!E18)) -> 160 | M8: =TRUNC((TRUNC((計算表!B18*2+11+TRUNC(計算表!D18/4))*計算表!F11/100)+5)*(計算表!E18)) -> 161 | N8: =TRUNC((TRUNC((計算表!B18*2+12+TRUNC(計算表!D18/4))*計算表!F11/100)+5)*(計算表!E18)) -> 161 | O8: =TRUNC((TRUNC((計算表!B18*2+13+TRUNC(計算表!D18/4))*計算表!F11/100)+5)*(計算表!E18)) -> 162 | P8: =TRUNC((TRUNC((計算表!B18*2+14+TRUNC(計算表!D18/4))*計算表!F11/100)+5)*(計算表!E18)) -> 162 | Q8: =TRUNC((TRUNC((計算表!B18*2+15+TRUNC(計算表!D18/4))*計算表!F11/100)+5)*(計算表!E18)) -> 163 | R8: =TRUNC((TRUNC((計算表!B18*2+16+TRUNC(計算表!D18/4))*計算表!F11/100)+5)*(計算表!E18)) -> 163 | S8: =TRUNC((TRUNC((計算表!B18*2+17+TRUNC(計算表!D18/4))*計算表!F11/100)+5)*(計算表!E18)) -> 165 | T8: =TRUNC((TRUNC((計算表!B18*2+18+TRUNC(計算表!D18/4))*計算表!F11/100)+5)*(計算表!E18)) -> 165 | U8: =TRUNC((TRUNC((計算表!B18*2+19+TRUNC(計算表!D18/4))*計算表!F11/100)+5)*(計算表!E18)) -> 166 | V8: =TRUNC((TRUNC((計算表!B18*2+20+TRUNC(計算表!D18/4))*計算表!F11/100)+5)*(計算表!E18)) -> 166 | W8: =TRUNC((TRUNC((計算表!B18*2+21+TRUNC(計算表!D18/4))*計算表!F11/100)+5)*(計算表!E18)) -> 167 | X8: =TRUNC((TRUNC((計算表!B18*2+22+TRUNC(計算表!D18/4))*計算表!F11/100)+5)*(計算表!E18)) -> 167 | Y8: =TRUNC((TRUNC((計算表!B18*2+23+TRUNC(計算表!D18/4))*計算表!F11/100)+5)*(計算表!E18)) -> 168 | Z8: =TRUNC((TRUNC((計算表!B18*2+24+TRUNC(計算表!D18/4))*計算表!F11/100)+5)*(計算表!E18)) -> 168 | AA8: =TRUNC((TRUNC((計算表!B18*2+25+TRUNC(計算表!D18/4))*計算表!F11/100)+5)*(計算表!E18)) -> 169 | AB8: =TRUNC((TRUNC((計算表!B18*2+26+TRUNC(計算表!D18/4))*計算表!F11/100)+5)*(計算表!E18)) -> 169 | AC8: =TRUNC((TRUNC((計算表!B18*2+27+TRUNC(計算表!D18/4))*計算表!F11/100)+5)*(計算表!E18)) -> 170 | AD8: =TRUNC((TRUNC((計算表!B18*2+28+TRUNC(計算表!D18/4))*計算表!F11/100)+5)*(計算表!E18)) -> 170 | AE8: =TRUNC((TRUNC((計算表!B18*2+29+TRUNC(計算表!D18/4))*計算表!F11/100)+5)*(計算表!E18)) -> 171 | AF8: =TRUNC((TRUNC((計算表!B18*2+30+TRUNC(計算表!D18/4))*計算表!F11/100)+5)*(計算表!E18)) -> 171 | AG8: =TRUNC((TRUNC((計算表!B18*2+31+TRUNC(計算表!D18/4))*計算表!F11/100)+5)*(計算表!E18)) -> 172
AH10: min | AI10: max
A11: H | B11: =IF(B3=計算表!F13,B2,"") ->  | C11: =IF(C3=計算表!F13,C2,"") ->  | D11: =IF(D3=計算表!F13,D2,"") ->  | E11: =IF(E3=計算表!F13,E2,"") ->  | F11: =IF(F3=計算表!F13,F2,"") ->  | G11: =IF(G3=計算表!F13,G2,"") ->  | H11: =IF(H3=計算表!F13,H2,"") ->  | I11: =IF(I3=計算表!F13,I2,"") ->  | J11: =IF(J3=計算表!F13,J2,"") ->  | K11: =IF(K3=計算表!F13,K2,"") ->  | L11: =IF(L3=計算表!F13,L2,"") ->  | M11: =IF(M3=計算表!F13,M2,"") ->  | N11: =IF(N3=計算表!F13,N2,"") ->  | O11: =IF(O3=計算表!F13,O2,"") ->  | P11: =IF(P3=計算表!F13,P2,"") ->  | Q11: =IF(Q3=計算表!F13,Q2,"") ->  | R11: =IF(R3=計算表!F13,R2,"") ->  | S11: =IF(S3=計算表!F13,S2,"") ->  | T11: =IF(T3=計算表!F13,T2,"") ->  | U11: =IF(U3=計算表!F13,U2,"") ->  | V11: =IF(V3=計算表!F13,V2,"") ->  | W11: =IF(W3=計算表!F13,W2,"") ->  | X11: =IF(X3=計算表!F13,X2,"") ->  | Y11: =IF(Y3=計算表!F13,Y2,"") ->  | Z11: =IF(Z3=計算表!F13,Z2,"") ->  | AA11: =IF(AA3=計算表!F13,AA2,"") ->  | AB11: =IF(AB3=計算表!F13,AB2,"") ->  | AC11: =IF(AC3=計算表!F13,AC2,"") ->  | AD11: =IF(AD3=計算表!F13,AD2,"") ->  | AE11: =IF(AE3=計算表!F13,AE2,"") ->  | AF11: =IF(AF3=計算表!F13,AF2,"") ->  | AG11: =IF(AG3=計算表!F13,AG2,"") -> 31 | AH11: =MIN(B11:AG11) -> 31 | AI11: =MAX(B11:AG11) -> 31
A12: A | B12: =IF(B4=計算表!F14,B2,"") ->  | C12: =IF(C4=計算表!F14,C2,"") ->  | D12: =IF(D4=計算表!F14,D2,"") ->  | E12: =IF(E4=計算表!F14,E2,"") ->  | F12: =IF(F4=計算表!F14,F2,"") ->  | G12: =IF(G4=計算表!F14,G2,"") ->  | H12: =IF(H4=計算表!F14,H2,"") ->  | I12: =IF(I4=計算表!F14,I2,"") ->  | J12: =IF(J4=計算表!F14,J2,"") ->  | K12: =IF(K4=計算表!F14,K2,"") ->  | L12: =IF(L4=計算表!F14,L2,"") ->  | M12: =IF(M4=計算表!F14,M2,"") ->  | N12: =IF(N4=計算表!F14,N2,"") ->  | O12: =IF(O4=計算表!F14,O2,"") ->  | P12: =IF(P4=計算表!F14,P2,"") ->  | Q12: =IF(Q4=計算表!F14,Q2,"") ->  | R12: =IF(R4=計算表!F14,R2,"") ->  | S12: =IF(S4=計算表!F14,S2,"") ->  | T12: =IF(T4=計算表!F14,T2,"") ->  | U12: =IF(U4=計算表!F14,U2,"") ->  | V12: =IF(V4=計算表!F14,V2,"") ->  | W12: =IF(W4=計算表!F14,W2,"") ->  | X12: =IF(X4=計算表!F14,X2,"") ->  | Y12: =IF(Y4=計算表!F14,Y2,"") ->  | Z12: =IF(Z4=計算表!F14,Z2,"") ->  | AA12: =IF(AA4=計算表!F14,AA2,"") ->  | AB12: =IF(AB4=計算表!F14,AB2,"") ->  | AC12: =IF(AC4=計算表!F14,AC2,"") ->  | AD12: =IF(AD4=計算表!F14,AD2,"") ->  | AE12: =IF(AE4=計算表!F14,AE2,"") ->  | AF12: =IF(AF4=計算表!F14,AF2,"") ->  | AG12: =IF(AG4=計算表!F14,AG2,"") ->  | AH12: 0 | AI12: 0
A13: B | B13: =IF(B5=計算表!F15,B2,"") ->  | C13: =IF(C5=計算表!F15,C2,"") ->  | D13: =IF(D5=計算表!F15,D2,"") ->  | E13: =IF(E5=計算表!F15,E2,"") ->  | F13: =IF(F5=計算表!F15,F2,"") ->  | G13: =IF(G5=計算表!F15,G2,"") ->  | H13: =IF(H5=計算表!F15,H2,"") ->  | I13: =IF(I5=計算表!F15,I2,"") ->  | J13: =IF(J5=計算表!F15,J2,"") ->  | K13: =IF(K5=計算表!F15,K2,"") ->  | L13: =IF(L5=計算表!F15,L2,"") ->  | M13: =IF(M5=計算表!F15,M2,"") ->  | N13: =IF(N5=計算表!F15,N2,"") ->  | O13: =IF(O5=計算表!F15,O2,"") ->  | P13: =IF(P5=計算表!F15,P2,"") ->  | Q13: =IF(Q5=計算表!F15,Q2,"") ->  | R13: =IF(R5=計算表!F15,R2,"") ->  | S13: =IF(S5=計算表!F15,S2,"") ->  | T13: =IF(T5=計算表!F15,T2,"") ->  | U13: =IF(U5=計算表!F15,U2,"") ->  | V13: =IF(V5=計算表!F15,V2,"") ->  | W13: =IF(W5=計算表!F15,W2,"") ->  | X13: =IF(X5=計算表!F15,X2,"") ->  | Y13: =IF(Y5=計算表!F15,Y2,"") ->  | Z13: =IF(Z5=計算表!F15,Z2,"") ->  | AA13: =IF(AA5=計算表!F15,AA2,"") ->  | AB13: =IF(AB5=計算表!F15,AB2,"") ->  | AC13: =IF(AC5=計算表!F15,AC2,"") ->  | AD13: =IF(AD5=計算表!F15,AD2,"") ->  | AE13: =IF(AE5=計算表!F15,AE2,"") ->  | AF13: =IF(AF5=計算表!F15,AF2,"") ->  | AG13: =IF(AG5=計算表!F15,AG2,"") ->  | AH13: 0 | AI13: 0
A14: C | B14: =IF(B6=計算表!F16,B2,"") ->  | C14: =IF(C6=計算表!F16,C2,"") ->  | D14: =IF(D6=計算表!F16,D2,"") ->  | E14: =IF(E6=計算表!F16,E2,"") ->  | F14: =IF(F6=計算表!F16,F2,"") ->  | G14: =IF(G6=計算表!F16,G2,"") ->  | H14: =IF(H6=計算表!F16,H2,"") ->  | I14: =IF(I6=計算表!F16,I2,"") ->  | J14: =IF(J6=計算表!F16,J2,"") ->  | K14: =IF(K6=計算表!F16,K2,"") ->  | L14: =IF(L6=計算表!F16,L2,"") ->  | M14: =IF(M6=計算表!F16,M2,"") ->  | N14: =IF(N6=計算表!F16,N2,"") ->  | O14: =IF(O6=計算表!F16,O2,"") ->  | P14: =IF(P6=計算表!F16,P2,"") ->  | Q14: =IF(Q6=計算表!F16,Q2,"") ->  | R14: =IF(R6=計算表!F16,R2,"") ->  | S14: =IF(S6=計算表!F16,S2,"") ->  | T14: =IF(T6=計算表!F16,T2,"") ->  | U14: =IF(U6=計算表!F16,U2,"") ->  | V14: =IF(V6=計算表!F16,V2,"") ->  | W14: =IF(W6=計算表!F16,W2,"") ->  | X14: =IF(X6=計算表!F16,X2,"") ->  | Y14: =IF(Y6=計算表!F16,Y2,"") ->  | Z14: =IF(Z6=計算表!F16,Z2,"") ->  | AA14: =IF(AA6=計算表!F16,AA2,"") ->  | AB14: =IF(AB6=計算表!F16,AB2,"") ->  | AC14: =IF(AC6=計算表!F16,AC2,"") ->  | AD14: =IF(AD6=計算表!F16,AD2,"") ->  | AE14: =IF(AE6=計算表!F16,AE2,"") ->  | AF14: =IF(AF6=計算表!F16,AF2,"") -> 30 | AG14: =IF(AG6=計算表!F16,AG2,"") -> 31 | AH14: 30 | AI14: 31
A15: D | B15: =IF(B7=計算表!F17,B2,"") ->  | C15: =IF(C7=計算表!F17,C2,"") ->  | D15: =IF(D7=計算表!F17,D2,"") ->  | E15: =IF(E7=計算表!F17,E2,"") ->  | F15: =IF(F7=計算表!F17,F2,"") ->  | G15: =IF(G7=計算表!F17,G2,"") ->  | H15: =IF(H7=計算表!F17,H2,"") ->  | I15: =IF(I7=計算表!F17,I2,"") ->  | J15: =IF(J7=計算表!F17,J2,"") ->  | K15: =IF(K7=計算表!F17,K2,"") ->  | L15: =IF(L7=計算表!F17,L2,"") ->  | M15: =IF(M7=計算表!F17,M2,"") ->  | N15: =IF(N7=計算表!F17,N2,"") ->  | O15: =IF(O7=計算表!F17,O2,"") ->  | P15: =IF(P7=計算表!F17,P2,"") ->  | Q15: =IF(Q7=計算表!F17,Q2,"") ->  | R15: =IF(R7=計算表!F17,R2,"") ->  | S15: =IF(S7=計算表!F17,S2,"") ->  | T15: =IF(T7=計算表!F17,T2,"") ->  | U15: =IF(U7=計算表!F17,U2,"") ->  | V15: =IF(V7=計算表!F17,V2,"") ->  | W15: =IF(W7=計算表!F17,W2,"") ->  | X15: =IF(X7=計算表!F17,X2,"") ->  | Y15: =IF(Y7=計算表!F17,Y2,"") ->  | Z15: =IF(Z7=計算表!F17,Z2,"") ->  | AA15: =IF(AA7=計算表!F17,AA2,"") ->  | AB15: =IF(AB7=計算表!F17,AB2,"") ->  | AC15: =IF(AC7=計算表!F17,AC2,"") ->  | AD15: =IF(AD7=計算表!F17,AD2,"") ->  | AE15: =IF(AE7=計算表!F17,AE2,"") ->  | AF15: =IF(AF7=計算表!F17,AF2,"") ->  | AG15: =IF(AG7=計算表!F17,AG2,"") ->  | AH15: 0 | AI15: 0
A16: S | B16: =IF(B8=計算表!F18,B2,"") ->  | C16: =IF(C8=計算表!F18,C2,"") ->  | D16: =IF(D8=計算表!F18,D2,"") ->  | E16: =IF(E8=計算表!F18,E2,"") ->  | F16: =IF(F8=計算表!F18,F2,"") ->  | G16: =IF(G8=計算表!F18,G2,"") ->  | H16: =IF(H8=計算表!F18,H2,"") ->  | I16: =IF(I8=計算表!F18,I2,"") ->  | J16: =IF(J8=計算表!F18,J2,"") ->  | K16: =IF(K8=計算表!F18,K2,"") ->  | L16: =IF(L8=計算表!F18,L2,"") ->  | M16: =IF(M8=計算表!F18,M2,"") ->  | N16: =IF(N8=計算表!F18,N2,"") ->  | O16: =IF(O8=計算表!F18,O2,"") ->  | P16: =IF(P8=計算表!F18,P2,"") ->  | Q16: =IF(Q8=計算表!F18,Q2,"") ->  | R16: =IF(R8=計算表!F18,R2,"") ->  | S16: =IF(S8=計算表!F18,S2,"") ->  | T16: =IF(T8=計算表!F18,T2,"") ->  | U16: =IF(U8=計算表!F18,U2,"") -> 19 | V16: =IF(V8=計算表!F18,V2,"") -> 20 | W16: =IF(W8=計算表!F18,W2,"") ->  | X16: =IF(X8=計算表!F18,X2,"") ->  | Y16: =IF(Y8=計算表!F18,Y2,"") ->  | Z16: =IF(Z8=計算表!F18,Z2,"") ->  | AA16: =IF(AA8=計算表!F18,AA2,"") ->  | AB16: =IF(AB8=計算表!F18,AB2,"") ->  | AC16: =IF(AC8=計算表!F18,AC2,"") ->  | AD16: =IF(AD8=計算表!F18,AD2,"") ->  | AE16: =IF(AE8=計算表!F18,AE2,"") ->  | AF16: =IF(AF8=計算表!F18,AF2,"") ->  | AG16: =IF(AG8=計算表!F18,AG2,"") ->  | AH16: 19 | AI16: 20

Sheet めざめるパワー (hidden)
D1: H | E1: 奇 | F1: 偶 | G1: 奇 | H1: 偶 | I1: 奇 | J1: 偶 | K1: 奇 | L1: 偶
D2: A | E2: 奇 | F2: 奇 | G2: 偶 | H2: 偶 | I2: 奇 | J2: 奇 | K2: 偶 | L2: 偶 | P2: 111111 | Q2: =MOD(計算表!C17,2)&MOD(計算表!C16,2)&MOD(計算表!C18,2)&MOD(計算表!C15,2)&MOD(計算表!C14,2)&MOD(計算表!C13,2) -> 110111 | R2: =IF(P2=Q2,S2,"") ->  | S2: あく | V2: 偶(0)？奇(1)？ | AJ2: A | AK2: B | AL2: C | AM2: D | AN2: E | AO2: F | AP2: G | AQ2: H | AR2: I | AS2: J | AT2: K | AU2: L | AV2: M | AW2: N | AX2: O | AY2: P | AZ2: Q | BA2: R | BB2: S | BC2: T | BD2: U | BE2: V
D3: B | E3: 奇 | F3: 奇 | G3: 奇 | H3: 奇 | I3: 偶 | J3: 偶 | K3: 偶 | L3: 偶 | P3: 111110 | Q3: =Q2 -> 110111 | R3: =IF(P3=Q3,S3,"") ->  | S3: ドラゴン | U3: H | V3: =IF(COUNT(V13:AK13)<>0,VALUE(V13&W13&X13&Y13&Z13&AA13&AB13&AC13&AD13&AE13&AF13&AG13&AH13&AI13&AJ13&AK13),"") ->  | W3: =計算表!AB13 -> 31 | X3: ～ | Y3: =計算表!AD13 -> 31 | Z3: =IF(Y3-W3>30,IF(OR(MOD(Y3-31,2)=V3,V3=""),Y3-31,""),"") ->  | AA3: =IF(Y3-W3>29,IF(OR(MOD(Y3-30,2)=V3,V3=""),Y3-30,""),"") ->  | AB3: =IF(Y3-W3>28,IF(OR(MOD(Y3-29,2)=V3,V3=""),Y3-29,""),"") ->  | AC3: =IF(Y3-W3>27,IF(OR(MOD(Y3-28,2)=V3,V3=""),Y3-28,""),"") ->  | AD3: =IF(Y3-W3>26,IF(OR(MOD(Y3-27,2)=V3,V3=""),Y3-27,""),"") ->  | AE3: =IF(Y3-W3>25,IF(OR(MOD(Y3-26,2)=V3,V3=""),Y3-26,""),"") ->  | AF3: =IF(Y3-W3>24,IF(OR(MOD(Y3-25,2)=V3,V3=""),Y3-25,""),"") ->  | AG3: =IF(Y3-W3>23,IF(OR(MOD(Y3-24,2)=V3,V3=""),Y3-24,""),"") ->  | AH3: =IF(Y3-W3>22,IF(OR(MOD(Y3-23,2)=V3,V3=""),Y3-23,""),"") ->  | AI3: =IF(Y3-W3>21,IF(OR(MOD(Y3-22,2)=V3,V3=""),Y3-22,""),"") ->  | AJ3: =IF(Y3-W3>20,IF(OR(MOD(Y3-21,2)=V3,V3=""),Y3-21,""),"") ->  | AK3: =IF(Y3-W3>19,IF(OR(MOD(Y3-20,2)=V3,V3=""),Y3-20,""),"") ->  | AL3: =IF(Y3-W3>18,IF(OR(MOD(Y3-19,2)=V3,V3=""),Y3-19,""),"") ->  | AM3: =IF(Y3-W3>17,IF(OR(MOD(Y3-18,2)=V3,V3=""),Y3-18,""),"") ->  | AN3: =IF(Y3-W3>16,IF(OR(MOD(Y3-17,2)=V3,V3=""),Y3-17,""),"") ->  | AO3: =IF(Y3-W3>15,IF(OR(MOD(Y3-16,2)=V3,V3=""),Y3-16,""),"") ->  | AP3: =IF(Y3-W3>14,IF(OR(MOD(Y3-15,2)=V3,V3=""),Y3-15,""),"") ->  | AQ3: =IF(Y3-W3>13,IF(OR(MOD(Y3-14,2)=V3,V3=""),Y3-14,""),"") ->  | AR3: =IF(Y3-W3>12,IF(OR(MOD(Y3-13,2)=V3,V3=""),Y3-13,""),"") ->  | AS3: =IF(Y3-W3>11,IF(OR(MOD(Y3-12,2)=V3,V3=""),Y3-12,""),"") ->  | AT3: =IF(Y3-W3>10,IF(OR(MOD(Y3-11,2)=V3,V3=""),Y3-11,""),"") ->  | AU3: =IF(Y3-W3>9,IF(OR(MOD(Y3-10,2)=V3,V3=""),Y3-10,""),"") ->  | AV3: =IF(Y3-W3>8,IF(OR(MOD(Y3-9,2)=V3,V3=""),Y3-9,""),"") ->  | AW3: =IF(Y3-W3>7,IF(OR(MOD(Y3-8,2)=V3,V3=""),Y3-8,""),"") ->  | AX3: =IF(Y3-W3>6,IF(OR(MOD(Y3-7,2)=V3,V3=""),Y3-7,""),"") ->  | AY3: =IF(Y3-W3>5,IF(OR(MOD(Y3-6,2)=V3,V3=""),Y3-6,""),"") ->  | AZ3: =IF(Y3-W3>4,IF(OR(MOD(Y3-5,2)=V3,V3=""),Y3-5,""),"") ->  | BA3: =IF(Y3-W3>3,IF(OR(MOD(Y3-4,2)=V3,V3=""),Y3-4,""),"") ->  | BB3: =IF(Y3-W3>2,IF(OR(MOD(Y3-3,2)=V3,V3=""),Y3-3,""),"") ->  | BC3: =IF(Y3-W3>1,IF(OR(MOD(Y3-2,2)=V3,V3=""),Y3-2,""),"") ->  | BD3: =IF(Y3-W3>0,IF(OR(MOD(Y3-1,2)=V3,V3=""),Y3-1,""),"") ->  | BE3: =IF(OR(MOD(Y3,2)=V3,V3=""),Y3-0,"") -> 31 | BF3: =LEFT(IF(Z3<>"",Z3&",","")&IF(AA3<>"",AA3&",","")&IF(AB3<>"",AB3&",","")&IF(AC3<>"",AC3&",","")&IF(AD3<>"",AD3&",","")&IF(AE3<>"",AE3&",","")&IF(AF3<>"",AF3&",","")&IF(AG3<>"",AG3&",","")&IF(AH3<>"",AH3&",","")&IF(AI3<>"",AI3&",","")&IF(AJ3<>"",AJ3&",","")&IF(AK3<>"",AK3&",","")&IF(AL3<>"",AL3&",","")&IF(AM3<>"",AM3&",","")&IF(AN3<>"",AN3&",","")&IF(AO3<>"",AO3&",","")&IF(AP3<>"",AP3&",","")&IF(AQ3<>"",AQ3&",","")&IF(AR3<>"",AR3&",","")&IF(AS3<>"",AS3&",","")&IF(AT3<>"",AT3&",","")&IF(AU3<>"",AU3&",","")&IF(AV3<>"",AV3&",","")&IF(AW3<>"",AW3&",","")&IF(AX3<>"",AX3&",","")&IF(AY3<>"",AY3&",","")&IF(AZ3<>"",AZ3&",","")&IF(BA3<>"",BA3&",","")&IF(BB3<>"",BB3&",","")&IF(BC3<>"",BC3&",","")&IF(BD3<>"",BD3&",","")&IF(BE3<>"",BE3&",",""),LEN(IF(Z3<>"",Z3&",","")&IF(AA3<>"",AA3&",","")&IF(AB3<>"",AB3&",","")&IF(AC3<>"",AC3&",","")&IF(AD3<>"",AD3&",","")&IF(AE3<>"",AE3&",","")&IF(AF3<>"",AF3&",","")&IF(AG3<>"",AG3&",","")&IF(AH3<>"",AH3&",","")&IF(AI3<>"",AI3&",","")&IF(AJ3<>"",AJ3&",","")&IF(AK3<>"",AK3&",","")&IF(AL3<>"",AL3&",","")&IF(AM3<>"",AM3&",","")&IF(AN3<>"",AN3&",","")&IF(AO3<>"",AO3&",","")&IF(AP3<>"",AP3&",","")&IF(AQ3<>"",AQ3&",","")&IF(AR3<>"",AR3&",","")&IF(AS3<>"",AS3&",","")&IF(AT3<>"",AT3&",","")&IF(AU3<>"",AU3&",","")&IF(AV3<>"",AV3&",","")&IF(AW3<>"",AW3&",","")&IF(AX3<>"",AX3&",","")&IF(AY3<>"",AY3&",","")&IF(AZ3<>"",AZ3&",","")&IF(BA3<>"",BA3&",","")&IF(BB3<>"",BB3&",","")&IF(BC3<>"",BC3&",","")&IF(BD3<>"",BD3&",","")&IF(BE3<>"",BE3&",",""))-1) -> 31
A4: S | B4: C | C4: D | P4: 111101 | Q4: =Q3 -> 110111 | S4: ドラゴン | U4: A | W4: =計算表!AB14 -> 0 | X4: ～ | Y4: =計算表!AD14 -> 0 | BD4: =IF(Y4-W4>0,IF(OR(MOD(Y4-1,2)=V4,V4=""),Y4-1,""),"") ->  | BE4: =IF(OR(MOD(Y4-0,2)=V4,V4=""),Y4-0,"") -> 0 | BF4: =LEFT(IF(Z4<>"",Z4&",","")&IF(AA4<>"",AA4&",","")&IF(AB4<>"",AB4&",","")&IF(AC4<>"",AC4&",","")&IF(AD4<>"",AD4&",","")&IF(AE4<>"",AE4&",","")&IF(AF4<>"",AF4&",","")&IF(AG4<>"",AG4&",","")&IF(AH4<>"",AH4&",","")&IF(AI4<>"",AI4&",","")&IF(AJ4<>"",AJ4&",","")&IF(AK4<>"",AK4&",","")&IF(AL4<>"",AL4&",","")&IF(AM4<>"",AM4&",","")&IF(AN4<>"",AN4&",","")&IF(AO4<>"",AO4&",","")&IF(AP4<>"",AP4&",","")&IF(AQ4<>"",AQ4&",","")&IF(AR4<>"",AR4&",","")&IF(AS4<>"",AS4&",","")&IF(AT4<>"",AT4&",","")&IF(AU4<>"",AU4&",","")&IF(AV4<>"",AV4&",","")&IF(AW4<>"",AW4&",","")&IF(AX4<>"",AX4&",","")&IF(AY4<>"",AY4&",","")&IF(AZ4<>"",AZ4&",","")&IF(BA4<>"",BA4&",","")&IF(BB4<>"",BB4&",","")&IF(BC4<>"",BC4&",","")&IF(BD4<>"",BD4&",","")&IF(BE4<>"",BE4&",",""),LEN(IF(Z4<>"",Z4&",","")&IF(AA4<>"",AA4&",","")&IF(AB4<>"",AB4&",","")&IF(AC4<>"",AC4&",","")&IF(AD4<>"",AD4&",","")&IF(AE4<>"",AE4&",","")&IF(AF4<>"",AF4&",","")&IF(AG4<>"",AG4&",","")&IF(AH4<>"",AH4&",","")&IF(AI4<>"",AI4&",","")&IF(AJ4<>"",AJ4&",","")&IF(AK4<>"",AK4&",","")&IF(AL4<>"",AL4&",","")&IF(AM4<>"",AM4&",","")&IF(AN4<>"",AN4&",","")&IF(AO4<>"",AO4&",","")&IF(AP4<>"",AP4&",","")&IF(AQ4<>"",AQ4&",","")&IF(AR4<>"",AR4&",","")&IF(AS4<>"",AS4&",","")&IF(AT4<>"",AT4&",","")&IF(AU4<>"",AU4&",","")&IF(AV4<>"",AV4&",","")&IF(AW4<>"",AW4&",","")&IF(AX4<>"",AX4&",","")&IF(AY4<>"",AY4&",","")&IF(AZ4<>"",AZ4&",","")&IF(BA4<>"",BA4&",","")&IF(BB4<>"",BB4&",","")&IF(BC4<>"",BC4&",","")&IF(BD4<>"",BD4&",","")&IF(BE4<>"",BE4&",",""))-1) -> 0
A5: 奇 | B5: 奇 | C5: 奇 | E5: 悪 | F5: 竜 | G5: 竜 | H5: 竜 | I5: 竜 | J5: 氷 | K5: 氷 | L5: 氷 | P5: 111100 | Q5: 110111 | S5: ドラゴン | U5: B | V5: =IF(COUNT(V15:AK15)<>0,VALUE(V15&W15&X15&Y15&Z15&AA15&AB15&AC15&AD15&AE15&AF15&AG15&AH15&AI15&AJ15&AK15),"") ->  | W5: =計算表!AB15 -> 0 | X5: ～ | Y5: =計算表!AD15 -> 0 | BE5: 0 | BF5: 0
A6: 偶 | B6: 奇 | C6: 奇 | E6: 氷 | F6: 超 | G6: 超 | H6: 超 | I6: 超 | J6: 電 | K6: 電 | L6: 電 | P6: 111011 | Q6: 110111 | S6: ドラゴン | U6: C | V6: =IF(COUNT(V16:AK16)<>0,VALUE(V16&W16&X16&Y16&Z16&AA16&AB16&AC16&AD16&AE16&AF16&AG16&AH16&AI16&AJ16&AK16),"") -> 1 | W6: =計算表!AB16 -> 30 | X6: ～ | Y6: =計算表!AD16 -> 31 | BE6: 31 | BF6: 31
A7: 奇 | B7: 偶 | C7: 奇 | E7: 電 | F7: 草 | G7: 草 | H7: 草 | I7: 草 | J7: 草 | K7: 水 | L7: 水 | P7: 111010 | Q7: 110111 | S7: こおり | U7: D | V7: 1 | W7: =計算表!AB17 -> 0 | X7: ～ | Y7: =計算表!AD17 -> 0
A8: 偶 | B8: 偶 | C8: 奇 | E8: 水 | F8: 水 | G8: 炎 | H8: 炎 | I8: 炎 | J8: 炎 | K8: 鋼 | L8: 鋼 | P8: 111001 | Q8: 110111 | S8: こおり | U8: S | W8: =計算表!AB18 -> 19 | X8: ～ | Y8: =計算表!AD18 -> 20 | BD8: 19 | BE8: 20 | BF8: 19,20
A9: 奇 | B9: 奇 | C9: 偶 | E9: 鋼 | F9: 鋼 | G9: 霊 | H9: 霊 | I9: 霊 | J9: 霊 | K9: 虫 | L9: 虫 | P9: 111000 | Q9: 110111 | S9: こおり
A10: 偶 | B10: 奇 | C10: 偶 | E10: 虫 | F10: 虫 | G10: 虫 | H10: 岩 | I10: 岩 | J10: 岩 | K10: 岩 | L10: 地 | P10: 110111 | Q10: 110111 | R10: こおり | S10: こおり
A11: 奇 | B11: 偶 | C11: 偶 | E11: 地 | F11: 地 | G11: 地 | H11: 毒 | I11: 毒 | J11: 毒 | K11: 毒 | L11: 飛 | P11: 110110 | Q11: 110111 | S11: エスパー
A12: 偶 | B12: 偶 | C12: 偶 | E12: 飛 | F12: 飛 | G12: 飛 | H12: 闘 | I12: 闘 | J12: 闘 | K12: 闘 | L12: 闘 | P12: 110101 | Q12: 110111 | S12: エスパー | V12: 悪 | W12: 竜 | X12: 氷 | Y12: 超 | Z12: 電 | AA12: 草 | AB12: 水 | AC12: 炎 | AD12: 鋼 | AE12: 霊 | AF12: 虫 | AG12: 岩 | AH12: 地 | AI12: 毒 | AJ12: 飛 | AK12: 闘
P13: 110100 | Q13: 110111 | S13: エスパー | U13: H | V13: =IF(計算表!AE12="あく",1,"") -> 
P14: 110011 | Q14: 110111 | S14: エスパー | U14: A | V14: =IF(計算表!AE12="あく",1,"") -> 
P15: 110010 | Q15: 110111 | S15: でんき | U15: B | V15: =IF(計算表!AE12="あく",1,"") -> 
P16: 110001 | Q16: 110111 | S16: でんき | U16: C | V16: =IF(計算表!AE12="あく",1,"") ->  | W16: =IF(計算表!AE12="ドラゴン",1,"") ->  | X16: =IF(計算表!AE12="こおり",1,"") -> 1 | AA16: =IF(計算表!AE12="でんき",0,"") ->  | AB16: =IF(計算表!AE12="みず",0,"") ->  | AC16: =IF(計算表!AE12="ほのお",0,"") ->  | AE16: =IF(計算表!AE12="ゴースト",1,"") ->  | AG16: =IF(計算表!AE12="いわ",1,"") ->  | AI16: =IF(計算表!AE12="どく",0,"") ->  | AJ16: =IF(計算表!AE12="ひこう",0,"") ->  | AK16: =IF(計算表!AE12="かくとう",0,"") -> 
P17: 110000 | Q17: 110111 | S17: でんき | U17: D | V17: =IF(計算表!AE12="あく",1,"") ->  | W17: =IF(計算表!AE12="ドラゴン",1,"") ->  | X17: =IF(計算表!AE12="こおり",1,"") -> 1 | Z17: =IF(計算表!AE12="でんき",1,"") ->  | AA17: =IF(計算表!AE12="くさ",1,"") ->  | AB17: =IF(計算表!AE12="みず",1,"") ->  | AC17: =IF(計算表!AE12="ほのお",1,"") ->  | AE17: =IF(計算表!AE12="ゴースト",0,"") ->  | AF17: =IF(計算表!AE12="むし",0,"") ->  | AG17: =IF(計算表!AE12="いわ",0,"") ->  | AH17: =IF(計算表!AE12="じめん",0,"") ->  | AI17: =IF(計算表!AE12="どく",0,"") ->  | AJ17: =IF(計算表!AE12="ひこう",0,"") ->  | AK17: =IF(計算表!AE12="かくとう",0,"") -> 
P18: 101111 | Q18: 110111 | S18: でんき | U18: S | V18: =IF(計算表!AE12="あく",1,"") ->  | W18: =IF(計算表!AE12="ドラゴン",1,"") ->  | Y18: =IF(計算表!AE12="エスパー",0,"") ->  | AA18: =IF(計算表!AE12="くさ",1,"") ->  | AC18: =IF(計算表!AE12="ほのお",0,"") ->  | AE18: =IF(計算表!AE12="ゴースト",1,"") ->  | AG18: =IF(計算表!AE12="いわ",0,"") ->  | AI18: =IF(計算表!AE12="どく",1,"") ->  | AK18: =IF(計算表!AE12="かくとう",0,"") -> 
P19: 101110 | Q19: 110111 | S19: くさ
P20: 101101 | Q20: 110111 | S20: くさ
P21: 101100 | Q21: 110111 | S21: くさ
P22: 101011 | Q22: 110111 | S22: くさ
P23: 101010 | Q23: 110111 | S23: くさ
P24: 101001 | Q24: 110111 | S24: みず
P25: 101000 | Q25: 110111 | S25: みず
P26: 100111 | Q26: 110111 | S26: みず
P27: 100110 | Q27: 110111 | S27: みず
P28: 100101 | Q28: 110111 | S28: ほのお
P29: 100100 | Q29: 110111 | S29: ほのお
P30: 100011 | Q30: 110111 | S30: ほのお
P31: 100010 | Q31: 110111 | S31: ほのお
P32: 100001 | Q32: 110111 | S32: はがね
P33: 100000 | Q33: 110111 | S33: はがね
P34: 011111 | Q34: 110111 | S34: はがね
P35: 011110 | Q35: 110111 | S35: はがね
P36: 011101 | Q36: 110111 | S36: ゴースト
P37: 011100 | Q37: 110111 | S37: ゴースト
P38: 011011 | Q38: 110111 | S38: ゴースト
P39: 011010 | Q39: 110111 | S39: ゴースト
P40: 011001 | Q40: 110111 | S40: むし
P41: 011000 | Q41: 110111 | S41: むし
P42: 010111 | Q42: 110111 | S42: むし
P43: 010110 | Q43: 110111 | S43: むし
P44: 010101 | Q44: 110111 | S44: むし
P45: 010100 | Q45: 110111 | S45: いわ
P46: 010011 | Q46: 110111 | S46: いわ
P47: 010010 | Q47: 110111 | S47: いわ
P48: 010001 | Q48: 110111 | S48: いわ
P49: 010000 | Q49: 110111 | S49: じめん
P50: 001111 | Q50: 110111 | S50: じめん
P51: 001110 | Q51: 110111 | S51: じめん
P52: 001101 | Q52: 110111 | S52: じめん
P53: 001100 | Q53: 110111 | S53: どく
P54: 001011 | Q54: 110111 | S54: どく
P55: 001010 | Q55: 110111 | S55: どく
P56: 001001 | Q56: 110111 | S56: どく
P57: 001000 | Q57: 110111 | S57: ひこう
P58: 000111 | Q58: 110111 | S58: ひこう
P59: 000110 | Q59: 110111 | S59: ひこう
P60: 000101 | Q60: 110111 | S60: ひこう
P61: 000100 | Q61: 110111 | S61: かくとう
P62: 000011 | Q62: 110111 | S62: かくとう
P63: 000010 | Q63: 110111 | S63: かくとう
P64: 000001 | Q64: 110111 | S64: かくとう
P65: 000000 | Q65: 110111 | S65: かくとう
R66: =R2&R3&R4&R5&R6&R7&R8&R9&R10&R11&R12&R13&R14&R15&R16&R17&R18&R19&R20&R21&R22&R23&R24&R25&R26&R27&R28&R29&R30&R31&R32&R33&R34&R35&R36&R37&R38&R39&R40&R41&R42&R43&R44&R45&R46&R47&R48&R49&R50&R51&R52&R53&R54&R55&R56&R57&R58&R59&R60&R61&R62&R63&R64&R65 -> こおり

Sheet 相性表
B2: 受け 攻め | C2: 普 | D2: 炎 | E2: 水 | F2: 電 | G2: 草 | H2: 氷 | I2: 格 | J2: 毒 | K2: 地 | L2: 飛 | M2: 超 | N2: 虫 | O2: 岩 | P2: 幽 | Q2: 竜 | R2: 悪 | S2: 鋼 | T2: 妖 | U2: ○ | V2: △ | W2: ×
B3: ノーマル | O3: △ | P3: × | S3: △ | U3: =COUNTIF(C3:T3,"○") -> 0 | V3: =COUNTIF(D3:U3,"△") -> 2 | W3: =COUNTIF(E3:V3,"×") -> 1 | X3: =U3-V3-2*W3 -> -4 | Y3: =IF(B28=B3,"○",IF(B30=B3,"○","")) ->  | Z3: =IF(C3="○",2,IF(C3="△",0.5,IF(C3="×",0,1))) -> 1 | AA3: 1 | AB3: 1 | AC3: 1 | AD3: 1 | AE3: 1 | AF3: 1 | AG3: 1 | AH3: 1 | AI3: 1 | AJ3: 1 | AK3: 1 | AL3: 0.5 | AM3: 0 | AN3: 1 | AO3: 1 | AP3: 0.5 | AQ3: 1 | AR3: =IF(Y3="",1,VALUE(Z3)) -> 1 | AS3: =IF(Y4="",1,VALUE(AA3)) -> 1 | AT3: =IF(Y5="",1,VALUE(AB3)) -> 1 | AU3: =IF(Y6="",1,VALUE(AC3)) -> 1 | AV3: =IF(Y7="",1,VALUE(AD3)) -> 1 | AW3: =IF(Y8="",1,VALUE(AE3)) -> 1 | AX3: =IF(Y9="",1,VALUE(AF3)) -> 1 | AY3: =IF(Y10="",1,VALUE(AG3)) -> 1 | AZ3: =IF(Y11="",1,VALUE(AH3)) -> 1 | BA3: =IF(Y12="",1,VALUE(AI3)) -> 1 | BB3: =IF(Y13="",1,VALUE(AJ3)) -> 1 | BC3: =IF(Y14="",1,VALUE(AK3)) -> 1 | BD3: =IF(Y15="",1,VALUE(AL3)) -> 1 | BE3: =IF(Y16="",1,VALUE(AM3)) -> 1 | BF3: =IF(Y17="",1,VALUE(AN3)) -> 1 | BG3: =IF(Y18="",1,VALUE(AO3)) -> 1 | BH3: =IF(Y19="",1,VALUE(AP3)) -> 0.5 | BI3: =IF(Y20="",1,VALUE(AQ3)) -> 1 | BJ3: =PRODUCT(AR3:BI3) -> 0.5
B4: ほのお | D4: △ | E4: △ | G4: ○ | H4: ○ | N4: ○ | O4: △ | Q4: △ | S4: ○ | U4: =COUNTIF(C4:T4,"○") -> 4 | V4: =COUNTIF(D4:U4,"△") -> 4 | W4: =COUNTIF(E4:V4,"×") -> 0 | X4: =U4-V4-2*W4 -> 0 | Y4: =IF(B28=B4,"○",IF(B30=B4,"○","")) ->  | Z4: =IF(C4="○",2,IF(C4="△",0.5,IF(C4="×",0,1))) -> 1 | AA4: 0.5 | AB4: 0.5 | AC4: 1 | AD4: 2 | AE4: 2 | AF4: 1 | AG4: 1 | AH4: 1 | AI4: 1 | AJ4: 1 | AK4: 2 | AL4: =IF(O4="○",2,IF(O4="△",0.5,IF(O4="×",0,1))) -> 0.5 | AM4: 1 | AN4: 0.5 | AO4: 1 | AP4: 2 | AQ4: 1 | AR4: =IF(Y3="",1,VALUE(Z4)) -> 1 | AS4: =IF(Y4="",1,VALUE(AA4)) -> 1 | AT4: =IF(Y5="",1,VALUE(AB4)) -> 1 | AU4: =IF(Y6="",1,VALUE(AC4)) -> 1 | AV4: =IF(Y7="",1,VALUE(AD4)) -> 1 | AW4: =IF(Y8="",1,VALUE(AE4)) -> 1 | AX4: =IF(Y9="",1,VALUE(AF4)) -> 1 | AY4: =IF(Y10="",1,VALUE(AG4)) -> 1 | AZ4: =IF(Y11="",1,VALUE(AH4)) -> 1 | BA4: =IF(Y12="",1,VALUE(AI4)) -> 1 | BB4: =IF(Y13="",1,VALUE(AJ4)) -> 1 | BC4: =IF(Y14="",1,VALUE(AK4)) -> 1 | BD4: =IF(Y15="",1,VALUE(AL4)) -> 1 | BE4: =IF(Y16="",1,VALUE(AM4)) -> 1 | BF4: =IF(Y17="",1,VALUE(AN4)) -> 1 | BG4: =IF(Y18="",1,VALUE(AO4)) -> 1 | BH4: =IF(Y19="",1,VALUE(AP4)) -> 2 | BI4: =IF(Y20="",1,VALUE(AQ4)) -> 1 | BJ4: =PRODUCT(AR4:BI4) -> 2
B5: みず | D5: ○ | E5: △ | G5: △ | K5: ○ | O5: ○ | Q5: △ | U5: =COUNTIF(C5:T5,"○") -> 3 | V5: 3 | W5: 0 | X5: =U5-V5-2*W5 -> 0 | Y5: =IF(B28=B5,"○",IF(B30=B5,"○","")) ->  | Z5: =IF(C5="○",2,IF(C5="△",0.5,IF(C5="×",0,1))) -> 1 | AA5: 2 | AB5: 0.5 | AC5: 1 | AD5: 0.5 | AE5: 1 | AF5: 1 | AG5: 1 | AH5: 2 | AI5: 1 | AJ5: 1 | AK5: 1 | AL5: =IF(O5="○",2,IF(O5="△",0.5,IF(O5="×",0,1))) -> 2 | AM5: 1 | AN5: 0.5 | AO5: 1 | AP5: 1 | AQ5: 1 | AR5: =IF(Y3="",1,VALUE(Z5)) -> 1 | AS5: =IF(Y4="",1,VALUE(AA5)) -> 1 | AT5: =IF(Y5="",1,VALUE(AB5)) -> 1 | AU5: =IF(Y6="",1,VALUE(AC5)) -> 1 | AV5: =IF(Y7="",1,VALUE(AD5)) -> 1 | AW5: =IF(Y8="",1,VALUE(AE5)) -> 1 | AX5: =IF(Y9="",1,VALUE(AF5)) -> 1 | AY5: =IF(Y10="",1,VALUE(AG5)) -> 1 | AZ5: =IF(Y11="",1,VALUE(AH5)) -> 1 | BA5: =IF(Y12="",1,VALUE(AI5)) -> 1 | BB5: =IF(Y13="",1,VALUE(AJ5)) -> 1 | BC5: =IF(Y14="",1,VALUE(AK5)) -> 1 | BD5: =IF(Y15="",1,VALUE(AL5)) -> 1 | BE5: =IF(Y16="",1,VALUE(AM5)) -> 1 | BF5: =IF(Y17="",1,VALUE(AN5)) -> 1 | BG5: =IF(Y18="",1,VALUE(AO5)) -> 1 | BH5: =IF(Y19="",1,VALUE(AP5)) -> 1 | BI5: =IF(Y20="",1,VALUE(AQ5)) -> 1 | BJ5: 1
B6: でんき | E6: ○ | F6: △ | G6: △ | K6: × | L6: ○ | Q6: △ | U6: 2 | V6: 3 | W6: 1 | X6: -3 | Y6: =IF(B28=B6,"○",IF(B30=B6,"○","")) ->  | Z6: =IF(C6="○",2,IF(C6="△",0.5,IF(C6="×",0,1))) -> 1 | AA6: 1 | AB6: 2 | AC6: 0.5 | AD6: 0.5 | AE6: 1 | AF6: 1 | AG6: 1 | AH6: 0 | AI6: 2 | AJ6: 1 | AK6: 1 | AL6: =IF(O6="○",2,IF(O6="△",0.5,IF(O6="×",0,1))) -> 1 | AM6: 1 | AN6: 0.5 | AO6: 1 | AP6: 1 | AQ6: 1 | AR6: =IF(Y3="",1,VALUE(Z6)) -> 1 | AS6: =IF(Y4="",1,VALUE(AA6)) -> 1 | AT6: =IF(Y5="",1,VALUE(AB6)) -> 1 | AU6: =IF(Y6="",1,VALUE(AC6)) -> 1 | AV6: =IF(Y7="",1,VALUE(AD6)) -> 1 | AW6: =IF(Y8="",1,VALUE(AE6)) -> 1 | AX6: =IF(Y9="",1,VALUE(AF6)) -> 1 | AY6: =IF(Y10="",1,VALUE(AG6)) -> 1 | AZ6: =IF(Y11="",1,VALUE(AH6)) -> 1 | BA6: =IF(Y12="",1,VALUE(AI6)) -> 2 | BB6: =IF(Y13="",1,VALUE(AJ6)) -> 1 | BC6: =IF(Y14="",1,VALUE(AK6)) -> 1 | BD6: =IF(Y15="",1,VALUE(AL6)) -> 1 | BE6: =IF(Y16="",1,VALUE(AM6)) -> 1 | BF6: =IF(Y17="",1,VALUE(AN6)) -> 1 | BG6: =IF(Y18="",1,VALUE(AO6)) -> 1 | BH6: =IF(Y19="",1,VALUE(AP6)) -> 1 | BI6: =IF(Y20="",1,VALUE(AQ6)) -> 1 | BJ6: 2
B7: くさ | D7: △ | E7: ○ | G7: △ | J7: △ | K7: ○ | L7: △ | N7: △ | O7: ○ | Q7: △ | S7: △ | U7: 3 | V7: 7 | W7: 0 | X7: -4 | Y7: =IF(B28=B7,"○",IF(B30=B7,"○","")) ->  | Z7: =IF(C7="○",2,IF(C7="△",0.5,IF(C7="×",0,1))) -> 1 | AA7: 0.5 | AB7: 2 | AC7: 1 | AD7: 0.5 | AE7: 1 | AF7: 1 | AG7: 0.5 | AH7: 2 | AI7: 0.5 | AJ7: 1 | AK7: 0.5 | AL7: 2 | AM7: 1 | AN7: 0.5 | AO7: 1 | AP7: 0.5 | AQ7: 1 | AR7: =IF(Y3="",1,VALUE(Z7)) -> 1 | AS7: =IF(Y4="",1,VALUE(AA7)) -> 1 | AT7: =IF(Y5="",1,VALUE(AB7)) -> 1 | AU7: =IF(Y6="",1,VALUE(AC7)) -> 1 | AV7: =IF(Y7="",1,VALUE(AD7)) -> 1 | AW7: =IF(Y8="",1,VALUE(AE7)) -> 1 | AX7: =IF(Y9="",1,VALUE(AF7)) -> 1 | AY7: =IF(Y10="",1,VALUE(AG7)) -> 1 | AZ7: =IF(Y11="",1,VALUE(AH7)) -> 1 | BA7: =IF(Y12="",1,VALUE(AI7)) -> 0.5 | BB7: =IF(Y13="",1,VALUE(AJ7)) -> 1 | BC7: =IF(Y14="",1,VALUE(AK7)) -> 1 | BD7: =IF(Y15="",1,VALUE(AL7)) -> 1 | BE7: =IF(Y16="",1,VALUE(AM7)) -> 1 | BF7: =IF(Y17="",1,VALUE(AN7)) -> 1 | BG7: =IF(Y18="",1,VALUE(AO7)) -> 1 | BH7: =IF(Y19="",1,VALUE(AP7)) -> 0.5 | BI7: =IF(Y20="",1,VALUE(AQ7)) -> 1 | BJ7: 0.25
B8: こおり | D8: △ | E8: △ | G8: ○ | H8: △ | K8: ○ | L8: ○ | Q8: ○ | S8: △ | U8: 4 | V8: 4 | W8: 0 | X8: 0 | Y8: =IF(B28=B8,"○",IF(B30=B8,"○","")) ->  | Z8: 1 | AA8: 0.5 | AB8: 0.5 | AC8: 1 | AD8: 2 | AE8: 0.5 | AF8: 1 | AG8: 1 | AH8: 2 | AI8: 2 | AJ8: 1 | AK8: 1 | AL8: 1 | AM8: 1 | AN8: 2 | AO8: 1 | AP8: 0.5 | AQ8: 1 | AR8: =IF(Y3="",1,VALUE(Z8)) -> 1 | AS8: =IF(Y4="",1,VALUE(AA8)) -> 1 | AT8: =IF(Y5="",1,VALUE(AB8)) -> 1 | AU8: =IF(Y6="",1,VALUE(AC8)) -> 1 | AV8: =IF(Y7="",1,VALUE(AD8)) -> 1 | AW8: =IF(Y8="",1,VALUE(AE8)) -> 1 | AX8: =IF(Y9="",1,VALUE(AF8)) -> 1 | AY8: =IF(Y10="",1,VALUE(AG8)) -> 1 | AZ8: =IF(Y11="",1,VALUE(AH8)) -> 1 | BA8: =IF(Y12="",1,VALUE(AI8)) -> 2 | BB8: =IF(Y13="",1,VALUE(AJ8)) -> 1 | BC8: =IF(Y14="",1,VALUE(AK8)) -> 1 | BD8: =IF(Y15="",1,VALUE(AL8)) -> 1 | BE8: =IF(Y16="",1,VALUE(AM8)) -> 1 | BF8: =IF(Y17="",1,VALUE(AN8)) -> 1 | BG8: =IF(Y18="",1,VALUE(AO8)) -> 1 | BH8: =IF(Y19="",1,VALUE(AP8)) -> 0.5 | BI8: =IF(Y20="",1,VALUE(AQ8)) -> 1 | BJ8: 1
B9: かくとう | C9: ○ | H9: ○ | J9: △ | L9: △ | M9: △ | N9: △ | O9: ○ | P9: × | R9: ○ | S9: ○ | T9: △ | U9: 5 | V9: 5 | W9: 1 | X9: -2 | Y9: =IF(B28=B9,"○",IF(B30=B9,"○","")) ->  | Z9: 2 | AA9: 1 | AB9: 1 | AC9: 1 | AD9: 1 | AE9: 2 | AF9: 1 | AG9: 0.5 | AH9: 1 | AI9: 0.5 | AJ9: 0.5 | AK9: 0.5 | AL9: 2 | AM9: 0 | AN9: 1 | AO9: 2 | AP9: 2 | AQ9: 0.5 | AR9: =IF(Y3="",1,VALUE(Z9)) -> 1 | AS9: =IF(Y4="",1,VALUE(AA9)) -> 1 | AT9: =IF(Y5="",1,VALUE(AB9)) -> 1 | AU9: =IF(Y6="",1,VALUE(AC9)) -> 1 | AV9: =IF(Y7="",1,VALUE(AD9)) -> 1 | AW9: =IF(Y8="",1,VALUE(AE9)) -> 1 | AX9: =IF(Y9="",1,VALUE(AF9)) -> 1 | AY9: =IF(Y10="",1,VALUE(AG9)) -> 1 | AZ9: =IF(Y11="",1,VALUE(AH9)) -> 1 | BA9: =IF(Y12="",1,VALUE(AI9)) -> 0.5 | BB9: =IF(Y13="",1,VALUE(AJ9)) -> 1 | BC9: =IF(Y14="",1,VALUE(AK9)) -> 1 | BD9: =IF(Y15="",1,VALUE(AL9)) -> 1 | BE9: =IF(Y16="",1,VALUE(AM9)) -> 1 | BF9: =IF(Y17="",1,VALUE(AN9)) -> 1 | BG9: =IF(Y18="",1,VALUE(AO9)) -> 1 | BH9: =IF(Y19="",1,VALUE(AP9)) -> 2 | BI9: =IF(Y20="",1,VALUE(AQ9)) -> 1 | BJ9: 1
B10: どく | G10: ○ | J10: △ | K10: △ | O10: △ | P10: △ | S10: × | T10: ○ | U10: 2 | V10: 4 | W10: 1 | X10: -4 | Y10: =IF(B28=B10,"○",IF(B30=B10,"○","")) ->  | Z10: 1 | AA10: 1 | AB10: 1 | AC10: 1 | AD10: 2 | AE10: 1 | AF10: 1 | AG10: 0.5 | AH10: 0.5 | AI10: 1 | AJ10: 1 | AK10: 1 | AL10: 0.5 | AM10: 0.5 | AN10: 1 | AO10: 1 | AP10: 0 | AQ10: 2 | AR10: =IF(Y3="",1,VALUE(Z10)) -> 1 | AS10: =IF(Y4="",1,VALUE(AA10)) -> 1 | AT10: =IF(Y5="",1,VALUE(AB10)) -> 1 | AU10: =IF(Y6="",1,VALUE(AC10)) -> 1 | AV10: =IF(Y7="",1,VALUE(AD10)) -> 1 | AW10: =IF(Y8="",1,VALUE(AE10)) -> 1 | AX10: =IF(Y9="",1,VALUE(AF10)) -> 1 | AY10: =IF(Y10="",1,VALUE(AG10)) -> 1 | AZ10: =IF(Y11="",1,VALUE(AH10)) -> 1 | BA10: =IF(Y12="",1,VALUE(AI10)) -> 1 | BB10: =IF(Y13="",1,VALUE(AJ10)) -> 1 | BC10: =IF(Y14="",1,VALUE(AK10)) -> 1 | BD10: =IF(Y15="",1,VALUE(AL10)) -> 1 | BE10: =IF(Y16="",1,VALUE(AM10)) -> 1 | BF10: =IF(Y17="",1,VALUE(AN10)) -> 1 | BG10: =IF(Y18="",1,VALUE(AO10)) -> 1 | BH10: =IF(Y19="",1,VALUE(AP10)) -> 0 | BI10: =IF(Y20="",1,VALUE(AQ10)) -> 1 | BJ10: 0
B11: じめん | D11: ○ | F11: ○ | G11: △ | J11: ○ | L11: × | N11: △ | O11: ○ | S11: ○ | U11: 5 | V11: 2 | W11: 1 | X11: 1 | Y11: =IF(B28=B11,"○",IF(B30=B11,"○","")) ->  | Z11: 1 | AA11: 2 | AB11: 1 | AC11: 2 | AD11: 0.5 | AE11: 1 | AF11: 1 | AG11: 2 | AH11: 1 | AI11: 0 | AJ11: 1 | AK11: 0.5 | AL11: 2 | AM11: 1 | AN11: 1 | AO11: 1 | AP11: 2 | AQ11: 1 | AR11: =IF(Y3="",1,VALUE(Z11)) -> 1 | AS11: =IF(Y4="",1,VALUE(AA11)) -> 1 | AT11: =IF(Y5="",1,VALUE(AB11)) -> 1 | AU11: =IF(Y6="",1,VALUE(AC11)) -> 1 | AV11: =IF(Y7="",1,VALUE(AD11)) -> 1 | AW11: =IF(Y8="",1,VALUE(AE11)) -> 1 | AX11: =IF(Y9="",1,VALUE(AF11)) -> 1 | AY11: =IF(Y10="",1,VALUE(AG11)) -> 1 | AZ11: =IF(Y11="",1,VALUE(AH11)) -> 1 | BA11: =IF(Y12="",1,VALUE(AI11)) -> 0 | BB11: =IF(Y13="",1,VALUE(AJ11)) -> 1 | BC11: =IF(Y14="",1,VALUE(AK11)) -> 1 | BD11: =IF(Y15="",1,VALUE(AL11)) -> 1 | BE11: =IF(Y16="",1,VALUE(AM11)) -> 1 | BF11: =IF(Y17="",1,VALUE(AN11)) -> 1 | BG11: =IF(Y18="",1,VALUE(AO11)) -> 1 | BH11: =IF(Y19="",1,VALUE(AP11)) -> 2 | BI11: =IF(Y20="",1,VALUE(AQ11)) -> 1 | BJ11: 0
B12: ひこう | F12: △ | G12: ○ | I12: ○ | N12: ○ | O12: △ | S12: △ | U12: 3 | V12: 3 | W12: 0 | X12: 0 | Y12: =IF(B28=B12,"○",IF(B30=B12,"○","")) -> ○ | Z12: 1 | AA12: 1 | AB12: 1 | AC12: 0.5 | AD12: 2 | AE12: 1 | AF12: 2 | AG12: 1 | AH12: 1 | AI12: 1 | AJ12: 1 | AK12: 2 | AL12: 0.5 | AM12: 1 | AN12: 1 | AO12: 1 | AP12: 0.5 | AQ12: 1 | AR12: =IF(Y3="",1,VALUE(Z12)) -> 1 | AS12: =IF(Y4="",1,VALUE(AA12)) -> 1 | AT12: =IF(Y5="",1,VALUE(AB12)) -> 1 | AU12: =IF(Y6="",1,VALUE(AC12)) -> 1 | AV12: =IF(Y7="",1,VALUE(AD12)) -> 1 | AW12: =IF(Y8="",1,VALUE(AE12)) -> 1 | AX12: =IF(Y9="",1,VALUE(AF12)) -> 1 | AY12: =IF(Y10="",1,VALUE(AG12)) -> 1 | AZ12: =IF(Y11="",1,VALUE(AH12)) -> 1 | BA12: =IF(Y12="",1,VALUE(AI12)) -> 1 | BB12: =IF(Y13="",1,VALUE(AJ12)) -> 1 | BC12: =IF(Y14="",1,VALUE(AK12)) -> 1 | BD12: =IF(Y15="",1,VALUE(AL12)) -> 1 | BE12: =IF(Y16="",1,VALUE(AM12)) -> 1 | BF12: =IF(Y17="",1,VALUE(AN12)) -> 1 | BG12: =IF(Y18="",1,VALUE(AO12)) -> 1 | BH12: =IF(Y19="",1,VALUE(AP12)) -> 0.5 | BI12: =IF(Y20="",1,VALUE(AQ12)) -> 1 | BJ12: 0.5
B13: エスパー | I13: ○ | J13: ○ | M13: △ | R13: × | S13: △ | U13: 2 | V13: 2 | W13: 1 | X13: -2 | Y13: =IF(B28=B13,"○",IF(B30=B13,"○","")) ->  | Z13: 1 | AA13: 1 | AB13: 1 | AC13: 1 | AD13: 1 | AE13: 1 | AF13: 2 | AG13: 2 | AH13: 1 | AI13: 1 | AJ13: 0.5 | AK13: 1 | AL13: 1 | AM13: 1 | AN13: 1 | AO13: 0 | AP13: 0.5 | AQ13: 1 | AR13: =IF(Y3="",1,VALUE(Z13)) -> 1 | AS13: =IF(Y4="",1,VALUE(AA13)) -> 1 | AT13: =IF(Y5="",1,VALUE(AB13)) -> 1 | AU13: =IF(Y6="",1,VALUE(AC13)) -> 1 | AV13: =IF(Y7="",1,VALUE(AD13)) -> 1 | AW13: =IF(Y8="",1,VALUE(AE13)) -> 1 | AX13: =IF(Y9="",1,VALUE(AF13)) -> 1 | AY13: =IF(Y10="",1,VALUE(AG13)) -> 1 | AZ13: =IF(Y11="",1,VALUE(AH13)) -> 1 | BA13: =IF(Y12="",1,VALUE(AI13)) -> 1 | BB13: =IF(Y13="",1,VALUE(AJ13)) -> 1 | BC13: =IF(Y14="",1,VALUE(AK13)) -> 1 | BD13: =IF(Y15="",1,VALUE(AL13)) -> 1 | BE13: =IF(Y16="",1,VALUE(AM13)) -> 1 | BF13: =IF(Y17="",1,VALUE(AN13)) -> 1 | BG13: =IF(Y18="",1,VALUE(AO13)) -> 1 | BH13: =IF(Y19="",1,VALUE(AP13)) -> 0.5 | BI13: =IF(Y20="",1,VALUE(AQ13)) -> 1 | BJ13: 0.5
B14: むし | D14: △ | G14: ○ | I14: △ | J14: △ | L14: △ | M14: ○ | P14: △ | R14: ○ | S14: △ | T14: △ | U14: 3 | V14: 7 | W14: 0 | X14: -4 | Y14: =IF(B28=B14,"○",IF(B30=B14,"○","")) ->  | Z14: 1 | AA14: 0.5 | AB14: 1 | AC14: 1 | AD14: 2 | AE14: 1 | AF14: 0.5 | AG14: 0.5 | AH14: 1 | AI14: 0.5 | AJ14: 2 | AK14: 1 | AL14: 1 | AM14: 0.5 | AN14: 1 | AO14: 2 | AP14: 0.5 | AQ14: 0.5 | AR14: =IF(Y3="",1,VALUE(Z14)) -> 1 | AS14: =IF(Y4="",1,VALUE(AA14)) -> 1 | AT14: =IF(Y5="",1,VALUE(AB14)) -> 1 | AU14: =IF(Y6="",1,VALUE(AC14)) -> 1 | AV14: =IF(Y7="",1,VALUE(AD14)) -> 1 | AW14: =IF(Y8="",1,VALUE(AE14)) -> 1 | AX14: =IF(Y9="",1,VALUE(AF14)) -> 1 | AY14: =IF(Y10="",1,VALUE(AG14)) -> 1 | AZ14: =IF(Y11="",1,VALUE(AH14)) -> 1 | BA14: =IF(Y12="",1,VALUE(AI14)) -> 0.5 | BB14: =IF(Y13="",1,VALUE(AJ14)) -> 1 | BC14: =IF(Y14="",1,VALUE(AK14)) -> 1 | BD14: =IF(Y15="",1,VALUE(AL14)) -> 1 | BE14: =IF(Y16="",1,VALUE(AM14)) -> 1 | BF14: =IF(Y17="",1,VALUE(AN14)) -> 1 | BG14: =IF(Y18="",1,VALUE(AO14)) -> 1 | BH14: =IF(Y19="",1,VALUE(AP14)) -> 0.5 | BI14: =IF(Y20="",1,VALUE(AQ14)) -> 1 | BJ14: 0.25
B15: いわ | D15: ○ | H15: ○ | I15: △ | K15: △ | L15: ○ | N15: ○ | S15: △ | U15: 4 | V15: 3 | W15: 0 | X15: 1 | Y15: =IF(B28=B15,"○",IF(B30=B15,"○","")) ->  | Z15: 1 | AA15: 2 | AB15: 1 | AC15: 1 | AD15: 1 | AE15: 2 | AF15: 0.5 | AG15: 1 | AH15: 0.5 | AI15: 2 | AJ15: 1 | AK15: 2 | AL15: 1 | AM15: 1 | AN15: 1 | AO15: 1 | AP15: 0.5 | AQ15: 1 | AR15: =IF(Y3="",1,VALUE(Z15)) -> 1 | AS15: =IF(Y4="",1,VALUE(AA15)) -> 1 | AT15: =IF(Y5="",1,VALUE(AB15)) -> 1 | AU15: =IF(Y6="",1,VALUE(AC15)) -> 1 | AV15: =IF(Y7="",1,VALUE(AD15)) -> 1 | AW15: =IF(Y8="",1,VALUE(AE15)) -> 1 | AX15: =IF(Y9="",1,VALUE(AF15)) -> 1 | AY15: =IF(Y10="",1,VALUE(AG15)) -> 1 | AZ15: =IF(Y11="",1,VALUE(AH15)) -> 1 | BA15: =IF(Y12="",1,VALUE(AI15)) -> 2 | BB15: =IF(Y13="",1,VALUE(AJ15)) -> 1 | BC15: =IF(Y14="",1,VALUE(AK15)) -> 1 | BD15: =IF(Y15="",1,VALUE(AL15)) -> 1 | BE15: =IF(Y16="",1,VALUE(AM15)) -> 1 | BF15: =IF(Y17="",1,VALUE(AN15)) -> 1 | BG15: =IF(Y18="",1,VALUE(AO15)) -> 1 | BH15: =IF(Y19="",1,VALUE(AP15)) -> 0.5 | BI15: =IF(Y20="",1,VALUE(AQ15)) -> 1 | BJ15: 1
B16: ゴースト | C16: × | M16: ○ | P16: ○ | R16: △ | U16: 2 | V16: 1 | W16: 0 | X16: 1 | Y16: =IF(B28=B16,"○",IF(B30=B16,"○","")) ->  | Z16: 0 | AA16: 1 | AB16: 1 | AC16: 1 | AD16: 1 | AE16: 1 | AF16: 1 | AG16: 1 | AH16: 1 | AI16: 1 | AJ16: 2 | AK16: 1 | AL16: 1 | AM16: 2 | AN16: 1 | AO16: 0.5 | AP16: 1 | AQ16: 1 | AR16: =IF(Y3="",1,VALUE(Z16)) -> 1 | AS16: =IF(Y4="",1,VALUE(AA16)) -> 1 | AT16: =IF(Y5="",1,VALUE(AB16)) -> 1 | AU16: =IF(Y6="",1,VALUE(AC16)) -> 1 | AV16: =IF(Y7="",1,VALUE(AD16)) -> 1 | AW16: =IF(Y8="",1,VALUE(AE16)) -> 1 | AX16: =IF(Y9="",1,VALUE(AF16)) -> 1 | AY16: =IF(Y10="",1,VALUE(AG16)) -> 1 | AZ16: =IF(Y11="",1,VALUE(AH16)) -> 1 | BA16: =IF(Y12="",1,VALUE(AI16)) -> 1 | BB16: =IF(Y13="",1,VALUE(AJ16)) -> 1 | BC16: =IF(Y14="",1,VALUE(AK16)) -> 1 | BD16: =IF(Y15="",1,VALUE(AL16)) -> 1 | BE16: =IF(Y16="",1,VALUE(AM16)) -> 1 | BF16: =IF(Y17="",1,VALUE(AN16)) -> 1 | BG16: =IF(Y18="",1,VALUE(AO16)) -> 1 | BH16: =IF(Y19="",1,VALUE(AP16)) -> 1 | BI16: =IF(Y20="",1,VALUE(AQ16)) -> 1 | BJ16: 1
B17: ドラゴン | Q17: ○ | S17: △ | T17: × | U17: 1 | V17: 1 | W17: 1 | X17: -2 | Y17: =IF(B28=B17,"○",IF(B30=B17,"○","")) ->  | Z17: 1 | AA17: 1 | AB17: 1 | AC17: 1 | AD17: 1 | AE17: 1 | AF17: 1 | AG17: 1 | AH17: 1 | AI17: 1 | AJ17: 1 | AK17: 1 | AL17: 1 | AM17: 1 | AN17: 2 | AO17: 1 | AP17: 0.5 | AQ17: 0 | AR17: =IF(Y3="",1,VALUE(Z17)) -> 1 | AS17: =IF(Y4="",1,VALUE(AA17)) -> 1 | AT17: =IF(Y5="",1,VALUE(AB17)) -> 1 | AU17: =IF(Y6="",1,VALUE(AC17)) -> 1 | AV17: =IF(Y7="",1,VALUE(AD17)) -> 1 | AW17: =IF(Y8="",1,VALUE(AE17)) -> 1 | AX17: =IF(Y9="",1,VALUE(AF17)) -> 1 | AY17: =IF(Y10="",1,VALUE(AG17)) -> 1 | AZ17: =IF(Y11="",1,VALUE(AH17)) -> 1 | BA17: =IF(Y12="",1,VALUE(AI17)) -> 1 | BB17: =IF(Y13="",1,VALUE(AJ17)) -> 1 | BC17: =IF(Y14="",1,VALUE(AK17)) -> 1 | BD17: =IF(Y15="",1,VALUE(AL17)) -> 1 | BE17: =IF(Y16="",1,VALUE(AM17)) -> 1 | BF17: =IF(Y17="",1,VALUE(AN17)) -> 1 | BG17: =IF(Y18="",1,VALUE(AO17)) -> 1 | BH17: =IF(Y19="",1,VALUE(AP17)) -> 0.5 | BI17: =IF(Y20="",1,VALUE(AQ17)) -> 1 | BJ17: 0.5
B18: あく | I18: △ | M18: ○ | P18: ○ | R18: △ | T18: △ | U18: 2 | V18: 3 | W18: 0 | X18: -1 | Y18: =IF(B28=B18,"○",IF(B30=B18,"○","")) ->  | Z18: 1 | AA18: 1 | AB18: 1 | AC18: =IF(F18="○",2,IF(F18="△",0.5,IF(F18="×",0,1))) -> 1 | AD18: 1 | AE18: 1 | AF18: 0.5 | AG18: 1 | AH18: 1 | AI18: 1 | AJ18: 2 | AK18: 1 | AL18: 1 | AM18: 2 | AN18: 1 | AO18: 0.5 | AP18: 1 | AQ18: 0.5 | AR18: =IF(Y3="",1,VALUE(Z18)) -> 1 | AS18: =IF(Y4="",1,VALUE(AA18)) -> 1 | AT18: =IF(Y5="",1,VALUE(AB18)) -> 1 | AU18: =IF(Y6="",1,VALUE(AC18)) -> 1 | AV18: =IF(Y7="",1,VALUE(AD18)) -> 1 | AW18: =IF(Y8="",1,VALUE(AE18)) -> 1 | AX18: =IF(Y9="",1,VALUE(AF18)) -> 1 | AY18: =IF(Y10="",1,VALUE(AG18)) -> 1 | AZ18: =IF(Y11="",1,VALUE(AH18)) -> 1 | BA18: =IF(Y12="",1,VALUE(AI18)) -> 1 | BB18: =IF(Y13="",1,VALUE(AJ18)) -> 1 | BC18: =IF(Y14="",1,VALUE(AK18)) -> 1 | BD18: =IF(Y15="",1,VALUE(AL18)) -> 1 | BE18: =IF(Y16="",1,VALUE(AM18)) -> 1 | BF18: =IF(Y17="",1,VALUE(AN18)) -> 1 | BG18: =IF(Y18="",1,VALUE(AO18)) -> 1 | BH18: =IF(Y19="",1,VALUE(AP18)) -> 1 | BI18: =IF(Y20="",1,VALUE(AQ18)) -> 1 | BJ18: 1
B19: はがね | D19: △ | E19: △ | F19: △ | H19: ○ | O19: ○ | S19: △ | T19: ○ | U19: 3 | V19: 4 | W19: 0 | X19: -1 | Y19: =IF(B28=B19,"○",IF(B30=B19,"○","")) -> ○ | Z19: 1 | AA19: 0.5 | AB19: 0.5 | AC19: 0.5 | AD19: 1 | AE19: 2 | AF19: 1 | AG19: 1 | AH19: 1 | AI19: 1 | AJ19: 1 | AK19: 1 | AL19: 2 | AM19: 1 | AN19: 1 | AO19: 1 | AP19: 0.5 | AQ19: 2 | AR19: =IF(Y3="",1,VALUE(Z19)) -> 1 | AS19: =IF(Y4="",1,VALUE(AA19)) -> 1 | AT19: =IF(Y5="",1,VALUE(AB19)) -> 1 | AU19: =IF(Y6="",1,VALUE(AC19)) -> 1 | AV19: =IF(Y7="",1,VALUE(AD19)) -> 1 | AW19: =IF(Y8="",1,VALUE(AE19)) -> 1 | AX19: =IF(Y9="",1,VALUE(AF19)) -> 1 | AY19: =IF(Y10="",1,VALUE(AG19)) -> 1 | AZ19: =IF(Y11="",1,VALUE(AH19)) -> 1 | BA19: =IF(Y12="",1,VALUE(AI19)) -> 1 | BB19: =IF(Y13="",1,VALUE(AJ19)) -> 1 | BC19: =IF(Y14="",1,VALUE(AK19)) -> 1 | BD19: =IF(Y15="",1,VALUE(AL19)) -> 1 | BE19: =IF(Y16="",1,VALUE(AM19)) -> 1 | BF19: =IF(Y17="",1,VALUE(AN19)) -> 1 | BG19: =IF(Y18="",1,VALUE(AO19)) -> 1 | BH19: =IF(Y19="",1,VALUE(AP19)) -> 0.5 | BI19: =IF(Y20="",1,VALUE(AQ19)) -> 1 | BJ19: 0.5
B20: フェアリー | D20: △ | I20: ○ | J20: △ | Q20: ○ | R20: ○ | S20: △ | U20: 3 | V20: 3 | W20: 0 | X20: 0 | Y20: =IF(B28=B20,"○",IF(B30=B20,"○","")) ->  | Z20: 1 | AA20: 0.5 | AB20: 1 | AC20: 1 | AD20: 1 | AE20: 1 | AF20: 2 | AG20: 0.5 | AH20: 1 | AI20: 1 | AJ20: 1 | AK20: 1 | AL20: 1 | AM20: 1 | AN20: 2 | AO20: 2 | AP20: 0.5 | AQ20: 1 | AR20: =IF(Y3="",1,VALUE(Z20)) -> 1 | AS20: =IF(Y4="",1,VALUE(AA20)) -> 1 | AT20: =IF(Y5="",1,VALUE(AB20)) -> 1 | AU20: =IF(Y6="",1,VALUE(AC20)) -> 1 | AV20: =IF(Y7="",1,VALUE(AD20)) -> 1 | AW20: =IF(Y8="",1,VALUE(AE20)) -> 1 | AX20: =IF(Y9="",1,VALUE(AF20)) -> 1 | AY20: =IF(Y10="",1,VALUE(AG20)) -> 1 | AZ20: =IF(Y11="",1,VALUE(AH20)) -> 1 | BA20: =IF(Y12="",1,VALUE(AI20)) -> 1 | BB20: =IF(Y13="",1,VALUE(AJ20)) -> 1 | BC20: =IF(Y14="",1,VALUE(AK20)) -> 1 | BD20: =IF(Y15="",1,VALUE(AL20)) -> 1 | BE20: =IF(Y16="",1,VALUE(AM20)) -> 1 | BF20: =IF(Y17="",1,VALUE(AN20)) -> 1 | BG20: =IF(Y18="",1,VALUE(AO20)) -> 1 | BH20: =IF(Y19="",1,VALUE(AP20)) -> 0.5 | BI20: =IF(Y20="",1,VALUE(AQ20)) -> 1 | BJ20: 0.5
B21: ばつぐん | C21: =COUNTIF(C3:C20,"○") -> 1 | D21: =COUNTIF(D3:D20,"○") -> 3 | E21: =COUNTIF(E3:E20,"○") -> 2 | F21: 1 | G21: 5 | H21: 4 | I21: 3 | J21: 2 | K21: 3 | L21: 3 | M21: 3 | N21: 3 | O21: 5 | P21: 2 | Q21: 3 | R21: 3 | S21: 3 | T21: 2
B22: いまいち | C22: =COUNTIF(C3:C20,"△") -> 0 | D22: =COUNTIF(D3:D20,"△") -> 6 | E22: 4 | F22: 3 | G22: 4 | H22: 1 | I22: 3 | J22: 5 | K22: 2 | L22: 3 | M22: 2 | N22: 3 | O22: 4 | P22: 2 | Q22: 4 | R22: 2 | S22: 10 | T22: 3
B23: こうかがない | C23: =COUNTIF(C3:C20,"×") -> 1 | D23: =COUNTIF(D3:D20,"×") -> 0 | E23: 0 | F23: 0 | G23: 0 | H23: 0 | I23: 0 | J23: 0 | K23: 1 | L23: 1 | M23: 0 | N23: 0 | O23: 0 | P23: 2 | Q23: 0 | R23: 1 | S23: 1 | T23: 1
C24: =2*C23+C22-C21 -> 1 | D24: =2*D23+D22-D21 -> 3 | E24: 2 | F24: 2 | G24: -1 | H24: -3 | I24: 0 | J24: 3 | K24: 1 | L24: 2 | M24: -1 | N24: 0 | O24: -1 | P24: 4 | Q24: 1 | R24: 1 | S24: 9 | T24: 3
B27: タイプ１ | C27: 普 | D27: 炎 | E27: 水 | F27: 電 | G27: 草 | H27: 氷 | I27: 格 | J27: 毒 | K27: 地 | L27: 飛 | M27: 超 | N27: 虫 | O27: 岩 | P27: 幽 | Q27: 竜 | R27: 悪 | S27: 鋼 | T27: 妖 | U27: フライングプレス
B28: ひこう | C28: =IF(BJ3=0,"×",IF(BJ3=0.25,"▲",IF(BJ3=0.5,"△",IF(BJ3=1,"",IF(BJ3=2,"○",IF(BJ3=4,"◎",)))))) -> △ | D28: =IF(BJ4=0,"×",IF(BJ4=0.25,"▲",IF(BJ4=0.5,"△",IF(BJ4=1,"",IF(BJ4=2,"○",IF(BJ4=4,"◎",)))))) -> ○ | E28: =IF(BJ5=0,"×",IF(BJ5=0.25,"▲",IF(BJ5=0.5,"△",IF(BJ5=1,"",IF(BJ5=2,"○",IF(BJ5=4,"◎",)))))) ->  | F28: =IF(BJ6=0,"×",IF(BJ6=0.25,"▲",IF(BJ6=0.5,"△",IF(BJ6=1,"",IF(BJ6=2,"○",IF(BJ6=4,"◎",)))))) -> ○ | G28: =IF(BJ7=0,"×",IF(BJ7=0.25,"▲",IF(BJ7=0.5,"△",IF(BJ7=1,"",IF(BJ7=2,"○",IF(BJ7=4,"◎",)))))) -> ▲ | H28: =IF(BJ8=0,"×",IF(BJ8=0.25,"▲",IF(BJ8=0.5,"△",IF(BJ8=1,"",IF(BJ8=2,"○",IF(BJ8=4,"◎",)))))) ->  | I28: =IF(BJ9=0,"×",IF(BJ9=0.25,"▲",IF(BJ9=0.5,"△",IF(BJ9=1,"",IF(BJ9=2,"○",IF(BJ9=4,"◎",)))))) ->  | J28: =IF(BJ10=0,"×",IF(BJ10=0.25,"▲",IF(BJ10=0.5,"△",IF(BJ10=1,"",IF(BJ10=2,"○",IF(BJ10=4,"◎",)))))) -> × | K28: =IF(BJ11=0,"×",IF(BJ11=0.25,"▲",IF(BJ11=0.5,"△",IF(BJ11=1,"",IF(BJ11=2,"○",IF(BJ11=4,"◎",)))))) -> × | L28: =IF(BJ12=0,"×",IF(BJ12=0.25,"▲",IF(BJ12=0.5,"△",IF(BJ12=1,"",IF(BJ12=2,"○",IF(BJ12=4,"◎",)))))) -> △ | M28: =IF(BJ13=0,"×",IF(BJ13=0.25,"▲",IF(BJ13=0.5,"△",IF(BJ13=1,"",IF(BJ13=2,"○",IF(BJ13=4,"◎",)))))) -> △ | N28: =IF(BJ14=0,"×",IF(BJ14=0.25,"▲",IF(BJ14=0.5,"△",IF(BJ14=1,"",IF(BJ14=2,"○",IF(BJ14=4,"◎",)))))) -> ▲ | O28: =IF(BJ15=0,"×",IF(BJ15=0.25,"▲",IF(BJ15=0.5,"△",IF(BJ15=1,"",IF(BJ15=2,"○",IF(BJ15=4,"◎",)))))) ->  | P28: =IF(BJ16=0,"×",IF(BJ16=0.25,"▲",IF(BJ16=0.5,"△",IF(BJ16=1,"",IF(BJ16=2,"○",IF(BJ16=4,"◎",)))))) ->  | Q28: =IF(BJ17=0,"×",IF(BJ17=0.25,"▲",IF(BJ17=0.5,"△",IF(BJ17=1,"",IF(BJ17=2,"○",IF(BJ17=4,"◎",)))))) -> △ | R28: =IF(BJ18=0,"×",IF(BJ18=0.25,"▲",IF(BJ18=0.5,"△",IF(BJ18=1,"",IF(BJ18=2,"○",IF(BJ18=4,"◎",)))))) ->  | S28: =IF(BJ19=0,"×",IF(BJ19=0.25,"▲",IF(BJ19=0.5,"△",IF(BJ19=1,"",IF(BJ19=2,"○",IF(BJ19=4,"◎",)))))) -> △ | T28: =IF(BJ20=0,"×",IF(BJ20=0.25,"▲",IF(BJ20=0.5,"△",IF(BJ20=1,"",IF(BJ20=2,"○",IF(BJ20=4,"◎",)))))) -> △ | U28: =フライングプレス!O7 -> △
B29: タイプ2 | C29: ◎……4倍 | F29: △……0.5倍 | J29: ×……無効
B30: はがね | C30: ○……2倍 | F30: ▲……0.25倍 | J30: 無印……等倍

Sheet TypeData (hidden)
B2: 受け 攻め | C2: 普 | D2: 炎 | E2: 水 | F2: 電 | G2: 草 | H2: 氷 | I2: 格 | J2: 毒 | K2: 地 | L2: 飛 | M2: 超 | N2: 虫 | O2: 岩 | P2: 幽 | Q2: 竜 | R2: 悪 | S2: 鋼 | T2: 妖 | U2: ○ | V2: △ | W2: ×
B3: ノーマル | O3: △ | P3: × | S3: △ | U3: =COUNTIF(C3:T3,"○") -> 0 | V3: =COUNTIF(D3:U3,"△") -> 2 | W3: =COUNTIF(E3:V3,"×") -> 1 | X3: =U3-V3-2*W3 -> -4 | Y3: =IF(B28=B3,"○",IF(B30=B3,"○","")) ->  | Z3: =IF(C3="○",2,IF(C3="△",0.5,IF(C3="×",0,1))) -> 1 | AA3: 1 | AB3: 1 | AC3: 1 | AD3: 1 | AE3: 1 | AF3: 1 | AG3: 1 | AH3: 1 | AI3: 1 | AJ3: 1 | AK3: 1 | AL3: 0.5 | AM3: 0 | AN3: 1 | AO3: 1 | AP3: =IF(S3="○",2,IF(S3="△",0.5,IF(S3="×",0,1))) -> 0.5 | AQ3: 1 | AR3: =IF(Y3="",1,VALUE(Z3)) -> 1 | AS3: =IF(Y4="",1,VALUE(AA3)) -> 1 | AT3: =IF(Y5="",1,VALUE(AB3)) -> 1 | AU3: =IF(Y6="",1,VALUE(AC3)) -> 1 | AV3: =IF(Y7="",1,VALUE(AD3)) -> 1 | AW3: =IF(Y8="",1,VALUE(AE3)) -> 1 | AX3: =IF(Y9="",1,VALUE(AF3)) -> 1 | AY3: =IF(Y10="",1,VALUE(AG3)) -> 1 | AZ3: =IF(Y11="",1,VALUE(AH3)) -> 1 | BA3: =IF(Y12="",1,VALUE(AI3)) -> 1 | BB3: =IF(Y13="",1,VALUE(AJ3)) -> 1 | BC3: =IF(Y14="",1,VALUE(AK3)) -> 1 | BD3: =IF(Y15="",1,VALUE(AL3)) -> 1 | BE3: =IF(Y16="",1,VALUE(AM3)) -> 1 | BF3: =IF(Y17="",1,VALUE(AN3)) -> 1 | BG3: =IF(Y18="",1,VALUE(AO3)) -> 1 | BH3: =IF(Y19="",1,VALUE(AP3)) -> 0.5 | BI3: =IF(Y20="",1,VALUE(AQ3)) -> 1 | BJ3: =PRODUCT(AR3:BI3) -> 0.5
B4: ほのお | D4: △ | E4: △ | G4: ○ | H4: ○ | N4: ○ | O4: △ | Q4: △ | S4: ○ | U4: =COUNTIF(C4:T4,"○") -> 4 | V4: =COUNTIF(D4:U4,"△") -> 4 | W4: =COUNTIF(E4:V4,"×") -> 0 | X4: =U4-V4-2*W4 -> 0 | Y4: =IF(B28=B4,"○",IF(B30=B4,"○","")) ->  | Z4: =IF(C4="○",2,IF(C4="△",0.5,IF(C4="×",0,1))) -> 1 | AA4: 0.5 | AB4: 0.5 | AC4: 1 | AD4: 2 | AE4: 2 | AF4: 1 | AG4: 1 | AH4: 1 | AI4: 1 | AJ4: 1 | AK4: 2 | AL4: =IF(O4="○",2,IF(O4="△",0.5,IF(O4="×",0,1))) -> 0.5 | AM4: 1 | AN4: 0.5 | AO4: 1 | AP4: 2 | AQ4: 1 | AR4: =IF(Y3="",1,VALUE(Z4)) -> 1 | AS4: =IF(Y4="",1,VALUE(AA4)) -> 1 | AT4: =IF(Y5="",1,VALUE(AB4)) -> 1 | AU4: =IF(Y6="",1,VALUE(AC4)) -> 1 | AV4: =IF(Y7="",1,VALUE(AD4)) -> 1 | AW4: =IF(Y8="",1,VALUE(AE4)) -> 1 | AX4: =IF(Y9="",1,VALUE(AF4)) -> 1 | AY4: =IF(Y10="",1,VALUE(AG4)) -> 1 | AZ4: =IF(Y11="",1,VALUE(AH4)) -> 1 | BA4: =IF(Y12="",1,VALUE(AI4)) -> 1 | BB4: =IF(Y13="",1,VALUE(AJ4)) -> 1 | BC4: =IF(Y14="",1,VALUE(AK4)) -> 1 | BD4: =IF(Y15="",1,VALUE(AL4)) -> 1 | BE4: =IF(Y16="",1,VALUE(AM4)) -> 1 | BF4: =IF(Y17="",1,VALUE(AN4)) -> 0.5 | BG4: =IF(Y18="",1,VALUE(AO4)) -> 1 | BH4: =IF(Y19="",1,VALUE(AP4)) -> 2 | BI4: =IF(Y20="",1,VALUE(AQ4)) -> 1 | BJ4: =PRODUCT(AR4:BI4) -> 1
B5: みず | D5: ○ | E5: △ | G5: △ | K5: ○ | O5: ○ | Q5: △ | U5: =COUNTIF(C5:T5,"○") -> 3 | V5: 3 | W5: 0 | X5: =U5-V5-2*W5 -> 0 | Y5: =IF(B28=B5,"○",IF(B30=B5,"○","")) ->  | Z5: =IF(C5="○",2,IF(C5="△",0.5,IF(C5="×",0,1))) -> 1 | AA5: 2 | AB5: 0.5 | AC5: 1 | AD5: 0.5 | AE5: 1 | AF5: 1 | AG5: 1 | AH5: 2 | AI5: 1 | AJ5: 1 | AK5: 1 | AL5: =IF(O5="○",2,IF(O5="△",0.5,IF(O5="×",0,1))) -> 2 | AM5: 1 | AN5: 0.5 | AO5: 1 | AP5: 1 | AQ5: 1 | AR5: =IF(Y3="",1,VALUE(Z5)) -> 1 | AS5: =IF(Y4="",1,VALUE(AA5)) -> 1 | AT5: =IF(Y5="",1,VALUE(AB5)) -> 1 | AU5: =IF(Y6="",1,VALUE(AC5)) -> 1 | AV5: =IF(Y7="",1,VALUE(AD5)) -> 1 | AW5: =IF(Y8="",1,VALUE(AE5)) -> 1 | AX5: =IF(Y9="",1,VALUE(AF5)) -> 1 | AY5: =IF(Y10="",1,VALUE(AG5)) -> 1 | AZ5: =IF(Y11="",1,VALUE(AH5)) -> 1 | BA5: =IF(Y12="",1,VALUE(AI5)) -> 1 | BB5: =IF(Y13="",1,VALUE(AJ5)) -> 1 | BC5: =IF(Y14="",1,VALUE(AK5)) -> 1 | BD5: =IF(Y15="",1,VALUE(AL5)) -> 1 | BE5: =IF(Y16="",1,VALUE(AM5)) -> 1 | BF5: =IF(Y17="",1,VALUE(AN5)) -> 0.5 | BG5: =IF(Y18="",1,VALUE(AO5)) -> 1 | BH5: =IF(Y19="",1,VALUE(AP5)) -> 1 | BI5: =IF(Y20="",1,VALUE(AQ5)) -> 1 | BJ5: 0.5
B6: でんき | E6: ○ | F6: △ | G6: △ | K6: × | L6: ○ | Q6: △ | U6: 2 | V6: 3 | W6: 1 | X6: -3 | Y6: =IF(B28=B6,"○",IF(B30=B6,"○","")) ->  | Z6: =IF(C6="○",2,IF(C6="△",0.5,IF(C6="×",0,1))) -> 1 | AA6: 1 | AB6: 2 | AC6: 0.5 | AD6: 0.5 | AE6: 1 | AF6: 1 | AG6: 1 | AH6: 0 | AI6: 2 | AJ6: 1 | AK6: 1 | AL6: =IF(O6="○",2,IF(O6="△",0.5,IF(O6="×",0,1))) -> 1 | AM6: 1 | AN6: 0.5 | AO6: 1 | AP6: 1 | AQ6: 1 | AR6: =IF(Y3="",1,VALUE(Z6)) -> 1 | AS6: =IF(Y4="",1,VALUE(AA6)) -> 1 | AT6: =IF(Y5="",1,VALUE(AB6)) -> 1 | AU6: =IF(Y6="",1,VALUE(AC6)) -> 1 | AV6: =IF(Y7="",1,VALUE(AD6)) -> 1 | AW6: =IF(Y8="",1,VALUE(AE6)) -> 1 | AX6: =IF(Y9="",1,VALUE(AF6)) -> 1 | AY6: =IF(Y10="",1,VALUE(AG6)) -> 1 | AZ6: =IF(Y11="",1,VALUE(AH6)) -> 1 | BA6: =IF(Y12="",1,VALUE(AI6)) -> 1 | BB6: =IF(Y13="",1,VALUE(AJ6)) -> 1 | BC6: =IF(Y14="",1,VALUE(AK6)) -> 1 | BD6: =IF(Y15="",1,VALUE(AL6)) -> 1 | BE6: =IF(Y16="",1,VALUE(AM6)) -> 1 | BF6: =IF(Y17="",1,VALUE(AN6)) -> 0.5 | BG6: =IF(Y18="",1,VALUE(AO6)) -> 1 | BH6: =IF(Y19="",1,VALUE(AP6)) -> 1 | BI6: =IF(Y20="",1,VALUE(AQ6)) -> 1 | BJ6: 0.5
B7: くさ | D7: △ | E7: ○ | G7: △ | J7: △ | K7: ○ | L7: △ | N7: △ | O7: ○ | Q7: △ | S7: △ | U7: 3 | V7: 7 | W7: 0 | X7: -4 | Y7: =IF(B28=B7,"○",IF(B30=B7,"○","")) ->  | Z7: =IF(C7="○",2,IF(C7="△",0.5,IF(C7="×",0,1))) -> 1 | AA7: 0.5 | AB7: 2 | AC7: 1 | AD7: 0.5 | AE7: 1 | AF7: 1 | AG7: 0.5 | AH7: 2 | AI7: 0.5 | AJ7: 1 | AK7: 0.5 | AL7: 2 | AM7: 1 | AN7: 0.5 | AO7: 1 | AP7: 0.5 | AQ7: 1 | AR7: =IF(Y3="",1,VALUE(Z7)) -> 1 | AS7: =IF(Y4="",1,VALUE(AA7)) -> 1 | AT7: =IF(Y5="",1,VALUE(AB7)) -> 1 | AU7: =IF(Y6="",1,VALUE(AC7)) -> 1 | AV7: =IF(Y7="",1,VALUE(AD7)) -> 1 | AW7: =IF(Y8="",1,VALUE(AE7)) -> 1 | AX7: =IF(Y9="",1,VALUE(AF7)) -> 1 | AY7: =IF(Y10="",1,VALUE(AG7)) -> 1 | AZ7: =IF(Y11="",1,VALUE(AH7)) -> 1 | BA7: =IF(Y12="",1,VALUE(AI7)) -> 1 | BB7: =IF(Y13="",1,VALUE(AJ7)) -> 1 | BC7: =IF(Y14="",1,VALUE(AK7)) -> 1 | BD7: =IF(Y15="",1,VALUE(AL7)) -> 1 | BE7: =IF(Y16="",1,VALUE(AM7)) -> 1 | BF7: =IF(Y17="",1,VALUE(AN7)) -> 0.5 | BG7: =IF(Y18="",1,VALUE(AO7)) -> 1 | BH7: =IF(Y19="",1,VALUE(AP7)) -> 0.5 | BI7: =IF(Y20="",1,VALUE(AQ7)) -> 1 | BJ7: 0.25
B8: こおり | D8: △ | E8: △ | G8: ○ | H8: △ | K8: ○ | L8: ○ | Q8: ○ | S8: △ | U8: 4 | V8: 4 | W8: 0 | X8: 0 | Y8: =IF(B28=B8,"○",IF(B30=B8,"○","")) ->  | Z8: 1 | AA8: 0.5 | AB8: 0.5 | AC8: 1 | AD8: 2 | AE8: 0.5 | AF8: 1 | AG8: 1 | AH8: 2 | AI8: 2 | AJ8: 1 | AK8: 1 | AL8: 1 | AM8: 1 | AN8: 2 | AO8: 1 | AP8: 0.5 | AQ8: 1 | AR8: =IF(Y3="",1,VALUE(Z8)) -> 1 | AS8: =IF(Y4="",1,VALUE(AA8)) -> 1 | AT8: =IF(Y5="",1,VALUE(AB8)) -> 1 | AU8: =IF(Y6="",1,VALUE(AC8)) -> 1 | AV8: =IF(Y7="",1,VALUE(AD8)) -> 1 | AW8: =IF(Y8="",1,VALUE(AE8)) -> 1 | AX8: =IF(Y9="",1,VALUE(AF8)) -> 1 | AY8: =IF(Y10="",1,VALUE(AG8)) -> 1 | AZ8: =IF(Y11="",1,VALUE(AH8)) -> 1 | BA8: =IF(Y12="",1,VALUE(AI8)) -> 1 | BB8: =IF(Y13="",1,VALUE(AJ8)) -> 1 | BC8: =IF(Y14="",1,VALUE(AK8)) -> 1 | BD8: =IF(Y15="",1,VALUE(AL8)) -> 1 | BE8: =IF(Y16="",1,VALUE(AM8)) -> 1 | BF8: =IF(Y17="",1,VALUE(AN8)) -> 2 | BG8: =IF(Y18="",1,VALUE(AO8)) -> 1 | BH8: =IF(Y19="",1,VALUE(AP8)) -> 0.5 | BI8: =IF(Y20="",1,VALUE(AQ8)) -> 1 | BJ8: 1
B9: かくとう | C9: ○ | H9: ○ | J9: △ | L9: △ | M9: △ | N9: △ | O9: ○ | P9: × | R9: ○ | S9: ○ | T9: △ | U9: 5 | V9: 5 | W9: 1 | X9: -2 | Y9: =IF(B28=B9,"○",IF(B30=B9,"○","")) ->  | Z9: 2 | AA9: 1 | AB9: 1 | AC9: 1 | AD9: 1 | AE9: 2 | AF9: 1 | AG9: 0.5 | AH9: 1 | AI9: 0.5 | AJ9: 0.5 | AK9: 0.5 | AL9: 2 | AM9: 0 | AN9: 1 | AO9: 2 | AP9: 2 | AQ9: 0.5 | AR9: =IF(Y3="",1,VALUE(Z9)) -> 1 | AS9: =IF(Y4="",1,VALUE(AA9)) -> 1 | AT9: =IF(Y5="",1,VALUE(AB9)) -> 1 | AU9: =IF(Y6="",1,VALUE(AC9)) -> 1 | AV9: =IF(Y7="",1,VALUE(AD9)) -> 1 | AW9: =IF(Y8="",1,VALUE(AE9)) -> 1 | AX9: =IF(Y9="",1,VALUE(AF9)) -> 1 | AY9: =IF(Y10="",1,VALUE(AG9)) -> 1 | AZ9: =IF(Y11="",1,VALUE(AH9)) -> 1 | BA9: =IF(Y12="",1,VALUE(AI9)) -> 1 | BB9: =IF(Y13="",1,VALUE(AJ9)) -> 1 | BC9: =IF(Y14="",1,VALUE(AK9)) -> 1 | BD9: =IF(Y15="",1,VALUE(AL9)) -> 1 | BE9: =IF(Y16="",1,VALUE(AM9)) -> 1 | BF9: =IF(Y17="",1,VALUE(AN9)) -> 1 | BG9: =IF(Y18="",1,VALUE(AO9)) -> 1 | BH9: =IF(Y19="",1,VALUE(AP9)) -> 2 | BI9: =IF(Y20="",1,VALUE(AQ9)) -> 1 | BJ9: 2
B10: どく | G10: ○ | J10: △ | K10: △ | O10: △ | P10: △ | S10: × | T10: ○ | U10: 2 | V10: 4 | W10: 1 | X10: -4 | Y10: =IF(B28=B10,"○",IF(B30=B10,"○","")) ->  | Z10: 1 | AA10: 1 | AB10: 1 | AC10: 1 | AD10: 2 | AE10: 1 | AF10: 1 | AG10: 0.5 | AH10: 0.5 | AI10: 1 | AJ10: 1 | AK10: 1 | AL10: 0.5 | AM10: 0.5 | AN10: 1 | AO10: 1 | AP10: 0 | AQ10: 2 | AR10: =IF(Y3="",1,VALUE(Z10)) -> 1 | AS10: =IF(Y4="",1,VALUE(AA10)) -> 1 | AT10: =IF(Y5="",1,VALUE(AB10)) -> 1 | AU10: =IF(Y6="",1,VALUE(AC10)) -> 1 | AV10: =IF(Y7="",1,VALUE(AD10)) -> 1 | AW10: =IF(Y8="",1,VALUE(AE10)) -> 1 | AX10: =IF(Y9="",1,VALUE(AF10)) -> 1 | AY10: =IF(Y10="",1,VALUE(AG10)) -> 1 | AZ10: =IF(Y11="",1,VALUE(AH10)) -> 1 | BA10: =IF(Y12="",1,VALUE(AI10)) -> 1 | BB10: =IF(Y13="",1,VALUE(AJ10)) -> 1 | BC10: =IF(Y14="",1,VALUE(AK10)) -> 1 | BD10: =IF(Y15="",1,VALUE(AL10)) -> 1 | BE10: =IF(Y16="",1,VALUE(AM10)) -> 1 | BF10: =IF(Y17="",1,VALUE(AN10)) -> 1 | BG10: =IF(Y18="",1,VALUE(AO10)) -> 1 | BH10: =IF(Y19="",1,VALUE(AP10)) -> 0 | BI10: =IF(Y20="",1,VALUE(AQ10)) -> 1 | BJ10: 0
B11: じめん | D11: ○ | F11: ○ | G11: △ | J11: ○ | L11: × | N11: △ | O11: ○ | S11: ○ | U11: 5 | V11: 2 | W11: 1 | X11: 1 | Y11: =IF(B28=B11,"○",IF(B30=B11,"○","")) ->  | Z11: 1 | AA11: 2 | AB11: 1 | AC11: 2 | AD11: 0.5 | AE11: 1 | AF11: 1 | AG11: 2 | AH11: 1 | AI11: 0 | AJ11: 1 | AK11: 0.5 | AL11: 2 | AM11: 1 | AN11: 1 | AO11: 1 | AP11: 2 | AQ11: 1 | AR11: =IF(Y3="",1,VALUE(Z11)) -> 1 | AS11: =IF(Y4="",1,VALUE(AA11)) -> 1 | AT11: =IF(Y5="",1,VALUE(AB11)) -> 1 | AU11: =IF(Y6="",1,VALUE(AC11)) -> 1 | AV11: =IF(Y7="",1,VALUE(AD11)) -> 1 | AW11: =IF(Y8="",1,VALUE(AE11)) -> 1 | AX11: =IF(Y9="",1,VALUE(AF11)) -> 1 | AY11: =IF(Y10="",1,VALUE(AG11)) -> 1 | AZ11: =IF(Y11="",1,VALUE(AH11)) -> 1 | BA11: =IF(Y12="",1,VALUE(AI11)) -> 1 | BB11: =IF(Y13="",1,VALUE(AJ11)) -> 1 | BC11: =IF(Y14="",1,VALUE(AK11)) -> 1 | BD11: =IF(Y15="",1,VALUE(AL11)) -> 1 | BE11: =IF(Y16="",1,VALUE(AM11)) -> 1 | BF11: =IF(Y17="",1,VALUE(AN11)) -> 1 | BG11: =IF(Y18="",1,VALUE(AO11)) -> 1 | BH11: =IF(Y19="",1,VALUE(AP11)) -> 2 | BI11: =IF(Y20="",1,VALUE(AQ11)) -> 1 | BJ11: 2
B12: ひこう | F12: △ | G12: ○ | I12: ○ | N12: ○ | O12: △ | S12: △ | U12: 3 | V12: 3 | W12: 0 | X12: 0 | Y12: =IF(B28=B12,"○",IF(B30=B12,"○","")) ->  | Z12: 1 | AA12: 1 | AB12: 1 | AC12: 0.5 | AD12: 2 | AE12: 1 | AF12: 2 | AG12: 1 | AH12: 1 | AI12: 1 | AJ12: 1 | AK12: 2 | AL12: 0.5 | AM12: 1 | AN12: 1 | AO12: 1 | AP12: 0.5 | AQ12: 1 | AR12: =IF(Y3="",1,VALUE(Z12)) -> 1 | AS12: =IF(Y4="",1,VALUE(AA12)) -> 1 | AT12: =IF(Y5="",1,VALUE(AB12)) -> 1 | AU12: =IF(Y6="",1,VALUE(AC12)) -> 1 | AV12: =IF(Y7="",1,VALUE(AD12)) -> 1 | AW12: =IF(Y8="",1,VALUE(AE12)) -> 1 | AX12: =IF(Y9="",1,VALUE(AF12)) -> 1 | AY12: =IF(Y10="",1,VALUE(AG12)) -> 1 | AZ12: =IF(Y11="",1,VALUE(AH12)) -> 1 | BA12: =IF(Y12="",1,VALUE(AI12)) -> 1 | BB12: =IF(Y13="",1,VALUE(AJ12)) -> 1 | BC12: =IF(Y14="",1,VALUE(AK12)) -> 1 | BD12: =IF(Y15="",1,VALUE(AL12)) -> 1 | BE12: =IF(Y16="",1,VALUE(AM12)) -> 1 | BF12: =IF(Y17="",1,VALUE(AN12)) -> 1 | BG12: =IF(Y18="",1,VALUE(AO12)) -> 1 | BH12: =IF(Y19="",1,VALUE(AP12)) -> 0.5 | BI12: =IF(Y20="",1,VALUE(AQ12)) -> 1 | BJ12: 0.5
B13: エスパー | I13: ○ | J13: ○ | M13: △ | R13: × | S13: △ | U13: 2 | V13: 2 | W13: 1 | X13: -2 | Y13: =IF(B28=B13,"○",IF(B30=B13,"○","")) ->  | Z13: 1 | AA13: 1 | AB13: 1 | AC13: 1 | AD13: 1 | AE13: 1 | AF13: 2 | AG13: 2 | AH13: 1 | AI13: 1 | AJ13: 0.5 | AK13: 1 | AL13: 1 | AM13: 1 | AN13: 1 | AO13: 0 | AP13: 0.5 | AQ13: 1 | AR13: =IF(Y3="",1,VALUE(Z13)) -> 1 | AS13: =IF(Y4="",1,VALUE(AA13)) -> 1 | AT13: =IF(Y5="",1,VALUE(AB13)) -> 1 | AU13: =IF(Y6="",1,VALUE(AC13)) -> 1 | AV13: =IF(Y7="",1,VALUE(AD13)) -> 1 | AW13: =IF(Y8="",1,VALUE(AE13)) -> 1 | AX13: =IF(Y9="",1,VALUE(AF13)) -> 1 | AY13: =IF(Y10="",1,VALUE(AG13)) -> 1 | AZ13: =IF(Y11="",1,VALUE(AH13)) -> 1 | BA13: =IF(Y12="",1,VALUE(AI13)) -> 1 | BB13: =IF(Y13="",1,VALUE(AJ13)) -> 1 | BC13: =IF(Y14="",1,VALUE(AK13)) -> 1 | BD13: =IF(Y15="",1,VALUE(AL13)) -> 1 | BE13: =IF(Y16="",1,VALUE(AM13)) -> 1 | BF13: =IF(Y17="",1,VALUE(AN13)) -> 1 | BG13: =IF(Y18="",1,VALUE(AO13)) -> 1 | BH13: =IF(Y19="",1,VALUE(AP13)) -> 0.5 | BI13: =IF(Y20="",1,VALUE(AQ13)) -> 1 | BJ13: 0.5
B14: むし | D14: △ | G14: ○ | I14: △ | J14: △ | L14: △ | M14: ○ | P14: △ | R14: ○ | S14: △ | T14: △ | U14: 3 | V14: 7 | W14: 0 | X14: -4 | Y14: =IF(B28=B14,"○",IF(B30=B14,"○","")) ->  | Z14: 1 | AA14: 0.5 | AB14: 1 | AC14: 1 | AD14: 2 | AE14: 1 | AF14: 0.5 | AG14: 0.5 | AH14: 1 | AI14: 0.5 | AJ14: 2 | AK14: 1 | AL14: 1 | AM14: 0.5 | AN14: 1 | AO14: 2 | AP14: 0.5 | AQ14: 0.5 | AR14: =IF(Y3="",1,VALUE(Z14)) -> 1 | AS14: =IF(Y4="",1,VALUE(AA14)) -> 1 | AT14: =IF(Y5="",1,VALUE(AB14)) -> 1 | AU14: =IF(Y6="",1,VALUE(AC14)) -> 1 | AV14: =IF(Y7="",1,VALUE(AD14)) -> 1 | AW14: =IF(Y8="",1,VALUE(AE14)) -> 1 | AX14: =IF(Y9="",1,VALUE(AF14)) -> 1 | AY14: =IF(Y10="",1,VALUE(AG14)) -> 1 | AZ14: =IF(Y11="",1,VALUE(AH14)) -> 1 | BA14: =IF(Y12="",1,VALUE(AI14)) -> 1 | BB14: =IF(Y13="",1,VALUE(AJ14)) -> 1 | BC14: =IF(Y14="",1,VALUE(AK14)) -> 1 | BD14: =IF(Y15="",1,VALUE(AL14)) -> 1 | BE14: =IF(Y16="",1,VALUE(AM14)) -> 1 | BF14: =IF(Y17="",1,VALUE(AN14)) -> 1 | BG14: =IF(Y18="",1,VALUE(AO14)) -> 1 | BH14: =IF(Y19="",1,VALUE(AP14)) -> 0.5 | BI14: =IF(Y20="",1,VALUE(AQ14)) -> 1 | BJ14: 0.5
B15: いわ | D15: ○ | H15: ○ | I15: △ | K15: △ | L15: ○ | N15: ○ | S15: △ | U15: 4 | V15: 3 | W15: 0 | X15: 1 | Y15: =IF(B28=B15,"○",IF(B30=B15,"○","")) ->  | Z15: 1 | AA15: 2 | AB15: 1 | AC15: 1 | AD15: 1 | AE15: 2 | AF15: 0.5 | AG15: 1 | AH15: 0.5 | AI15: 2 | AJ15: 1 | AK15: 2 | AL15: 1 | AM15: 1 | AN15: 1 | AO15: 1 | AP15: 0.5 | AQ15: 1 | AR15: =IF(Y3="",1,VALUE(Z15)) -> 1 | AS15: =IF(Y4="",1,VALUE(AA15)) -> 1 | AT15: =IF(Y5="",1,VALUE(AB15)) -> 1 | AU15: =IF(Y6="",1,VALUE(AC15)) -> 1 | AV15: =IF(Y7="",1,VALUE(AD15)) -> 1 | AW15: =IF(Y8="",1,VALUE(AE15)) -> 1 | AX15: =IF(Y9="",1,VALUE(AF15)) -> 1 | AY15: =IF(Y10="",1,VALUE(AG15)) -> 1 | AZ15: =IF(Y11="",1,VALUE(AH15)) -> 1 | BA15: =IF(Y12="",1,VALUE(AI15)) -> 1 | BB15: =IF(Y13="",1,VALUE(AJ15)) -> 1 | BC15: =IF(Y14="",1,VALUE(AK15)) -> 1 | BD15: =IF(Y15="",1,VALUE(AL15)) -> 1 | BE15: =IF(Y16="",1,VALUE(AM15)) -> 1 | BF15: =IF(Y17="",1,VALUE(AN15)) -> 1 | BG15: =IF(Y18="",1,VALUE(AO15)) -> 1 | BH15: =IF(Y19="",1,VALUE(AP15)) -> 0.5 | BI15: =IF(Y20="",1,VALUE(AQ15)) -> 1 | BJ15: 0.5
B16: ゴースト | C16: × | M16: ○ | P16: ○ | R16: △ | U16: 2 | V16: 1 | W16: 0 | X16: 1 | Y16: =IF(B28=B16,"○",IF(B30=B16,"○","")) ->  | Z16: 0 | AA16: 1 | AB16: 1 | AC16: 1 | AD16: 1 | AE16: 1 | AF16: 1 | AG16: 1 | AH16: 1 | AI16: 1 | AJ16: 2 | AK16: 1 | AL16: 1 | AM16: 2 | AN16: 1 | AO16: 0.5 | AP16: 1 | AQ16: 1 | AR16: =IF(Y3="",1,VALUE(Z16)) -> 1 | AS16: =IF(Y4="",1,VALUE(AA16)) -> 1 | AT16: =IF(Y5="",1,VALUE(AB16)) -> 1 | AU16: =IF(Y6="",1,VALUE(AC16)) -> 1 | AV16: =IF(Y7="",1,VALUE(AD16)) -> 1 | AW16: =IF(Y8="",1,VALUE(AE16)) -> 1 | AX16: =IF(Y9="",1,VALUE(AF16)) -> 1 | AY16: =IF(Y10="",1,VALUE(AG16)) -> 1 | AZ16: =IF(Y11="",1,VALUE(AH16)) -> 1 | BA16: =IF(Y12="",1,VALUE(AI16)) -> 1 | BB16: =IF(Y13="",1,VALUE(AJ16)) -> 1 | BC16: =IF(Y14="",1,VALUE(AK16)) -> 1 | BD16: =IF(Y15="",1,VALUE(AL16)) -> 1 | BE16: =IF(Y16="",1,VALUE(AM16)) -> 1 | BF16: =IF(Y17="",1,VALUE(AN16)) -> 1 | BG16: =IF(Y18="",1,VALUE(AO16)) -> 1 | BH16: =IF(Y19="",1,VALUE(AP16)) -> 1 | BI16: =IF(Y20="",1,VALUE(AQ16)) -> 1 | BJ16: 1
B17: ドラゴン | Q17: ○ | S17: △ | T17: × | U17: 1 | V17: 1 | W17: 1 | X17: -2 | Y17: =IF(B28=B17,"○",IF(B30=B17,"○","")) -> ○ | Z17: 1 | AA17: 1 | AB17: 1 | AC17: 1 | AD17: 1 | AE17: 1 | AF17: 1 | AG17: 1 | AH17: 1 | AI17: 1 | AJ17: 1 | AK17: 1 | AL17: 1 | AM17: 1 | AN17: 2 | AO17: 1 | AP17: 0.5 | AQ17: 0 | AR17: =IF(Y3="",1,VALUE(Z17)) -> 1 | AS17: =IF(Y4="",1,VALUE(AA17)) -> 1 | AT17: =IF(Y5="",1,VALUE(AB17)) -> 1 | AU17: =IF(Y6="",1,VALUE(AC17)) -> 1 | AV17: =IF(Y7="",1,VALUE(AD17)) -> 1 | AW17: =IF(Y8="",1,VALUE(AE17)) -> 1 | AX17: =IF(Y9="",1,VALUE(AF17)) -> 1 | AY17: =IF(Y10="",1,VALUE(AG17)) -> 1 | AZ17: =IF(Y11="",1,VALUE(AH17)) -> 1 | BA17: =IF(Y12="",1,VALUE(AI17)) -> 1 | BB17: =IF(Y13="",1,VALUE(AJ17)) -> 1 | BC17: =IF(Y14="",1,VALUE(AK17)) -> 1 | BD17: =IF(Y15="",1,VALUE(AL17)) -> 1 | BE17: =IF(Y16="",1,VALUE(AM17)) -> 1 | BF17: =IF(Y17="",1,VALUE(AN17)) -> 2 | BG17: =IF(Y18="",1,VALUE(AO17)) -> 1 | BH17: =IF(Y19="",1,VALUE(AP17)) -> 0.5 | BI17: =IF(Y20="",1,VALUE(AQ17)) -> 1 | BJ17: 1
B18: あく | I18: △ | M18: ○ | P18: ○ | R18: △ | T18: △ | U18: 2 | V18: 3 | W18: 0 | X18: -1 | Y18: =IF(B28=B18,"○",IF(B30=B18,"○","")) ->  | Z18: 1 | AA18: 1 | AB18: 1 | AC18: 1 | AD18: 1 | AE18: 1 | AF18: 0.5 | AG18: 1 | AH18: 1 | AI18: 1 | AJ18: 2 | AK18: 1 | AL18: 1 | AM18: 2 | AN18: 1 | AO18: 0.5 | AP18: 1 | AQ18: 0.5 | AR18: =IF(Y3="",1,VALUE(Z18)) -> 1 | AS18: =IF(Y4="",1,VALUE(AA18)) -> 1 | AT18: =IF(Y5="",1,VALUE(AB18)) -> 1 | AU18: =IF(Y6="",1,VALUE(AC18)) -> 1 | AV18: =IF(Y7="",1,VALUE(AD18)) -> 1 | AW18: =IF(Y8="",1,VALUE(AE18)) -> 1 | AX18: =IF(Y9="",1,VALUE(AF18)) -> 1 | AY18: =IF(Y10="",1,VALUE(AG18)) -> 1 | AZ18: =IF(Y11="",1,VALUE(AH18)) -> 1 | BA18: =IF(Y12="",1,VALUE(AI18)) -> 1 | BB18: =IF(Y13="",1,VALUE(AJ18)) -> 1 | BC18: =IF(Y14="",1,VALUE(AK18)) -> 1 | BD18: =IF(Y15="",1,VALUE(AL18)) -> 1 | BE18: =IF(Y16="",1,VALUE(AM18)) -> 1 | BF18: =IF(Y17="",1,VALUE(AN18)) -> 1 | BG18: =IF(Y18="",1,VALUE(AO18)) -> 1 | BH18: =IF(Y19="",1,VALUE(AP18)) -> 1 | BI18: =IF(Y20="",1,VALUE(AQ18)) -> 1 | BJ18: 1
B19: はがね | D19: △ | E19: △ | F19: △ | H19: ○ | O19: ○ | S19: △ | T19: ○ | U19: 3 | V19: 4 | W19: 0 | X19: -1 | Y19: =IF(B28=B19,"○",IF(B30=B19,"○","")) -> ○ | Z19: 1 | AA19: 0.5 | AB19: 0.5 | AC19: 0.5 | AD19: 1 | AE19: 2 | AF19: 1 | AG19: 1 | AH19: 1 | AI19: 1 | AJ19: 1 | AK19: 1 | AL19: 2 | AM19: 1 | AN19: 1 | AO19: 1 | AP19: =IF(S19="○",2,IF(S19="△",0.5,IF(S19="×",0,1))) -> 0.5 | AQ19: 2 | AR19: =IF(Y3="",1,VALUE(Z19)) -> 1 | AS19: =IF(Y4="",1,VALUE(AA19)) -> 1 | AT19: =IF(Y5="",1,VALUE(AB19)) -> 1 | AU19: =IF(Y6="",1,VALUE(AC19)) -> 1 | AV19: =IF(Y7="",1,VALUE(AD19)) -> 1 | AW19: =IF(Y8="",1,VALUE(AE19)) -> 1 | AX19: =IF(Y9="",1,VALUE(AF19)) -> 1 | AY19: =IF(Y10="",1,VALUE(AG19)) -> 1 | AZ19: =IF(Y11="",1,VALUE(AH19)) -> 1 | BA19: =IF(Y12="",1,VALUE(AI19)) -> 1 | BB19: =IF(Y13="",1,VALUE(AJ19)) -> 1 | BC19: =IF(Y14="",1,VALUE(AK19)) -> 1 | BD19: =IF(Y15="",1,VALUE(AL19)) -> 1 | BE19: =IF(Y16="",1,VALUE(AM19)) -> 1 | BF19: =IF(Y17="",1,VALUE(AN19)) -> 1 | BG19: =IF(Y18="",1,VALUE(AO19)) -> 1 | BH19: =IF(Y19="",1,VALUE(AP19)) -> 0.5 | BI19: =IF(Y20="",1,VALUE(AQ19)) -> 1 | BJ19: 0.5
B20: フェアリー | D20: △ | I20: ○ | J20: △ | Q20: ○ | R20: ○ | S20: △ | U20: 3 | V20: 3 | W20: 0 | X20: 0 | Y20: =IF(B28=B20,"○",IF(B30=B20,"○","")) ->  | Z20: 1 | AA20: 0.5 | AB20: 1 | AC20: 1 | AD20: 1 | AE20: 1 | AF20: 2 | AG20: 0.5 | AH20: 1 | AI20: 1 | AJ20: 1 | AK20: 1 | AL20: 1 | AM20: 1 | AN20: 2 | AO20: 2 | AP20: 0.5 | AQ20: 1 | AR20: =IF(Y3="",1,VALUE(Z20)) -> 1 | AS20: =IF(Y4="",1,VALUE(AA20)) -> 1 | AT20: =IF(Y5="",1,VALUE(AB20)) -> 1 | AU20: =IF(Y6="",1,VALUE(AC20)) -> 1 | AV20: =IF(Y7="",1,VALUE(AD20)) -> 1 | AW20: =IF(Y8="",1,VALUE(AE20)) -> 1 | AX20: =IF(Y9="",1,VALUE(AF20)) -> 1 | AY20: =IF(Y10="",1,VALUE(AG20)) -> 1 | AZ20: =IF(Y11="",1,VALUE(AH20)) -> 1 | BA20: =IF(Y12="",1,VALUE(AI20)) -> 1 | BB20: =IF(Y13="",1,VALUE(AJ20)) -> 1 | BC20: =IF(Y14="",1,VALUE(AK20)) -> 1 | BD20: =IF(Y15="",1,VALUE(AL20)) -> 1 | BE20: =IF(Y16="",1,VALUE(AM20)) -> 1 | BF20: =IF(Y17="",1,VALUE(AN20)) -> 2 | BG20: =IF(Y18="",1,VALUE(AO20)) -> 1 | BH20: =IF(Y19="",1,VALUE(AP20)) -> 0.5 | BI20: =IF(Y20="",1,VALUE(AQ20)) -> 1 | BJ20: 1
B21: ばつぐん | C21: =COUNTIF(C3:C20,"○") -> 1 | D21: =COUNTIF(D3:D20,"○") -> 3 | E21: =COUNTIF(E3:E20,"○") -> 2 | F21: 1 | G21: 5 | H21: 4 | I21: 3 | J21: 2 | K21: 3 | L21: 3 | M21: 3 | N21: 3 | O21: 5 | P21: 2 | Q21: 3 | R21: 3 | S21: 3 | T21: 2
B22: いまいち | C22: =COUNTIF(C3:C20,"△") -> 0 | D22: =COUNTIF(D3:D20,"△") -> 6 | E22: 4 | F22: 3 | G22: 4 | H22: 1 | I22: 3 | J22: 5 | K22: 2 | L22: 3 | M22: 2 | N22: 3 | O22: 4 | P22: 2 | Q22: 4 | R22: 2 | S22: 10 | T22: 3
B23: こうかがない | C23: =COUNTIF(C3:C20,"×") -> 1 | D23: =COUNTIF(D3:D20,"×") -> 0 | E23: 0 | F23: 0 | G23: 0 | H23: 0 | I23: 0 | J23: 0 | K23: 1 | L23: 1 | M23: 0 | N23: 0 | O23: 0 | P23: 2 | Q23: 0 | R23: 1 | S23: 1 | T23: 1
C24: =2*C23+C22-C21 -> 1 | D24: =2*D23+D22-D21 -> 3 | E24: 2 | F24: 2 | G24: -1 | H24: -3 | I24: 0 | J24: 3 | K24: 1 | L24: 2 | M24: -1 | N24: 0 | O24: -1 | P24: 4 | Q24: 1 | R24: 1 | S24: 9 | T24: 3
B27: タイプ１ | C27: 普 | D27: 炎 | E27: 水 | F27: 電 | G27: 草 | H27: 氷 | I27: 格 | J27: 毒 | K27: 地 | L27: 飛 | M27: 超 | N27: 虫 | O27: 岩 | P27: 幽 | Q27: 竜 | R27: 悪 | S27: 鋼 | T27: 妖 | U27: フライングプレス
B28: =計算表!F4 -> はがね | C28: =IF(BJ3=0,"×",IF(BJ3=0.25,"▲",IF(BJ3=0.5,"△",IF(BJ3=1,"",IF(BJ3=2,"○",IF(BJ3=4,"◎",)))))) -> △ | D28: =IF(BJ4=0,"×",IF(BJ4=0.25,"▲",IF(BJ4=0.5,"△",IF(BJ4=1,"",IF(BJ4=2,"○",IF(BJ4=4,"◎",)))))) ->  | E28: =IF(BJ5=0,"×",IF(BJ5=0.25,"▲",IF(BJ5=0.5,"△",IF(BJ5=1,"",IF(BJ5=2,"○",IF(BJ5=4,"◎",)))))) -> △ | F28: =IF(BJ6=0,"×",IF(BJ6=0.25,"▲",IF(BJ6=0.5,"△",IF(BJ6=1,"",IF(BJ6=2,"○",IF(BJ6=4,"◎",)))))) -> △ | G28: =IF(BJ7=0,"×",IF(BJ7=0.25,"▲",IF(BJ7=0.5,"△",IF(BJ7=1,"",IF(BJ7=2,"○",IF(BJ7=4,"◎",)))))) -> ▲ | H28: =IF(BJ8=0,"×",IF(BJ8=0.25,"▲",IF(BJ8=0.5,"△",IF(BJ8=1,"",IF(BJ8=2,"○",IF(BJ8=4,"◎",)))))) ->  | I28: =IF(BJ9=0,"×",IF(BJ9=0.25,"▲",IF(BJ9=0.5,"△",IF(BJ9=1,"",IF(BJ9=2,"○",IF(BJ9=4,"◎",)))))) -> ○ | J28: =IF(BJ10=0,"×",IF(BJ10=0.25,"▲",IF(BJ10=0.5,"△",IF(BJ10=1,"",IF(BJ10=2,"○",IF(BJ10=4,"◎",)))))) -> × | K28: =IF(BJ11=0,"×",IF(BJ11=0.25,"▲",IF(BJ11=0.5,"△",IF(BJ11=1,"",IF(BJ11=2,"○",IF(BJ11=4,"◎",)))))) -> ○ | L28: =IF(BJ12=0,"×",IF(BJ12=0.25,"▲",IF(BJ12=0.5,"△",IF(BJ12=1,"",IF(BJ12=2,"○",IF(BJ12=4,"◎",)))))) -> △ | M28: =IF(BJ13=0,"×",IF(BJ13=0.25,"▲",IF(BJ13=0.5,"△",IF(BJ13=1,"",IF(BJ13=2,"○",IF(BJ13=4,"◎",)))))) -> △ | N28: =IF(BJ14=0,"×",IF(BJ14=0.25,"▲",IF(BJ14=0.5,"△",IF(BJ14=1,"",IF(BJ14=2,"○",IF(BJ14=4,"◎",)))))) -> △ | O28: =IF(BJ15=0,"×",IF(BJ15=0.25,"▲",IF(BJ15=0.5,"△",IF(BJ15=1,"",IF(BJ15=2,"○",IF(BJ15=4,"◎",)))))) -> △ | P28: =IF(BJ16=0,"×",IF(BJ16=0.25,"▲",IF(BJ16=0.5,"△",IF(BJ16=1,"",IF(BJ16=2,"○",IF(BJ16=4,"◎",)))))) ->  | Q28: =IF(BJ17=0,"×",IF(BJ17=0.25,"▲",IF(BJ17=0.5,"△",IF(BJ17=1,"",IF(BJ17=2,"○",IF(BJ17=4,"◎",)))))) ->  | R28: =IF(BJ18=0,"×",IF(BJ18=0.25,"▲",IF(BJ18=0.5,"△",IF(BJ18=1,"",IF(BJ18=2,"○",IF(BJ18=4,"◎",)))))) ->  | S28: =IF(BJ19=0,"×",IF(BJ19=0.25,"▲",IF(BJ19=0.5,"△",IF(BJ19=1,"",IF(BJ19=2,"○",IF(BJ19=4,"◎",)))))) -> △ | T28: =IF(BJ20=0,"×",IF(BJ20=0.25,"▲",IF(BJ20=0.5,"△",IF(BJ20=1,"",IF(BJ20=2,"○",IF(BJ20=4,"◎",)))))) ->  | U28: =O37 -> 
B29: タイプ2 | C29: ◎……4倍 | F29: △……0.5倍 | J29: ×……無効
B30: =計算表!G4 -> ドラゴン | C30: ○……2倍 | F30: ▲……0.25倍 | J30: 無印……等倍
A32: ="" ->  | C32: ノーマル | D32: ほのお | E32: みず | F32: でんき | G32: くさ | H32: こおり | I32: かくとう | J32: どく | K32: じめん | L32: ひこう | M32: エスパー | N32: むし | O32: いわ | P32: ゴースト | Q32: ドラゴン | R32: あく | S32: はがね | T32: フェアリー
C33: ○ | F33: △ | G33: ○ | H33: ○ | I33: ○ | J33: △ | L33: △ | M33: △ | N33: △ | P33: × | R33: ○ | T33: △
C34: =IF(E35=C32,2,IF(E36=C32,2,1)) -> 1 | D34: 1 | E34: 1 | F34: =IF(E35=F32,0.5,IF(E36=F32,0.5,1)) -> 1 | G34: =IF(E35=G32,2,IF(E36=G32,2,1)) -> 1 | H34: =IF(E35=H32,2,IF(E36=H32,2,1)) -> 1 | I34: =IF(E35=I32,2,IF(E36=I32,2,1)) -> 1 | J34: =IF(E35=J32,0.5,IF(E36=J32,0.5,1)) -> 1 | K34: 1 | L34: =IF(E35=L32,0.5,IF(E36=L32,0.5,1)) -> 1 | M34: =IF(E35=M32,0.5,IF(E36=M32,0.5,1)) -> 1 | N34: =IF(E35=N32,0.5,IF(E36=N32,0.5,1)) -> 1 | O34: 1 | P34: =IF(E35=P32,0,IF(E36=P32,0,1)) -> 1 | Q34: 1 | R34: =IF(E35=R32,2,IF(E36=R32,2,1)) -> 1 | S34: 1 | T34: =IF(E35=T32,0.5,IF(E36=T32,0.5,1)) -> 1
B35: タイプ１ | E35: =B28 -> はがね
B36: タイプ２ | E36: =B30 -> ドラゴン | I36: ダメージ | M36: =IF(CONCATENATE(E35,E36)="","",PRODUCT(C34:T34)) -> 1 | P36: 倍
O37: =IF(M36=4,"○",IF(M36=2,"○",IF(M36=1,"",IF(M36=0.5,"△",IF(M36=0.25,"△",IF(M36=0,"×",)))))) -> 

Sheet EnemyData (hidden)
B2: 受け 攻め | C2: 普 | D2: 炎 | E2: 水 | F2: 電 | G2: 草 | H2: 氷 | I2: 格 | J2: 毒 | K2: 地 | L2: 飛 | M2: 超 | N2: 虫 | O2: 岩 | P2: 幽 | Q2: 竜 | R2: 悪 | S2: 鋼 | T2: 妖 | U2: ○ | V2: △ | W2: ×
B3: ノーマル | O3: △ | P3: × | S3: △ | U3: =COUNTIF(C3:T3,"○") -> 0 | V3: =COUNTIF(D3:U3,"△") -> 2 | W3: =COUNTIF(E3:V3,"×") -> 1 | X3: =U3-V3-2*W3 -> -4 | Y3: =IF(B28=B3,"○",IF(B30=B3,"○","")) ->  | Z3: =IF(C3="○",2,IF(C3="△",0.5,IF(C3="×",0,1))) -> 1 | AA3: 1 | AB3: 1 | AC3: 1 | AD3: 1 | AE3: 1 | AF3: 1 | AG3: 1 | AH3: 1 | AI3: 1 | AJ3: 1 | AK3: 1 | AL3: 0.5 | AM3: 0 | AN3: 1 | AO3: 1 | AP3: =IF(S3="○",2,IF(S3="△",0.5,IF(S3="×",0,1))) -> 0.5 | AQ3: 1 | AR3: =IF(Y3="",1,VALUE(Z3)) -> 1 | AS3: =IF(Y4="",1,VALUE(AA3)) -> 1 | AT3: =IF(Y5="",1,VALUE(AB3)) -> 1 | AU3: =IF(Y6="",1,VALUE(AC3)) -> 1 | AV3: =IF(Y7="",1,VALUE(AD3)) -> 1 | AW3: =IF(Y8="",1,VALUE(AE3)) -> 1 | AX3: =IF(Y9="",1,VALUE(AF3)) -> 1 | AY3: =IF(Y10="",1,VALUE(AG3)) -> 1 | AZ3: =IF(Y11="",1,VALUE(AH3)) -> 1 | BA3: =IF(Y12="",1,VALUE(AI3)) -> 1 | BB3: =IF(Y13="",1,VALUE(AJ3)) -> 1 | BC3: =IF(Y14="",1,VALUE(AK3)) -> 1 | BD3: =IF(Y15="",1,VALUE(AL3)) -> 1 | BE3: =IF(Y16="",1,VALUE(AM3)) -> 1 | BF3: =IF(Y17="",1,VALUE(AN3)) -> 1 | BG3: =IF(Y18="",1,VALUE(AO3)) -> 1 | BH3: =IF(Y19="",1,VALUE(AP3)) -> 1 | BI3: =IF(Y20="",1,VALUE(AQ3)) -> 1 | BJ3: =PRODUCT(AR3:BI3) -> 1
B4: ほのお | D4: △ | E4: △ | G4: ○ | H4: ○ | N4: ○ | O4: △ | Q4: △ | S4: ○ | U4: =COUNTIF(C4:T4,"○") -> 4 | V4: =COUNTIF(D4:U4,"△") -> 4 | W4: =COUNTIF(E4:V4,"×") -> 0 | X4: =U4-V4-2*W4 -> 0 | Y4: =IF(B28=B4,"○",IF(B30=B4,"○","")) ->  | Z4: =IF(C4="○",2,IF(C4="△",0.5,IF(C4="×",0,1))) -> 1 | AA4: 0.5 | AB4: 0.5 | AC4: 1 | AD4: 2 | AE4: 2 | AF4: 1 | AG4: 1 | AH4: 1 | AI4: 1 | AJ4: 1 | AK4: 2 | AL4: =IF(O4="○",2,IF(O4="△",0.5,IF(O4="×",0,1))) -> 0.5 | AM4: 1 | AN4: 0.5 | AO4: 1 | AP4: 2 | AQ4: 1 | AR4: =IF(Y3="",1,VALUE(Z4)) -> 1 | AS4: =IF(Y4="",1,VALUE(AA4)) -> 1 | AT4: =IF(Y5="",1,VALUE(AB4)) -> 1 | AU4: =IF(Y6="",1,VALUE(AC4)) -> 1 | AV4: =IF(Y7="",1,VALUE(AD4)) -> 1 | AW4: =IF(Y8="",1,VALUE(AE4)) -> 1 | AX4: =IF(Y9="",1,VALUE(AF4)) -> 1 | AY4: =IF(Y10="",1,VALUE(AG4)) -> 1 | AZ4: =IF(Y11="",1,VALUE(AH4)) -> 1 | BA4: =IF(Y12="",1,VALUE(AI4)) -> 1 | BB4: =IF(Y13="",1,VALUE(AJ4)) -> 1 | BC4: =IF(Y14="",1,VALUE(AK4)) -> 1 | BD4: =IF(Y15="",1,VALUE(AL4)) -> 1 | BE4: =IF(Y16="",1,VALUE(AM4)) -> 1 | BF4: =IF(Y17="",1,VALUE(AN4)) -> 0.5 | BG4: =IF(Y18="",1,VALUE(AO4)) -> 1 | BH4: =IF(Y19="",1,VALUE(AP4)) -> 1 | BI4: =IF(Y20="",1,VALUE(AQ4)) -> 1 | BJ4: =PRODUCT(AR4:BI4) -> 0.5
B5: みず | D5: ○ | E5: △ | G5: △ | K5: ○ | O5: ○ | Q5: △ | U5: =COUNTIF(C5:T5,"○") -> 3 | V5: 3 | W5: 0 | X5: =U5-V5-2*W5 -> 0 | Y5: =IF(B28=B5,"○",IF(B30=B5,"○","")) ->  | Z5: =IF(C5="○",2,IF(C5="△",0.5,IF(C5="×",0,1))) -> 1 | AA5: 2 | AB5: 0.5 | AC5: 1 | AD5: 0.5 | AE5: 1 | AF5: 1 | AG5: 1 | AH5: 2 | AI5: 1 | AJ5: 1 | AK5: 1 | AL5: =IF(O5="○",2,IF(O5="△",0.5,IF(O5="×",0,1))) -> 2 | AM5: 1 | AN5: 0.5 | AO5: 1 | AP5: 1 | AQ5: 1 | AR5: =IF(Y3="",1,VALUE(Z5)) -> 1 | AS5: =IF(Y4="",1,VALUE(AA5)) -> 1 | AT5: =IF(Y5="",1,VALUE(AB5)) -> 1 | AU5: =IF(Y6="",1,VALUE(AC5)) -> 1 | AV5: =IF(Y7="",1,VALUE(AD5)) -> 1 | AW5: =IF(Y8="",1,VALUE(AE5)) -> 1 | AX5: =IF(Y9="",1,VALUE(AF5)) -> 1 | AY5: =IF(Y10="",1,VALUE(AG5)) -> 1 | AZ5: =IF(Y11="",1,VALUE(AH5)) -> 2 | BA5: =IF(Y12="",1,VALUE(AI5)) -> 1 | BB5: =IF(Y13="",1,VALUE(AJ5)) -> 1 | BC5: =IF(Y14="",1,VALUE(AK5)) -> 1 | BD5: =IF(Y15="",1,VALUE(AL5)) -> 1 | BE5: =IF(Y16="",1,VALUE(AM5)) -> 1 | BF5: =IF(Y17="",1,VALUE(AN5)) -> 0.5 | BG5: =IF(Y18="",1,VALUE(AO5)) -> 1 | BH5: =IF(Y19="",1,VALUE(AP5)) -> 1 | BI5: =IF(Y20="",1,VALUE(AQ5)) -> 1 | BJ5: 1
B6: でんき | E6: ○ | F6: △ | G6: △ | K6: × | L6: ○ | Q6: △ | U6: 2 | V6: 3 | W6: 1 | X6: -3 | Y6: =IF(B28=B6,"○",IF(B30=B6,"○","")) ->  | Z6: =IF(C6="○",2,IF(C6="△",0.5,IF(C6="×",0,1))) -> 1 | AA6: 1 | AB6: 2 | AC6: 0.5 | AD6: 0.5 | AE6: 1 | AF6: 1 | AG6: 1 | AH6: 0 | AI6: 2 | AJ6: 1 | AK6: 1 | AL6: =IF(O6="○",2,IF(O6="△",0.5,IF(O6="×",0,1))) -> 1 | AM6: 1 | AN6: 0.5 | AO6: 1 | AP6: 1 | AQ6: 1 | AR6: =IF(Y3="",1,VALUE(Z6)) -> 1 | AS6: =IF(Y4="",1,VALUE(AA6)) -> 1 | AT6: =IF(Y5="",1,VALUE(AB6)) -> 1 | AU6: =IF(Y6="",1,VALUE(AC6)) -> 1 | AV6: =IF(Y7="",1,VALUE(AD6)) -> 1 | AW6: =IF(Y8="",1,VALUE(AE6)) -> 1 | AX6: =IF(Y9="",1,VALUE(AF6)) -> 1 | AY6: =IF(Y10="",1,VALUE(AG6)) -> 1 | AZ6: =IF(Y11="",1,VALUE(AH6)) -> 0 | BA6: =IF(Y12="",1,VALUE(AI6)) -> 1 | BB6: =IF(Y13="",1,VALUE(AJ6)) -> 1 | BC6: =IF(Y14="",1,VALUE(AK6)) -> 1 | BD6: =IF(Y15="",1,VALUE(AL6)) -> 1 | BE6: =IF(Y16="",1,VALUE(AM6)) -> 1 | BF6: =IF(Y17="",1,VALUE(AN6)) -> 0.5 | BG6: =IF(Y18="",1,VALUE(AO6)) -> 1 | BH6: =IF(Y19="",1,VALUE(AP6)) -> 1 | BI6: =IF(Y20="",1,VALUE(AQ6)) -> 1 | BJ6: 0
B7: くさ | D7: △ | E7: ○ | G7: △ | J7: △ | K7: ○ | L7: △ | N7: △ | O7: ○ | Q7: △ | S7: △ | U7: 3 | V7: 7 | W7: 0 | X7: -4 | Y7: =IF(B28=B7,"○",IF(B30=B7,"○","")) ->  | Z7: =IF(C7="○",2,IF(C7="△",0.5,IF(C7="×",0,1))) -> 1 | AA7: 0.5 | AB7: 2 | AC7: 1 | AD7: 0.5 | AE7: 1 | AF7: 1 | AG7: 0.5 | AH7: 2 | AI7: 0.5 | AJ7: 1 | AK7: 0.5 | AL7: 2 | AM7: 1 | AN7: 0.5 | AO7: 1 | AP7: 0.5 | AQ7: 1 | AR7: =IF(Y3="",1,VALUE(Z7)) -> 1 | AS7: =IF(Y4="",1,VALUE(AA7)) -> 1 | AT7: =IF(Y5="",1,VALUE(AB7)) -> 1 | AU7: =IF(Y6="",1,VALUE(AC7)) -> 1 | AV7: =IF(Y7="",1,VALUE(AD7)) -> 1 | AW7: =IF(Y8="",1,VALUE(AE7)) -> 1 | AX7: =IF(Y9="",1,VALUE(AF7)) -> 1 | AY7: =IF(Y10="",1,VALUE(AG7)) -> 1 | AZ7: =IF(Y11="",1,VALUE(AH7)) -> 2 | BA7: =IF(Y12="",1,VALUE(AI7)) -> 1 | BB7: =IF(Y13="",1,VALUE(AJ7)) -> 1 | BC7: =IF(Y14="",1,VALUE(AK7)) -> 1 | BD7: =IF(Y15="",1,VALUE(AL7)) -> 1 | BE7: =IF(Y16="",1,VALUE(AM7)) -> 1 | BF7: =IF(Y17="",1,VALUE(AN7)) -> 0.5 | BG7: =IF(Y18="",1,VALUE(AO7)) -> 1 | BH7: =IF(Y19="",1,VALUE(AP7)) -> 1 | BI7: =IF(Y20="",1,VALUE(AQ7)) -> 1 | BJ7: 1
B8: こおり | D8: △ | E8: △ | G8: ○ | H8: △ | K8: ○ | L8: ○ | Q8: ○ | S8: △ | U8: 4 | V8: 4 | W8: 0 | X8: 0 | Y8: =IF(B28=B8,"○",IF(B30=B8,"○","")) ->  | Z8: 1 | AA8: 0.5 | AB8: 0.5 | AC8: 1 | AD8: 2 | AE8: 0.5 | AF8: 1 | AG8: 1 | AH8: 2 | AI8: 2 | AJ8: 1 | AK8: 1 | AL8: 1 | AM8: 1 | AN8: 2 | AO8: 1 | AP8: 0.5 | AQ8: 1 | AR8: =IF(Y3="",1,VALUE(Z8)) -> 1 | AS8: =IF(Y4="",1,VALUE(AA8)) -> 1 | AT8: =IF(Y5="",1,VALUE(AB8)) -> 1 | AU8: =IF(Y6="",1,VALUE(AC8)) -> 1 | AV8: =IF(Y7="",1,VALUE(AD8)) -> 1 | AW8: =IF(Y8="",1,VALUE(AE8)) -> 1 | AX8: =IF(Y9="",1,VALUE(AF8)) -> 1 | AY8: =IF(Y10="",1,VALUE(AG8)) -> 1 | AZ8: =IF(Y11="",1,VALUE(AH8)) -> 2 | BA8: =IF(Y12="",1,VALUE(AI8)) -> 1 | BB8: =IF(Y13="",1,VALUE(AJ8)) -> 1 | BC8: =IF(Y14="",1,VALUE(AK8)) -> 1 | BD8: =IF(Y15="",1,VALUE(AL8)) -> 1 | BE8: =IF(Y16="",1,VALUE(AM8)) -> 1 | BF8: =IF(Y17="",1,VALUE(AN8)) -> 2 | BG8: =IF(Y18="",1,VALUE(AO8)) -> 1 | BH8: =IF(Y19="",1,VALUE(AP8)) -> 1 | BI8: =IF(Y20="",1,VALUE(AQ8)) -> 1 | BJ8: 4
B9: かくとう | C9: ○ | H9: ○ | J9: △ | L9: △ | M9: △ | N9: △ | O9: ○ | P9: × | R9: ○ | S9: ○ | T9: △ | U9: 5 | V9: 5 | W9: 1 | X9: -2 | Y9: =IF(B28=B9,"○",IF(B30=B9,"○","")) ->  | Z9: 2 | AA9: 1 | AB9: 1 | AC9: 1 | AD9: 1 | AE9: 2 | AF9: 1 | AG9: 0.5 | AH9: 1 | AI9: 0.5 | AJ9: 0.5 | AK9: 0.5 | AL9: 2 | AM9: 0 | AN9: 1 | AO9: 2 | AP9: 2 | AQ9: 0.5 | AR9: =IF(Y3="",1,VALUE(Z9)) -> 1 | AS9: =IF(Y4="",1,VALUE(AA9)) -> 1 | AT9: =IF(Y5="",1,VALUE(AB9)) -> 1 | AU9: =IF(Y6="",1,VALUE(AC9)) -> 1 | AV9: =IF(Y7="",1,VALUE(AD9)) -> 1 | AW9: =IF(Y8="",1,VALUE(AE9)) -> 1 | AX9: =IF(Y9="",1,VALUE(AF9)) -> 1 | AY9: =IF(Y10="",1,VALUE(AG9)) -> 1 | AZ9: =IF(Y11="",1,VALUE(AH9)) -> 1 | BA9: =IF(Y12="",1,VALUE(AI9)) -> 1 | BB9: =IF(Y13="",1,VALUE(AJ9)) -> 1 | BC9: =IF(Y14="",1,VALUE(AK9)) -> 1 | BD9: =IF(Y15="",1,VALUE(AL9)) -> 1 | BE9: =IF(Y16="",1,VALUE(AM9)) -> 1 | BF9: =IF(Y17="",1,VALUE(AN9)) -> 1 | BG9: =IF(Y18="",1,VALUE(AO9)) -> 1 | BH9: =IF(Y19="",1,VALUE(AP9)) -> 1 | BI9: =IF(Y20="",1,VALUE(AQ9)) -> 1 | BJ9: 1
B10: どく | G10: ○ | J10: △ | K10: △ | O10: △ | P10: △ | S10: × | T10: ○ | U10: 2 | V10: 4 | W10: 1 | X10: -4 | Y10: =IF(B28=B10,"○",IF(B30=B10,"○","")) ->  | Z10: 1 | AA10: 1 | AB10: 1 | AC10: 1 | AD10: 2 | AE10: 1 | AF10: 1 | AG10: 0.5 | AH10: 0.5 | AI10: 1 | AJ10: 1 | AK10: 1 | AL10: 0.5 | AM10: 0.5 | AN10: 1 | AO10: 1 | AP10: 0 | AQ10: 2 | AR10: =IF(Y3="",1,VALUE(Z10)) -> 1 | AS10: =IF(Y4="",1,VALUE(AA10)) -> 1 | AT10: =IF(Y5="",1,VALUE(AB10)) -> 1 | AU10: =IF(Y6="",1,VALUE(AC10)) -> 1 | AV10: =IF(Y7="",1,VALUE(AD10)) -> 1 | AW10: =IF(Y8="",1,VALUE(AE10)) -> 1 | AX10: =IF(Y9="",1,VALUE(AF10)) -> 1 | AY10: =IF(Y10="",1,VALUE(AG10)) -> 1 | AZ10: =IF(Y11="",1,VALUE(AH10)) -> 0.5 | BA10: =IF(Y12="",1,VALUE(AI10)) -> 1 | BB10: =IF(Y13="",1,VALUE(AJ10)) -> 1 | BC10: =IF(Y14="",1,VALUE(AK10)) -> 1 | BD10: =IF(Y15="",1,VALUE(AL10)) -> 1 | BE10: =IF(Y16="",1,VALUE(AM10)) -> 1 | BF10: =IF(Y17="",1,VALUE(AN10)) -> 1 | BG10: =IF(Y18="",1,VALUE(AO10)) -> 1 | BH10: =IF(Y19="",1,VALUE(AP10)) -> 1 | BI10: =IF(Y20="",1,VALUE(AQ10)) -> 1 | BJ10: 0.5
B11: じめん | D11: ○ | F11: ○ | G11: △ | J11: ○ | L11: × | N11: △ | O11: ○ | S11: ○ | U11: 5 | V11: 2 | W11: 1 | X11: 1 | Y11: =IF(B28=B11,"○",IF(B30=B11,"○","")) -> ○ | Z11: 1 | AA11: 2 | AB11: 1 | AC11: 2 | AD11: 0.5 | AE11: 1 | AF11: 1 | AG11: 2 | AH11: 1 | AI11: 0 | AJ11: 1 | AK11: 0.5 | AL11: 2 | AM11: 1 | AN11: 1 | AO11: 1 | AP11: 2 | AQ11: 1 | AR11: =IF(Y3="",1,VALUE(Z11)) -> 1 | AS11: =IF(Y4="",1,VALUE(AA11)) -> 1 | AT11: =IF(Y5="",1,VALUE(AB11)) -> 1 | AU11: =IF(Y6="",1,VALUE(AC11)) -> 1 | AV11: =IF(Y7="",1,VALUE(AD11)) -> 1 | AW11: =IF(Y8="",1,VALUE(AE11)) -> 1 | AX11: =IF(Y9="",1,VALUE(AF11)) -> 1 | AY11: =IF(Y10="",1,VALUE(AG11)) -> 1 | AZ11: =IF(Y11="",1,VALUE(AH11)) -> 1 | BA11: =IF(Y12="",1,VALUE(AI11)) -> 1 | BB11: =IF(Y13="",1,VALUE(AJ11)) -> 1 | BC11: =IF(Y14="",1,VALUE(AK11)) -> 1 | BD11: =IF(Y15="",1,VALUE(AL11)) -> 1 | BE11: =IF(Y16="",1,VALUE(AM11)) -> 1 | BF11: =IF(Y17="",1,VALUE(AN11)) -> 1 | BG11: =IF(Y18="",1,VALUE(AO11)) -> 1 | BH11: =IF(Y19="",1,VALUE(AP11)) -> 1 | BI11: =IF(Y20="",1,VALUE(AQ11)) -> 1 | BJ11: 1
B12: ひこう | F12: △ | G12: ○ | I12: ○ | N12: ○ | O12: △ | S12: △ | U12: 3 | V12: 3 | W12: 0 | X12: 0 | Y12: =IF(B28=B12,"○",IF(B30=B12,"○","")) ->  | Z12: 1 | AA12: 1 | AB12: 1 | AC12: 0.5 | AD12: 2 | AE12: 1 | AF12: 2 | AG12: 1 | AH12: 1 | AI12: 1 | AJ12: 1 | AK12: 2 | AL12: 0.5 | AM12: 1 | AN12: 1 | AO12: 1 | AP12: 0.5 | AQ12: 1 | AR12: =IF(Y3="",1,VALUE(Z12)) -> 1 | AS12: =IF(Y4="",1,VALUE(AA12)) -> 1 | AT12: =IF(Y5="",1,VALUE(AB12)) -> 1 | AU12: =IF(Y6="",1,VALUE(AC12)) -> 1 | AV12: =IF(Y7="",1,VALUE(AD12)) -> 1 | AW12: =IF(Y8="",1,VALUE(AE12)) -> 1 | AX12: =IF(Y9="",1,VALUE(AF12)) -> 1 | AY12: =IF(Y10="",1,VALUE(AG12)) -> 1 | AZ12: =IF(Y11="",1,VALUE(AH12)) -> 1 | BA12: =IF(Y12="",1,VALUE(AI12)) -> 1 | BB12: =IF(Y13="",1,VALUE(AJ12)) -> 1 | BC12: =IF(Y14="",1,VALUE(AK12)) -> 1 | BD12: =IF(Y15="",1,VALUE(AL12)) -> 1 | BE12: =IF(Y16="",1,VALUE(AM12)) -> 1 | BF12: =IF(Y17="",1,VALUE(AN12)) -> 1 | BG12: =IF(Y18="",1,VALUE(AO12)) -> 1 | BH12: =IF(Y19="",1,VALUE(AP12)) -> 1 | BI12: =IF(Y20="",1,VALUE(AQ12)) -> 1 | BJ12: 1
B13: エスパー | I13: ○ | J13: ○ | M13: △ | R13: × | S13: △ | U13: 2 | V13: 2 | W13: 1 | X13: -2 | Y13: =IF(B28=B13,"○",IF(B30=B13,"○","")) ->  | Z13: 1 | AA13: 1 | AB13: 1 | AC13: 1 | AD13: 1 | AE13: 1 | AF13: 2 | AG13: 2 | AH13: 1 | AI13: 1 | AJ13: 0.5 | AK13: 1 | AL13: 1 | AM13: 1 | AN13: 1 | AO13: 0 | AP13: 0.5 | AQ13: 1 | AR13: =IF(Y3="",1,VALUE(Z13)) -> 1 | AS13: =IF(Y4="",1,VALUE(AA13)) -> 1 | AT13: =IF(Y5="",1,VALUE(AB13)) -> 1 | AU13: =IF(Y6="",1,VALUE(AC13)) -> 1 | AV13: =IF(Y7="",1,VALUE(AD13)) -> 1 | AW13: =IF(Y8="",1,VALUE(AE13)) -> 1 | AX13: =IF(Y9="",1,VALUE(AF13)) -> 1 | AY13: =IF(Y10="",1,VALUE(AG13)) -> 1 | AZ13: =IF(Y11="",1,VALUE(AH13)) -> 1 | BA13: =IF(Y12="",1,VALUE(AI13)) -> 1 | BB13: =IF(Y13="",1,VALUE(AJ13)) -> 1 | BC13: =IF(Y14="",1,VALUE(AK13)) -> 1 | BD13: =IF(Y15="",1,VALUE(AL13)) -> 1 | BE13: =IF(Y16="",1,VALUE(AM13)) -> 1 | BF13: =IF(Y17="",1,VALUE(AN13)) -> 1 | BG13: =IF(Y18="",1,VALUE(AO13)) -> 1 | BH13: =IF(Y19="",1,VALUE(AP13)) -> 1 | BI13: =IF(Y20="",1,VALUE(AQ13)) -> 1 | BJ13: 1
B14: むし | D14: △ | G14: ○ | I14: △ | J14: △ | L14: △ | M14: ○ | P14: △ | R14: ○ | S14: △ | T14: △ | U14: 3 | V14: 7 | W14: 0 | X14: -4 | Y14: =IF(B28=B14,"○",IF(B30=B14,"○","")) ->  | Z14: 1 | AA14: 0.5 | AB14: 1 | AC14: 1 | AD14: 2 | AE14: 1 | AF14: 0.5 | AG14: 0.5 | AH14: 1 | AI14: 0.5 | AJ14: 2 | AK14: 1 | AL14: 1 | AM14: 0.5 | AN14: 1 | AO14: 2 | AP14: 0.5 | AQ14: 0.5 | AR14: =IF(Y3="",1,VALUE(Z14)) -> 1 | AS14: =IF(Y4="",1,VALUE(AA14)) -> 1 | AT14: =IF(Y5="",1,VALUE(AB14)) -> 1 | AU14: =IF(Y6="",1,VALUE(AC14)) -> 1 | AV14: =IF(Y7="",1,VALUE(AD14)) -> 1 | AW14: =IF(Y8="",1,VALUE(AE14)) -> 1 | AX14: =IF(Y9="",1,VALUE(AF14)) -> 1 | AY14: =IF(Y10="",1,VALUE(AG14)) -> 1 | AZ14: =IF(Y11="",1,VALUE(AH14)) -> 1 | BA14: =IF(Y12="",1,VALUE(AI14)) -> 1 | BB14: =IF(Y13="",1,VALUE(AJ14)) -> 1 | BC14: =IF(Y14="",1,VALUE(AK14)) -> 1 | BD14: =IF(Y15="",1,VALUE(AL14)) -> 1 | BE14: =IF(Y16="",1,VALUE(AM14)) -> 1 | BF14: =IF(Y17="",1,VALUE(AN14)) -> 1 | BG14: =IF(Y18="",1,VALUE(AO14)) -> 1 | BH14: =IF(Y19="",1,VALUE(AP14)) -> 1 | BI14: =IF(Y20="",1,VALUE(AQ14)) -> 1 | BJ14: 1
B15: いわ | D15: ○ | H15: ○ | I15: △ | K15: △ | L15: ○ | N15: ○ | S15: △ | U15: 4 | V15: 3 | W15: 0 | X15: 1 | Y15: =IF(B28=B15,"○",IF(B30=B15,"○","")) ->  | Z15: 1 | AA15: 2 | AB15: 1 | AC15: 1 | AD15: 1 | AE15: 2 | AF15: 0.5 | AG15: 1 | AH15: 0.5 | AI15: 2 | AJ15: 1 | AK15: 2 | AL15: 1 | AM15: 1 | AN15: 1 | AO15: 1 | AP15: 0.5 | AQ15: 1 | AR15: =IF(Y3="",1,VALUE(Z15)) -> 1 | AS15: =IF(Y4="",1,VALUE(AA15)) -> 1 | AT15: =IF(Y5="",1,VALUE(AB15)) -> 1 | AU15: =IF(Y6="",1,VALUE(AC15)) -> 1 | AV15: =IF(Y7="",1,VALUE(AD15)) -> 1 | AW15: =IF(Y8="",1,VALUE(AE15)) -> 1 | AX15: =IF(Y9="",1,VALUE(AF15)) -> 1 | AY15: =IF(Y10="",1,VALUE(AG15)) -> 1 | AZ15: =IF(Y11="",1,VALUE(AH15)) -> 0.5 | BA15: =IF(Y12="",1,VALUE(AI15)) -> 1 | BB15: =IF(Y13="",1,VALUE(AJ15)) -> 1 | BC15: =IF(Y14="",1,VALUE(AK15)) -> 1 | BD15: =IF(Y15="",1,VALUE(AL15)) -> 1 | BE15: =IF(Y16="",1,VALUE(AM15)) -> 1 | BF15: =IF(Y17="",1,VALUE(AN15)) -> 1 | BG15: =IF(Y18="",1,VALUE(AO15)) -> 1 | BH15: =IF(Y19="",1,VALUE(AP15)) -> 1 | BI15: =IF(Y20="",1,VALUE(AQ15)) -> 1 | BJ15: 0.5
B16: ゴースト | C16: × | M16: ○ | P16: ○ | R16: △ | U16: 2 | V16: 1 | W16: 0 | X16: 1 | Y16: =IF(B28=B16,"○",IF(B30=B16,"○","")) ->  | Z16: 0 | AA16: 1 | AB16: 1 | AC16: 1 | AD16: 1 | AE16: 1 | AF16: 1 | AG16: 1 | AH16: 1 | AI16: 1 | AJ16: 2 | AK16: 1 | AL16: 1 | AM16: 2 | AN16: 1 | AO16: 0.5 | AP16: 1 | AQ16: 1 | AR16: =IF(Y3="",1,VALUE(Z16)) -> 1 | AS16: =IF(Y4="",1,VALUE(AA16)) -> 1 | AT16: =IF(Y5="",1,VALUE(AB16)) -> 1 | AU16: =IF(Y6="",1,VALUE(AC16)) -> 1 | AV16: =IF(Y7="",1,VALUE(AD16)) -> 1 | AW16: =IF(Y8="",1,VALUE(AE16)) -> 1 | AX16: =IF(Y9="",1,VALUE(AF16)) -> 1 | AY16: =IF(Y10="",1,VALUE(AG16)) -> 1 | AZ16: =IF(Y11="",1,VALUE(AH16)) -> 1 | BA16: =IF(Y12="",1,VALUE(AI16)) -> 1 | BB16: =IF(Y13="",1,VALUE(AJ16)) -> 1 | BC16: =IF(Y14="",1,VALUE(AK16)) -> 1 | BD16: =IF(Y15="",1,VALUE(AL16)) -> 1 | BE16: =IF(Y16="",1,VALUE(AM16)) -> 1 | BF16: =IF(Y17="",1,VALUE(AN16)) -> 1 | BG16: =IF(Y18="",1,VALUE(AO16)) -> 1 | BH16: =IF(Y19="",1,VALUE(AP16)) -> 1 | BI16: =IF(Y20="",1,VALUE(AQ16)) -> 1 | BJ16: 1
B17: ドラゴン | Q17: ○ | S17: △ | T17: × | U17: 1 | V17: 1 | W17: 1 | X17: -2 | Y17: =IF(B28=B17,"○",IF(B30=B17,"○","")) -> ○ | Z17: 1 | AA17: 1 | AB17: 1 | AC17: 1 | AD17: 1 | AE17: 1 | AF17: 1 | AG17: 1 | AH17: 1 | AI17: 1 | AJ17: 1 | AK17: 1 | AL17: 1 | AM17: 1 | AN17: 2 | AO17: 1 | AP17: 0.5 | AQ17: 0 | AR17: =IF(Y3="",1,VALUE(Z17)) -> 1 | AS17: =IF(Y4="",1,VALUE(AA17)) -> 1 | AT17: =IF(Y5="",1,VALUE(AB17)) -> 1 | AU17: =IF(Y6="",1,VALUE(AC17)) -> 1 | AV17: =IF(Y7="",1,VALUE(AD17)) -> 1 | AW17: =IF(Y8="",1,VALUE(AE17)) -> 1 | AX17: =IF(Y9="",1,VALUE(AF17)) -> 1 | AY17: =IF(Y10="",1,VALUE(AG17)) -> 1 | AZ17: =IF(Y11="",1,VALUE(AH17)) -> 1 | BA17: =IF(Y12="",1,VALUE(AI17)) -> 1 | BB17: =IF(Y13="",1,VALUE(AJ17)) -> 1 | BC17: =IF(Y14="",1,VALUE(AK17)) -> 1 | BD17: =IF(Y15="",1,VALUE(AL17)) -> 1 | BE17: =IF(Y16="",1,VALUE(AM17)) -> 1 | BF17: =IF(Y17="",1,VALUE(AN17)) -> 2 | BG17: =IF(Y18="",1,VALUE(AO17)) -> 1 | BH17: =IF(Y19="",1,VALUE(AP17)) -> 1 | BI17: =IF(Y20="",1,VALUE(AQ17)) -> 1 | BJ17: 2
B18: あく | I18: △ | M18: ○ | P18: ○ | R18: △ | T18: △ | U18: 2 | V18: 3 | W18: 0 | X18: -1 | Y18: =IF(B28=B18,"○",IF(B30=B18,"○","")) ->  | Z18: 1 | AA18: 1 | AB18: 1 | AC18: 1 | AD18: 1 | AE18: 1 | AF18: 0.5 | AG18: 1 | AH18: 1 | AI18: 1 | AJ18: 2 | AK18: 1 | AL18: 1 | AM18: 2 | AN18: 1 | AO18: 0.5 | AP18: 1 | AQ18: 0.5 | AR18: =IF(Y3="",1,VALUE(Z18)) -> 1 | AS18: =IF(Y4="",1,VALUE(AA18)) -> 1 | AT18: =IF(Y5="",1,VALUE(AB18)) -> 1 | AU18: =IF(Y6="",1,VALUE(AC18)) -> 1 | AV18: =IF(Y7="",1,VALUE(AD18)) -> 1 | AW18: =IF(Y8="",1,VALUE(AE18)) -> 1 | AX18: =IF(Y9="",1,VALUE(AF18)) -> 1 | AY18: =IF(Y10="",1,VALUE(AG18)) -> 1 | AZ18: =IF(Y11="",1,VALUE(AH18)) -> 1 | BA18: =IF(Y12="",1,VALUE(AI18)) -> 1 | BB18: =IF(Y13="",1,VALUE(AJ18)) -> 1 | BC18: =IF(Y14="",1,VALUE(AK18)) -> 1 | BD18: =IF(Y15="",1,VALUE(AL18)) -> 1 | BE18: =IF(Y16="",1,VALUE(AM18)) -> 1 | BF18: =IF(Y17="",1,VALUE(AN18)) -> 1 | BG18: =IF(Y18="",1,VALUE(AO18)) -> 1 | BH18: =IF(Y19="",1,VALUE(AP18)) -> 1 | BI18: =IF(Y20="",1,VALUE(AQ18)) -> 1 | BJ18: 1
B19: はがね | D19: △ | E19: △ | F19: △ | H19: ○ | O19: ○ | S19: △ | T19: ○ | U19: 3 | V19: 4 | W19: 0 | X19: -1 | Y19: =IF(B28=B19,"○",IF(B30=B19,"○","")) ->  | Z19: 1 | AA19: 0.5 | AB19: 0.5 | AC19: 0.5 | AD19: 1 | AE19: 2 | AF19: 1 | AG19: 1 | AH19: 1 | AI19: 1 | AJ19: 1 | AK19: 1 | AL19: 2 | AM19: 1 | AN19: 1 | AO19: 1 | AP19: =IF(S19="○",2,IF(S19="△",0.5,IF(S19="×",0,1))) -> 0.5 | AQ19: 2 | AR19: =IF(Y3="",1,VALUE(Z19)) -> 1 | AS19: =IF(Y4="",1,VALUE(AA19)) -> 1 | AT19: =IF(Y5="",1,VALUE(AB19)) -> 1 | AU19: =IF(Y6="",1,VALUE(AC19)) -> 1 | AV19: =IF(Y7="",1,VALUE(AD19)) -> 1 | AW19: =IF(Y8="",1,VALUE(AE19)) -> 1 | AX19: =IF(Y9="",1,VALUE(AF19)) -> 1 | AY19: =IF(Y10="",1,VALUE(AG19)) -> 1 | AZ19: =IF(Y11="",1,VALUE(AH19)) -> 1 | BA19: =IF(Y12="",1,VALUE(AI19)) -> 1 | BB19: =IF(Y13="",1,VALUE(AJ19)) -> 1 | BC19: =IF(Y14="",1,VALUE(AK19)) -> 1 | BD19: =IF(Y15="",1,VALUE(AL19)) -> 1 | BE19: =IF(Y16="",1,VALUE(AM19)) -> 1 | BF19: =IF(Y17="",1,VALUE(AN19)) -> 1 | BG19: =IF(Y18="",1,VALUE(AO19)) -> 1 | BH19: =IF(Y19="",1,VALUE(AP19)) -> 1 | BI19: =IF(Y20="",1,VALUE(AQ19)) -> 1 | BJ19: 1
B20: フェアリー | D20: △ | I20: ○ | J20: △ | Q20: ○ | R20: ○ | S20: △ | U20: 3 | V20: 3 | W20: 0 | X20: 0 | Y20: =IF(B28=B20,"○",IF(B30=B20,"○","")) ->  | Z20: 1 | AA20: 0.5 | AB20: 1 | AC20: 1 | AD20: 1 | AE20: 1 | AF20: 2 | AG20: 0.5 | AH20: 1 | AI20: 1 | AJ20: 1 | AK20: 1 | AL20: 1 | AM20: 1 | AN20: 2 | AO20: 2 | AP20: 0.5 | AQ20: 1 | AR20: =IF(Y3="",1,VALUE(Z20)) -> 1 | AS20: =IF(Y4="",1,VALUE(AA20)) -> 1 | AT20: =IF(Y5="",1,VALUE(AB20)) -> 1 | AU20: =IF(Y6="",1,VALUE(AC20)) -> 1 | AV20: =IF(Y7="",1,VALUE(AD20)) -> 1 | AW20: =IF(Y8="",1,VALUE(AE20)) -> 1 | AX20: =IF(Y9="",1,VALUE(AF20)) -> 1 | AY20: =IF(Y10="",1,VALUE(AG20)) -> 1 | AZ20: =IF(Y11="",1,VALUE(AH20)) -> 1 | BA20: =IF(Y12="",1,VALUE(AI20)) -> 1 | BB20: =IF(Y13="",1,VALUE(AJ20)) -> 1 | BC20: =IF(Y14="",1,VALUE(AK20)) -> 1 | BD20: =IF(Y15="",1,VALUE(AL20)) -> 1 | BE20: =IF(Y16="",1,VALUE(AM20)) -> 1 | BF20: =IF(Y17="",1,VALUE(AN20)) -> 2 | BG20: =IF(Y18="",1,VALUE(AO20)) -> 1 | BH20: =IF(Y19="",1,VALUE(AP20)) -> 1 | BI20: =IF(Y20="",1,VALUE(AQ20)) -> 1 | BJ20: 2
B21: ばつぐん | C21: =COUNTIF(C3:C20,"○") -> 1 | D21: =COUNTIF(D3:D20,"○") -> 3 | E21: =COUNTIF(E3:E20,"○") -> 2 | F21: 1 | G21: 5 | H21: 4 | I21: 3 | J21: 2 | K21: 3 | L21: 3 | M21: 3 | N21: 3 | O21: 5 | P21: 2 | Q21: 3 | R21: 3 | S21: 3 | T21: 2
B22: いまいち | C22: =COUNTIF(C3:C20,"△") -> 0 | D22: =COUNTIF(D3:D20,"△") -> 6 | E22: 4 | F22: 3 | G22: 4 | H22: 1 | I22: 3 | J22: 5 | K22: 2 | L22: 3 | M22: 2 | N22: 3 | O22: 4 | P22: 2 | Q22: 4 | R22: 2 | S22: 10 | T22: 3
B23: こうかがない | C23: =COUNTIF(C3:C20,"×") -> 1 | D23: =COUNTIF(D3:D20,"×") -> 0 | E23: 0 | F23: 0 | G23: 0 | H23: 0 | I23: 0 | J23: 0 | K23: 1 | L23: 1 | M23: 0 | N23: 0 | O23: 0 | P23: 2 | Q23: 0 | R23: 1 | S23: 1 | T23: 1
C24: =2*C23+C22-C21 -> 1 | D24: =2*D23+D22-D21 -> 3 | E24: 2 | F24: 2 | G24: -1 | H24: -3 | I24: 0 | J24: 3 | K24: 1 | L24: 2 | M24: -1 | N24: 0 | O24: -1 | P24: 4 | Q24: 1 | R24: 1 | S24: 9 | T24: 3
B27: タイプ１ | C27: 普 | D27: 炎 | E27: 水 | F27: 電 | G27: 草 | H27: 氷 | I27: 格 | J27: 毒 | K27: 地 | L27: 飛 | M27: 超 | N27: 虫 | O27: 岩 | P27: 幽 | Q27: 竜 | R27: 悪 | S27: 鋼 | T27: 妖 | U27: フライングプレス
B28: =計算表!AF27 -> ドラゴン | C28: =IF(B32="ノーマル",BJ3,"") ->  | D28: =IF(B32="ほのお",BJ4,"") ->  | E28: =IF(B32="みず",BJ5,"") ->  | F28: =IF(B32="でんき",BJ6,"") ->  | G28: =IF(B32="くさ",BJ7,"") ->  | H28: =IF(B32="こおり",BJ8,"") ->  | I28: =IF(AND(U28<>"",B32="かくとう"),BJ9,"") ->  | J28: =IF(B32="どく",BJ10,"") ->  | K28: =IF(B32="じめん",BJ11,"") ->  | L28: =IF(B32="ひこう",BJ12,"") ->  | M28: =IF(B32="エスパー",BJ13,"") ->  | N28: =IF(B32="むし",BJ14,"") ->  | O28: =IF(B32="いわ",BJ15,"") ->  | P28: =IF(B32="ゴースト",BJ16,"") ->  | Q28: =IF(B32="ドラゴン",BJ17,"") -> 2 | R28: =IF(B32="あく",BJ18,"") ->  | S28: =IF(B32="はがね",BJ19,"") ->  | T28: =IF(B32="フェアリー",BJ20,"") ->  | U28: =IF(計算表!B22="フライングプレス",M36,"") -> 
B29: タイプ2 | C29: ◎……4倍 | F29: △……0.5倍 | J29: ×……無効 | T29: タイプ相性 | U29: =IF(SUM(C28:X28)=4,"ばつぐん(4倍)", IF(SUM(C28:X28)=2,"ばつぐん(2倍)", IF(SUM(C28:X28)=1,"(特になし)", IF(SUM(C28:X28)=0.5,"いまひとつ(0.5倍)", IF(SUM(C28:X28)=0.25,"いまひとつ(0.25倍)","こうかがない(0倍)"))))) -> ばつぐん(2倍)
B30: =計算表!AH27 -> じめん | C30: ○……2倍 | F30: ▲……0.25倍 | J30: 無印……等倍
B31: 攻撃技のタイプ
A32: ="" ->  | B32: =計算表!B26 -> ドラゴン | C32: 普 | D32: 炎 | E32: 水 | F32: 電 | G32: 草 | H32: 氷 | I32: 格 | J32: 毒 | K32: 地 | L32: 飛 | M32: 超 | N32: 虫 | O32: 岩 | P32: 幽 | Q32: 竜 | R32: 悪 | S32: 鋼 | T32: 妖
C33: ○ | F33: △ | G33: ○ | H33: ○ | I33: ○ | J33: △ | L33: △ | M33: △ | N33: △ | P33: × | R33: ○ | T33: △
C34: =IF(E35=C32,2,IF(E36=C32,2,1)) -> 1 | D34: 1 | E34: 1 | F34: =IF(E35=F32,0.5,IF(E36=F32,0.5,1)) -> 1 | G34: =IF(E35=G32,2,IF(E36=G32,2,1)) -> 1 | H34: =IF(E35=H32,2,IF(E36=H32,2,1)) -> 1 | I34: =IF(E35=I32,2,IF(E36=I32,2,1)) -> 1 | J34: =IF(E35=J32,0.5,IF(E36=J32,0.5,1)) -> 1 | K34: 1 | L34: =IF(E35=L32,0.5,IF(E36=L32,0.5,1)) -> 1 | M34: =IF(E35=M32,0.5,IF(E36=M32,0.5,1)) -> 1 | N34: =IF(E35=N32,0.5,IF(E36=N32,0.5,1)) -> 1 | O34: 1 | P34: =IF(E35=P32,0,IF(E36=P32,0,1)) -> 1 | Q34: 1 | R34: =IF(E35=R32,2,IF(E36=R32,2,1)) -> 1 | S34: 1 | T34: =IF(E35=T32,0.5,IF(E36=T32,0.5,1)) -> 1
B35: タイプ１ | E35: =B28 -> ドラゴン
B36: タイプ２ | E36: =B30 -> じめん | I36: ダメージ | M36: =IF(CONCATENATE(E35,E36)="","",PRODUCT(C34:T34)) -> 1 | P36: 倍
O37: =IF(M36=4,"○",IF(M36=2,"○",IF(M36=1,"",IF(M36=0.5,"△",IF(M36=0.25,"△",IF(M36=0,"×",)))))) -> 

Sheet ポケモン一覧
A1: No. | B1: なまえ | C1: タイプ | E1: HP | F1: こうげき | G1: ぼうぎょ | H1: とくこう | I1: とくぼう | J1: すばやさ | K1: とくせい | M1: かくれとくせい
A2: 001-0 | B2: フシギダネ | C2: くさ | D2: どく | E2: 45 | F2: 49 | G2: 49 | H2: 65 | I2: 65 | J2: 45 | K2: しんりょく | M2: ようりょくそ
A3: 002-0 | B3: フシギソウ | C3: くさ | D3: どく | E3: 60 | F3: 62 | G3: 63 | H3: 80 | I3: 80 | J3: 60 | K3: しんりょく | M3: ようりょくそ
A4: 003-0 | B4: フシギバナ | C4: くさ | D4: どく | E4: 80 | F4: 82 | G4: 83 | H4: 100 | I4: 100 | J4: 80 | K4: しんりょく | M4: ようりょくそ
A5: 003-1 | B5: メガフシギバナ | C5: くさ | D5: どく | E5: 80 | F5: 100 | G5: 123 | H5: 122 | I5: 120 | J5: 80 | K5: あついしぼう
A6: 004-0 | B6: ヒトカゲ | C6: ほのお | E6: 39 | F6: 52 | G6: 43 | H6: 60 | I6: 50 | J6: 65 | K6: もうか | M6: サンパワー
A7: 005-0 | B7: リザード | C7: ほのお | E7: 58 | F7: 64 | G7: 58 | H7: 80 | I7: 65 | J7: 80 | K7: もうか | M7: サンパワー
A8: 006-0 | B8: リザードン | C8: ほのお | D8: ひこう | E8: 78 | F8: 84 | G8: 78 | H8: 109 | I8: 85 | J8: 100 | K8: もうか | M8: サンパワー
A9: 006-1 | B9: メガリザードンX | C9: ほのお | D9: ドラゴン | E9: 78 | F9: 130 | G9: 111 | H9: 130 | I9: 85 | J9: 100 | K9: かたいツメ
A10: 006-1 | B10: メガリザードンY | C10: ほのお | D10: ひこう | E10: 78 | F10: 104 | G10: 78 | H10: 159 | I10: 115 | J10: 100 | K10: ひでり
A11: 007-0 | B11: ゼニガメ | C11: みず | E11: 44 | F11: 48 | G11: 65 | H11: 50 | I11: 64 | J11: 43 | K11: げきりゅう | M11: あめうけざら
A12: 008-0 | B12: カメール | C12: みず | E12: 59 | F12: 63 | G12: 80 | H12: 65 | I12: 80 | J12: 58 | K12: げきりゅう | M12: あめうけざら
A13: 009-0 | B13: カメックス | C13: みず | E13: 79 | F13: 83 | G13: 100 | H13: 85 | I13: 105 | J13: 78 | K13: げきりゅう | M13: あめうけざら
A14: 009-1 | B14: メガカメックス | C14: みず | E14: 79 | F14: 103 | G14: 120 | H14: 135 | I14: 115 | J14: 78 | K14: メガランチャー
A15: 010-0 | B15: キャタピー | C15: むし | E15: 45 | F15: 30 | G15: 35 | H15: 20 | I15: 20 | J15: 45 | K15: りんぷん | M15: にげあし
A16: 011-0 | B16: トランセル | C16: むし | E16: 50 | F16: 20 | G16: 55 | H16: 25 | I16: 25 | J16: 30 | K16: だっぴ | M16: だっぴ
A17: 012-0 | B17: バタフリー | C17: むし | D17: ひこう | E17: 60 | F17: 45 | G17: 50 | H17: 90 | I17: 80 | J17: 70 | K17: ふくがん | M17: いろめがね
A18: 013-0 | B18: ビードル | C18: むし | D18: どく | E18: 40 | F18: 35 | G18: 30 | H18: 20 | I18: 20 | J18: 50 | K18: りんぷん | M18: にげあし
A19: 014-0 | B19: コクーン | C19: むし | D19: どく | E19: 45 | F19: 25 | G19: 50 | H19: 25 | I19: 25 | J19: 35 | K19: だっぴ | M19: だっぴ
A20: 015-0 | B20: スピアー | C20: むし | D20: どく | E20: 65 | F20: 90 | G20: 40 | H20: 45 | I20: 80 | J20: 75 | K20: むしのしらせ | M20: スナイパー
A21: 015-1 | B21: メガスピアー | C21: むし | D21: どく | E21: 65 | F21: 150 | G21: 40 | H21: 15 | I21: 80 | J21: 145 | K21: てきおうりょく
A22: 016-0 | B22: ポッポ | C22: ノーマル | D22: ひこう | E22: 40 | F22: 45 | G22: 40 | H22: 35 | I22: 35 | J22: 56 | K22: するどいめ | L22: ちどりあし | M22: はとむね
A23: 017-0 | B23: ピジョン | C23: ノーマル | D23: ひこう | E23: 63 | F23: 60 | G23: 55 | H23: 50 | I23: 50 | J23: 71 | K23: するどいめ | L23: ちどりあし | M23: はとむね
A24: 018-0 | B24: ピジョット | C24: ノーマル | D24: ひこう | E24: 83 | F24: 80 | G24: 75 | H24: 70 | I24: 70 | J24: 101 | K24: するどいめ | L24: ちどりあし | M24: はとむね
A25: 018-1 | B25: メガピジョット | C25: ノーマル | D25: ひこう | E25: 83 | F25: 80 | G25: 80 | H25: 135 | I25: 80 | J25: 121 | K25: ノーガード
A26: 019-0 | B26: コラッタ | C26: ノーマル | E26: 30 | F26: 56 | G26: 35 | H26: 25 | I26: 35 | J26: 72 | K26: にげあし | L26: こんじょう | M26: はりきり
A27: 019-1 | B27: コラッタ（アローラのすがた） | C27: あく | D27: ノーマル | E27: 30 | F27: 56 | G27: 35 | H27: 25 | I27: 35 | J27: 72 | K27: くいしんぼう | L27: はりきり | M27: あついしぼう
A28: 020-0 | B28: ラッタ | C28: ノーマル | E28: 55 | F28: 81 | G28: 60 | H28: 50 | I28: 70 | J28: 97 | K28: にげあし | L28: こんじょう | M28: はりきり
A29: 020-1 | B29: ラッタ（アローラのすがた） | C29: あく | D29: ノーマル | E29: 75 | F29: 71 | G29: 70 | H29: 40 | I29: 80 | J29: 77 | K29: くいしんぼう | L29: はりきり | M29: あついしぼう
A30: 021-0 | B30: オニスズメ | C30: ひこう | D30: ノーマル | E30: 40 | F30: 60 | G30: 30 | H30: 31 | I30: 31 | J30: 70 | K30: するどいめ | M30: スナイパー
A31: 022-0 | B31: オニドリル | C31: ひこう | D31: ノーマル | E31: 65 | F31: 90 | G31: 65 | H31: 61 | I31: 61 | J31: 100 | K31: するどいめ | M31: スナイパー
A32: 023-0 | B32: アーボ | C32: どく | E32: 35 | F32: 60 | G32: 44 | H32: 40 | I32: 54 | J32: 55 | K32: いかく | L32: だっぴ | M32: きんちょうかん
A33: 024-0 | B33: アーボック | C33: どく | E33: 60 | F33: 95 | G33: 69 | H33: 65 | I33: 79 | J33: 80 | K33: いかく | L33: だっぴ | M33: きんちょうかん
A34: 025-0 | B34: ピカチュウ | C34: でんき | E34: 35 | F34: 55 | G34: 40 | H34: 50 | I34: 50 | J34: 90 | K34: せいでんき | M34: ひらいしん
A35: 026-0 | B35: ライチュウ | C35: でんき | E35: 60 | F35: 90 | G35: 55 | H35: 90 | I35: 80 | J35: 110 | K35: せいでんき | M35: ひらいしん
A36: 026-1 | B36: ライチュウ（アローラのすがた） | C36: でんき | D36: エスパー | E36: 60 | F36: 85 | G36: 50 | H36: 95 | I36: 85 | J36: 110 | K36: サーフテール
A37: 027-0 | B37: サンド | C37: じめん | E37: 50 | F37: 75 | G37: 85 | H37: 20 | I37: 30 | J37: 40 | K37: すながくれ | M37: すなかき
A38: 027-1 | B38: サンド（アローラのすがた） | C38: こおり | D38: はがね | E38: 50 | F38: 75 | G38: 90 | H38: 10 | I38: 35 | J38: 40 | K38: ゆきがくれ | M38: ゆきかき
A39: 028-0 | B39: サンドパン | C39: じめん | E39: 75 | F39: 100 | G39: 110 | H39: 45 | I39: 55 | J39: 65 | K39: すながくれ | M39: すなかき
A40: 028-1 | B40: サンドパン（アローラのすがた） | C40: こおり | D40: はがね | E40: 75 | F40: 100 | G40: 120 | H40: 25 | I40: 65 | J40: 65 | K40: ゆきがくれ | M40: ゆきかき
A41: 029-0 | B41: ニドラン♀ | C41: どく | E41: 55 | F41: 47 | G41: 52 | H41: 40 | I41: 40 | J41: 41 | K41: どくのトゲ | L41: とうそうしん | M41: はりきり
A42: 030-0 | B42: ニドリーナ | C42: どく | E42: 70 | F42: 62 | G42: 67 | H42: 55 | I42: 55 | J42: 56 | K42: どくのトゲ | L42: とうそうしん | M42: はりきり
A43: 031-0 | B43: ニドクイン | C43: どく | D43: じめん | E43: 90 | F43: 92 | G43: 87 | H43: 75 | I43: 85 | J43: 76 | K43: どくのトゲ | L43: とうそうしん | M43: ちからずく
A44: 032-0 | B44: ニドラン♂ | C44: どく | E44: 46 | F44: 57 | G44: 40 | H44: 40 | I44: 40 | J44: 50 | K44: どくのトゲ | L44: とうそうしん | M44: はりきり
A45: 033-0 | B45: ニドリーノ | C45: どく | E45: 61 | F45: 72 | G45: 57 | H45: 55 | I45: 55 | J45: 65 | K45: どくのトゲ | L45: とうそうしん | M45: はりきり
A46: 034-0 | B46: ニドキング | C46: どく | D46: じめん | E46: 81 | F46: 102 | G46: 77 | H46: 85 | I46: 75 | J46: 85 | K46: どくのトゲ | L46: とうそうしん | M46: ちからずく
A47: 035-0 | B47: ピッピ | C47: フェアリー | E47: 70 | F47: 45 | G47: 48 | H47: 60 | I47: 65 | J47: 35 | K47: メロメロボディ | L47: マジックガード | M47: フレンドガード
A48: 036-0 | B48: ピクシー | C48: フェアリー | E48: 95 | F48: 70 | G48: 73 | H48: 95 | I48: 90 | J48: 60 | K48: メロメロボディ | L48: マジックガード | M48: てんねん
A49: 037-0 | B49: ロコン | C49: ほのお | E49: 38 | F49: 41 | G49: 40 | H49: 50 | I49: 65 | J49: 65 | K49: もらいび | M49: ひでり
A50: 037-1 | B50: ロコン（アローラのすがた） | C50: こおり | E50: 38 | F50: 41 | G50: 40 | H50: 50 | I50: 65 | J50: 65 | K50: ゆきがくれ | M50: ゆきふらし
A51: 038-0 | B51: キュウコン | C51: ほのお | E51: 73 | F51: 76 | G51: 75 | H51: 81 | I51: 100 | J51: 100 | K51: もらいび | M51: ひでり
A52: 038-1 | B52: キュウコン（アローラのすがた） | C52: こおり | D52: フェアリー | E52: 73 | F52: 67 | G52: 75 | H52: 81 | I52: 100 | J52: 109 | K52: ゆきがくれ | M52: ゆきふらし
A53: 039-0 | B53: プリン | C53: ノーマル | D53: フェアリー | E53: 115 | F53: 45 | G53: 20 | H53: 45 | I53: 25 | J53: 20 | K53: メロメロボディ | L53: かちき | M53: フレンドガード
A54: 040-0 | B54: プクリン | C54: ノーマル | D54: フェアリー | E54: 140 | F54: 70 | G54: 45 | H54: 85 | I54: 50 | J54: 45 | K54: メロメロボディ | L54: かちき | M54: おみとおし
A55: 041-0 | B55: ズバット | C55: どく | D55: ひこう | E55: 40 | F55: 45 | G55: 35 | H55: 30 | I55: 40 | J55: 55 | K55: せいしんりょく | M55: すりぬけ
A56: 042-0 | B56: ゴルバット | C56: どく | D56: ひこう | E56: 75 | F56: 80 | G56: 70 | H56: 65 | I56: 75 | J56: 90 | K56: せいしんりょく | M56: すりぬけ
A57: 043-0 | B57: ナゾノクサ | C57: くさ | D57: どく | E57: 45 | F57: 50 | G57: 55 | H57: 75 | I57: 65 | J57: 30 | K57: ようりょくそ | M57: にげあし
A58: 044-0 | B58: クサイハナ | C58: くさ | D58: どく | E58: 60 | F58: 65 | G58: 70 | H58: 85 | I58: 75 | J58: 40 | K58: ようりょくそ | M58: あくしゅう
A59: 045-0 | B59: ラフレシア | C59: くさ | D59: どく | E59: 75 | F59: 80 | G59: 85 | H59: 110 | I59: 90 | J59: 50 | K59: ようりょくそ | M59: ほうし
A60: 046-0 | B60: パラス | C60: むし | D60: くさ | E60: 35 | F60: 70 | G60: 55 | H60: 45 | I60: 55 | J60: 25 | K60: ほうし | L60: かんそうはだ | M60: しめりけ
A61: 047-0 | B61: パラセクト | C61: むし | D61: くさ | E61: 60 | F61: 95 | G61: 80 | H61: 60 | I61: 80 | J61: 30 | K61: ほうし | L61: かんそうはだ | M61: しめりけ
A62: 048-0 | B62: コンパン | C62: むし | D62: どく | E62: 60 | F62: 55 | G62: 50 | H62: 40 | I62: 55 | J62: 45 | K62: ふくがん | L62: いろめがね | M62: にげあし
A63: 049-0 | B63: モルフォン | C63: むし | D63: どく | E63: 70 | F63: 65 | G63: 60 | H63: 90 | I63: 75 | J63: 90 | K63: りんぷん | L63: いろめがね | M63: ミラクルスキン
A64: 050-0 | B64: ディグダ | C64: じめん | E64: 10 | F64: 55 | G64: 25 | H64: 35 | I64: 45 | J64: 95 | K64: すながくれ | L64: ありじごく | M64: すなのちから
A65: 050-1 | B65: ディグダ（アローラのすがた） | C65: じめん | D65: はがね | E65: 10 | F65: 55 | G65: 30 | H65: 35 | I65: 45 | J65: 90 | K65: すながくれ | L65: カーリーヘアー | M65: すなのちから
A66: 051-0 | B66: ダグトリオ | C66: じめん | E66: 35 | F66: 100 | G66: 50 | H66: 50 | I66: 70 | J66: 120 | K66: すながくれ | L66: ありじごく | M66: すなのちから
A67: 051-1 | B67: ダグトリオ（アローラのすがた） | C67: じめん | D67: はがね | E67: 35 | F67: 100 | G67: 60 | H67: 50 | I67: 70 | J67: 110 | K67: すながくれ | L67: カーリーヘアー | M67: すなのちから
A68: 052-0 | B68: ニャース | C68: ノーマル | E68: 40 | F68: 45 | G68: 35 | H68: 40 | I68: 40 | J68: 90 | K68: ものひろい | L68: テクニシャン | M68: きんちょうかん
A69: 052-1 | B69: ニャース（アローラのすがた） | C69: あく | E69: 40 | F69: 35 | G69: 35 | H69: 50 | I69: 40 | J69: 90 | K69: ものひろい | L69: テクニシャン | M69: びびり
A70: 053-0 | B70: ペルシアン | C70: ノーマル | E70: 65 | F70: 70 | G70: 60 | H70: 65 | I70: 65 | J70: 115 | K70: じゅうなん | L70: テクニシャン | M70: きんちょうかん
A71: 053-1 | B71: ペルシアン（アローラのすがた） | C71: あく | E71: 65 | F71: 60 | G71: 60 | H71: 75 | I71: 65 | J71: 115 | K71: ファーコート | L71: テクニシャン | M71: びびり
A72: 054-0 | B72: コダック | C72: みず | E72: 50 | F72: 52 | G72: 48 | H72: 65 | I72: 50 | J72: 55 | K72: しめりけ | L72: ノーてんき | M72: すいすい
A73: 055-0 | B73: ゴルダック | C73: みず | E73: 80 | F73: 82 | G73: 78 | H73: 95 | I73: 80 | J73: 85 | K73: しめりけ | L73: ノーてんき | M73: すいすい
A74: 056-0 | B74: マンキー | C74: かくとう | E74: 40 | F74: 80 | G74: 35 | H74: 35 | I74: 45 | J74: 70 | K74: やるき | L74: いかりのつぼ | M74: まけんき
A75: 057-0 | B75: オコリザル | C75: かくとう | E75: 65 | F75: 105 | G75: 60 | H75: 60 | I75: 70 | J75: 95 | K75: やるき | L75: いかりのつぼ | M75: まけんき
A76: 058-0 | B76: ガーディ | C76: ほのお | E76: 55 | F76: 70 | G76: 45 | H76: 70 | I76: 50 | J76: 60 | K76: いかく | L76: もらいび | M76: せいぎのこころ
A77: 059-0 | B77: ウィンディ | C77: ほのお | E77: 90 | F77: 110 | G77: 80 | H77: 100 | I77: 80 | J77: 95 | K77: いかく | L77: もらいび | M77: せいぎのこころ
A78: 060-0 | B78: ニョロモ | C78: みず | E78: 40 | F78: 50 | G78: 40 | H78: 40 | I78: 40 | J78: 90 | K78: ちょすい | L78: しめりけ | M78: すいすい
A79: 061-0 | B79: ニョロゾ | C79: みず | E79: 65 | F79: 65 | G79: 65 | H79: 50 | I79: 50 | J79: 90 | K79: ちょすい | L79: しめりけ | M79: すいすい
A80: 062-0 | B80: ニョロボン | C80: みず | D80: かくとう | E80: 90 | F80: 95 | G80: 95 | H80: 70 | I80: 90 | J80: 70 | K80: ちょすい | L80: しめりけ | M80: すいすい
A81: 063-0 | B81: ケーシィ | C81: エスパー | E81: 25 | F81: 20 | G81: 15 | H81: 105 | I81: 55 | J81: 90 | K81: シンクロ | L81: せいしんりょく | M81: マジックガード
A82: 064-0 | B82: ユンゲラー | C82: エスパー | E82: 40 | F82: 35 | G82: 30 | H82: 120 | I82: 70 | J82: 105 | K82: シンクロ | L82: せいしんりょく | M82: マジックガード
A83: 065-0 | B83: フーディン | C83: エスパー | E83: 55 | F83: 50 | G83: 45 | H83: 135 | I83: 95 | J83: 120 | K83: シンクロ | L83: せいしんりょく | M83: マジックガード
A84: 065-1 | B84: メガフーディン | C84: エスパー | E84: 55 | F84: 50 | G84: 65 | H84: 175 | I84: 95 | J84: 150 | K84: トレース
A85: 066-0 | B85: ワンリキー | C85: かくとう | E85: 70 | F85: 80 | G85: 50 | H85: 35 | I85: 35 | J85: 35 | K85: こんじょう | L85: ノーガード | M85: ふくつのこころ
A86: 067-0 | B86: ゴーリキー | C86: かくとう | E86: 80 | F86: 100 | G86: 70 | H86: 50 | I86: 60 | J86: 45 | K86: こんじょう | L86: ノーガード | M86: ふくつのこころ
A87: 068-0 | B87: カイリキー | C87: かくとう | E87: 90 | F87: 130 | G87: 80 | H87: 65 | I87: 85 | J87: 55 | K87: こんじょう | L87: ノーガード | M87: ふくつのこころ
A88: 069-0 | B88: マダツボミ | C88: くさ | D88: どく | E88: 50 | F88: 75 | G88: 35 | H88: 70 | I88: 30 | J88: 40 | K88: ようりょくそ | M88: くいしんぼう
A89: 070-0 | B89: ウツドン | C89: くさ | D89: どく | E89: 65 | F89: 90 | G89: 50 | H89: 85 | I89: 45 | J89: 55 | K89: ようりょくそ | M89: くいしんぼう
A90: 071-0 | B90: ウツボット | C90: くさ | D90: どく | E90: 80 | F90: 105 | G90: 65 | H90: 100 | I90: 70 | J90: 70 | K90: ようりょくそ | M90: くいしんぼう
A91: 072-0 | B91: メノクラゲ | C91: みず | D91: どく | E91: 40 | F91: 40 | G91: 35 | H91: 50 | I91: 100 | J91: 70 | K91: クリアボディ | L91: ヘドロえき | M91: あめうけざら
A92: 073-0 | B92: ドククラゲ | C92: みず | D92: どく | E92: 80 | F92: 70 | G92: 65 | H92: 80 | I92: 120 | J92: 100 | K92: クリアボディ | L92: ヘドロえき | M92: あめうけざら
A93: 074-0 | B93: イシツブテ | C93: いわ | D93: じめん | E93: 40 | F93: 80 | G93: 100 | H93: 30 | I93: 30 | J93: 20 | K93: いしあたま | L93: がんじょう | M93: すながくれ
A94: 074-1 | B94: イシツブテ（アローラのすがた） | C94: いわ | D94: でんき | E94: 40 | F94: 80 | G94: 100 | H94: 30 | I94: 30 | J94: 20 | K94: じりょく | L94: がんじょう | M94: エレキスキン
A95: 075-0 | B95: ゴローン | C95: いわ | D95: じめん | E95: 55 | F95: 95 | G95: 115 | H95: 45 | I95: 45 | J95: 35 | K95: いしあたま | L95: がんじょう | M95: すながくれ
A96: 075-1 | B96: ゴローン（アローラのすがた） | C96: いわ | D96: でんき | E96: 55 | F96: 95 | G96: 115 | H96: 45 | I96: 45 | J96: 35 | K96: じりょく | L96: がんじょう | M96: エレキスキン
A97: 076-0 | B97: ゴローニャ | C97: いわ | D97: じめん | E97: 80 | F97: 120 | G97: 130 | H97: 55 | I97: 65 | J97: 45 | K97: いしあたま | L97: がんじょう | M97: すながくれ
A98: 076-1 | B98: ゴローニャ（アローラのすがた） | C98: いわ | D98: でんき | E98: 80 | F98: 120 | G98: 130 | H98: 55 | I98: 65 | J98: 45 | K98: じりょく | L98: がんじょう | M98: エレキスキン
A99: 077-0 | B99: ポニータ | C99: ほのお | E99: 50 | F99: 85 | G99: 55 | H99: 65 | I99: 65 | J99: 90 | K99: にげあし | L99: もらいび | M99: ほのおのからだ
A100: 078-0 | B100: ギャロップ | C100: ほのお | E100: 65 | F100: 100 | G100: 70 | H100: 80 | I100: 80 | J100: 105 | K100: にげあし | L100: もらいび | M100: ほのおのからだ
A101: 079-0 | B101: ヤドン | C101: みず | D101: エスパー | E101: 90 | F101: 65 | G101: 65 | H101: 40 | I101: 40 | J101: 15 | K101: どんかん | L101: マイペース | M101: さいせいりょく
A102: 080-0 | B102: ヤドラン | C102: みず | D102: エスパー | E102: 95 | F102: 75 | G102: 110 | H102: 100 | I102: 80 | J102: 30 | K102: どんかん | L102: マイペース | M102: さいせいりょく
A103: 080-1 | B103: メガヤドラン | C103: みず | D103: エスパー | E103: 95 | F103: 75 | G103: 180 | H103: 130 | I103: 80 | J103: 30 | K103: シェルアーマー
A104: 081-0 | B104: コイル | C104: でんき | D104: はがね | E104: 25 | F104: 35 | G104: 70 | H104: 95 | I104: 55 | J104: 45 | K104: じりょく | L104: がんじょう | M104: アナライズ
A105: 082-0 | B105: レアコイル | C105: でんき | D105: はがね | E105: 50 | F105: 60 | G105: 95 | H105: 120 | I105: 70 | J105: 70 | K105: じりょく | L105: がんじょう | M105: アナライズ
A106: 083-0 | B106: カモネギ | C106: ノーマル | D106: ひこう | E106: 52 | F106: 90 | G106: 55 | H106: 58 | I106: 62 | J106: 60 | K106: するどいめ | L106: せいしんりょく | M106: まけんき
A107: 084-0 | B107: ドードー | C107: ノーマル | D107: ひこう | E107: 35 | F107: 85 | G107: 45 | H107: 35 | I107: 35 | J107: 75 | K107: にげあし | L107: はやおき | M107: ちどりあし
A108: 085-0 | B108: ドードリオ | C108: ノーマル | D108: ひこう | E108: 60 | F108: 110 | G108: 70 | H108: 60 | I108: 60 | J108: 110 | K108: にげあし | L108: はやおき | M108: ちどりあし
A109: 086-0 | B109: パウワウ | C109: みず | E109: 65 | F109: 45 | G109: 55 | H109: 45 | I109: 70 | J109: 45 | K109: あついしぼう | L109: うるおいボディ | M109: アイスボディ
A110: 087-0 | B110: ジュゴン | C110: みず | D110: こおり | E110: 90 | F110: 70 | G110: 80 | H110: 70 | I110: 95 | J110: 70 | K110: あついしぼう | L110: うるおいボディ | M110: アイスボディ
A111: 088-0 | B111: ベトベター | C111: どく | E111: 80 | F111: 80 | G111: 50 | H111: 40 | I111: 50 | J111: 25 | K111: あくしゅう | L111: ねんちゃく | M111: どくしゅ
A112: 088-1 | B112: ベトベター（アローラのすがた） | C112: どく | D112: あく | E112: 80 | F112: 80 | G112: 50 | H112: 40 | I112: 50 | J112: 25 | K112: どくしゅ | L112: くいしんぼう | M112: かがくのちから
A113: 089-0 | B113: ベトベトン | C113: どく | E113: 105 | F113: 105 | G113: 75 | H113: 65 | I113: 100 | J113: 50 | K113: あくしゅう | L113: ねんちゃく | M113: どくしゅ
A114: 089-1 | B114: ベトベトン（アローラのすがた） | C114: どく | D114: あく | E114: 105 | F114: 105 | G114: 75 | H114: 65 | I114: 100 | J114: 50 | K114: どくしゅ | L114: くいしんぼう | M114: かがくのちから
A115: 090-0 | B115: シェルダー | C115: みず | E115: 30 | F115: 65 | G115: 100 | H115: 45 | I115: 25 | J115: 40 | K115: シェルアーマー | L115: スキルリンク | M115: ぼうじん
A116: 091-0 | B116: パルシェン | C116: みず | D116: こおり | E116: 50 | F116: 95 | G116: 180 | H116: 85 | I116: 45 | J116: 70 | K116: シェルアーマー | L116: スキルリンク | M116: ぼうじん
A117: 092-0 | B117: ゴース | C117: ゴースト | D117: どく | E117: 30 | F117: 35 | G117: 30 | H117: 100 | I117: 35 | J117: 80 | K117: ふゆう
A118: 093-0 | B118: ゴースト | C118: ゴースト | D118: どく | E118: 45 | F118: 50 | G118: 45 | H118: 115 | I118: 55 | J118: 95 | K118: ふゆう
A119: 094-0 | B119: ゲンガー | C119: ゴースト | D119: どく | E119: 60 | F119: 65 | G119: 60 | H119: 130 | I119: 75 | J119: 110 | K119: のろわれボディ
A120: 094-1 | B120: メガゲンガー | C120: ゴースト | D120: どく | E120: 60 | F120: 65 | G120: 80 | H120: 170 | I120: 95 | J120: 130 | K120: かげふみ
A121: 095-0 | B121: イワーク | C121: いわ | D121: じめん | E121: 35 | F121: 45 | G121: 160 | H121: 30 | I121: 45 | J121: 70 | K121: いしあたま | L121: がんじょう | M121: くだけるよろい
A122: 096-0 | B122: スリープ | C122: エスパー | E122: 60 | F122: 48 | G122: 45 | H122: 43 | I122: 90 | J122: 42 | K122: ふみん | L122: よちむ | M122: せいしんりょく
A123: 097-0 | B123: スリーパー | C123: エスパー | E123: 85 | F123: 73 | G123: 70 | H123: 73 | I123: 115 | J123: 67 | K123: ふみん | L123: よちむ | M123: せいしんりょく
A124: 098-0 | B124: クラブ | C124: みず | E124: 30 | F124: 105 | G124: 90 | H124: 25 | I124: 25 | J124: 50 | K124: かいりきバサミ | L124: シェルアーマー | M124: ちからずく
A125: 099-0 | B125: キングラー | C125: みず | E125: 55 | F125: 130 | G125: 115 | H125: 50 | I125: 50 | J125: 75 | K125: かいりきバサミ | L125: シェルアーマー | M125: ちからずく
A126: 100-0 | B126: ビリリダマ | C126: でんき | E126: 40 | F126: 30 | G126: 50 | H126: 55 | I126: 55 | J126: 100 | K126: ぼうおん | L126: せいでんき | M126: ゆうばく
A127: 101-0 | B127: マルマイン | C127: でんき | E127: 60 | F127: 50 | G127: 70 | H127: 80 | I127: 80 | J127: 150 | K127: ぼうおん | L127: せいでんき | M127: ゆうばく
A128: 102-0 | B128: タマタマ | C128: くさ | D128: エスパー | E128: 60 | F128: 40 | G128: 80 | H128: 60 | I128: 45 | J128: 40 | K128: ようりょくそ | M128: しゅうかく
A129: 103-0 | B129: ナッシー | C129: くさ | D129: エスパー | E129: 95 | F129: 95 | G129: 85 | H129: 125 | I129: 75 | J129: 55 | K129: ようりょくそ | M129: しゅうかく
A130: 103-1 | B130: ナッシー（アローラのすがた） | C130: くさ | D130: ドラゴン | E130: 95 | F130: 105 | G130: 85 | H130: 125 | I130: 75 | J130: 45 | K130: おみとおし | M130: しゅうかく
A131: 104-0 | B131: カラカラ | C131: じめん | E131: 50 | F131: 50 | G131: 95 | H131: 40 | I131: 50 | J131: 35 | K131: いしあたま | L131: ひらいしん | M131: カブトアーマー
A132: 105-0 | B132: ガラガラ | C132: じめん | E132: 60 | F132: 80 | G132: 110 | H132: 50 | I132: 80 | J132: 45 | K132: いしあたま | L132: ひらいしん | M132: カブトアーマー
A133: 105-1 | B133: ガラガラ（アローラのすがた） | C133: ほのお | D133: ゴースト | E133: 60 | F133: 80 | G133: 110 | H133: 50 | I133: 80 | J133: 45 | K133: のろわれボディ | L133: ひらいしん | M133: いしあたま
A134: 106-0 | B134: サワムラー | C134: かくとう | E134: 50 | F134: 120 | G134: 53 | H134: 35 | I134: 110 | J134: 87 | K134: じゅうなん | L134: すてみ | M134: かるわざ
A135: 107-0 | B135: エビワラー | C135: かくとう | E135: 50 | F135: 105 | G135: 79 | H135: 35 | I135: 110 | J135: 76 | K135: するどいめ | L135: てつのこぶし | M135: せいしんりょく
A136: 108-0 | B136: ベロリンガ | C136: ノーマル | E136: 90 | F136: 55 | G136: 75 | H136: 60 | I136: 75 | J136: 30 | K136: マイペース | L136: どんかん | M136: ノーてんき
A137: 109-0 | B137: ドガース | C137: どく | E137: 40 | F137: 65 | G137: 95 | H137: 60 | I137: 45 | J137: 35 | K137: ふゆう
A138: 110-0 | B138: マタドガス | C138: どく | E138: 65 | F138: 90 | G138: 120 | H138: 85 | I138: 70 | J138: 60 | K138: ふゆう
A139: 111-0 | B139: サイホーン | C139: じめん | D139: いわ | E139: 80 | F139: 85 | G139: 95 | H139: 30 | I139: 30 | J139: 25 | K139: ひらいしん | L139: いしあたま | M139: すてみ
A140: 112-0 | B140: サイドン | C140: じめん | D140: いわ | E140: 105 | F140: 130 | G140: 120 | H140: 45 | I140: 45 | J140: 40 | K140: ひらいしん | L140: いしあたま | M140: すてみ
A141: 113-0 | B141: ラッキー | C141: ノーマル | E141: 250 | F141: 5 | G141: 5 | H141: 35 | I141: 105 | J141: 50 | K141: しぜんかいふく | L141: てんのめぐみ | M141: いやしのこころ
A142: 114-0 | B142: モンジャラ | C142: くさ | E142: 65 | F142: 55 | G142: 115 | H142: 100 | I142: 40 | J142: 60 | K142: ようりょくそ | L142: リーフガード | M142: さいせいりょく
A143: 115-0 | B143: ガルーラ | C143: ノーマル | E143: 105 | F143: 95 | G143: 80 | H143: 40 | I143: 80 | J143: 90 | K143: はやおき | L143: きもったま | M143: せいしんりょく
A144: 115-1 | B144: メガガルーラ | C144: ノーマル | E144: 105 | F144: 125 | G144: 100 | H144: 60 | I144: 100 | J144: 100 | K144: おやこあい
A145: 116-0 | B145: タッツー | C145: みず | E145: 30 | F145: 40 | G145: 70 | H145: 70 | I145: 25 | J145: 60 | K145: すいすい | L145: スナイパー | M145: しめりけ
A146: 117-0 | B146: シードラ | C146: みず | E146: 55 | F146: 65 | G146: 95 | H146: 95 | I146: 45 | J146: 85 | K146: どくのトゲ | L146: スナイパー | M146: しめりけ
A147: 118-0 | B147: トサキント | C147: みず | E147: 45 | F147: 67 | G147: 60 | H147: 35 | I147: 50 | J147: 63 | K147: すいすい | L147: みずのベール | M147: ひらいしん
A148: 119-0 | B148: アズマオウ | C148: みず | E148: 80 | F148: 92 | G148: 65 | H148: 65 | I148: 80 | J148: 68 | K148: すいすい | L148: みずのベール | M148: ひらいしん
A149: 120-0 | B149: ヒトデマン | C149: みず | E149: 30 | F149: 45 | G149: 55 | H149: 70 | I149: 55 | J149: 85 | K149: はっこう | L149: しぜんかいふく | M149: アナライズ
A150: 121-0 | B150: スターミー | C150: みず | D150: エスパー | E150: 60 | F150: 75 | G150: 85 | H150: 100 | I150: 85 | J150: 115 | K150: はっこう | L150: しぜんかいふく | M150: アナライズ
A151: 122-0 | B151: バリヤード | C151: エスパー | D151: フェアリー | E151: 40 | F151: 45 | G151: 65 | H151: 100 | I151: 120 | J151: 90 | K151: ぼうおん | L151: フィルター | M151: テクニシャン
A152: 123-0 | B152: ストライク | C152: むし | D152: はがね | E152: 70 | F152: 110 | G152: 80 | H152: 55 | I152: 80 | J152: 105 | K152: むしのしらせ | L152: テクニシャン | M152: ふくつのこころ
A153: 124-0 | B153: ルージュラ | C153: こおり | D153: エスパー | E153: 65 | F153: 50 | G153: 35 | H153: 115 | I153: 95 | J153: 95 | K153: どんかん | L153: よちむ | M153: かんそうはだ
A154: 125-0 | B154: エレブー | C154: でんき | E154: 65 | F154: 83 | G154: 57 | H154: 95 | I154: 85 | J154: 105 | K154: せいでんき | M154: やるき
A155: 126-0 | B155: ブーバー | C155: ほのお | E155: 65 | F155: 95 | G155: 57 | H155: 100 | I155: 85 | J155: 93 | K155: ほのおのからだ | M155: やるき
A156: 127-0 | B156: カイロス | C156: むし | E156: 65 | F156: 125 | G156: 100 | H156: 55 | I156: 70 | J156: 85 | K156: かいりきバサミ | L156: かたやぶり | M156: じしんかじょう
A157: 127-1 | B157: メガカイロス | C157: むし | D157: ひこう | E157: 65 | F157: 155 | G157: 120 | H157: 65 | I157: 90 | J157: 105 | K157: スカイスキン
A158: 128-0 | B158: ケンタロス | C158: ノーマル | E158: 75 | F158: 100 | G158: 95 | H158: 40 | I158: 70 | J158: 110 | K158: いかく | L158: いかりのつぼ | M158: ちからずく
A159: 129-0 | B159: コイキング | C159: みず | E159: 20 | F159: 10 | G159: 55 | H159: 15 | I159: 20 | J159: 80 | K159: すいすい | M159: びびり
A160: 130-0 | B160: ギャラドス | C160: みず | D160: ひこう | E160: 95 | F160: 125 | G160: 79 | H160: 60 | I160: 100 | J160: 81 | K160: いかく | M160: じしんかじょう
A161: 130-1 | B161: メガギャラドス | C161: みず | D161: あく | E161: 95 | F161: 155 | G161: 109 | H161: 70 | I161: 130 | J161: 81 | K161: かたやぶり
A162: 131-0 | B162: ラプラス | C162: みず | D162: こおり | E162: 130 | F162: 85 | G162: 80 | H162: 85 | I162: 95 | J162: 60 | K162: ちょすい | L162: シェルアーマー | M162: うるおいボディ
A163: 132-0 | B163: メタモン | C163: ノーマル | E163: 48 | F163: 48 | G163: 48 | H163: 48 | I163: 48 | J163: 48 | K163: じゅうなん | M163: かわりもの
A164: 133-0 | B164: イーブイ | C164: ノーマル | E164: 55 | F164: 55 | G164: 50 | H164: 45 | I164: 65 | J164: 55 | K164: にげあし | L164: てきおうりょく | M164: きけんよち
A165: 134-0 | B165: シャワーズ | C165: みず | E165: 130 | F165: 65 | G165: 60 | H165: 110 | I165: 95 | J165: 65 | K165: ちょすい | M165: うるおいボディ
A166: 135-0 | B166: サンダース | C166: でんき | E166: 65 | F166: 65 | G166: 60 | H166: 110 | I166: 95 | J166: 130 | K166: ちくでん | M166: はやあし
A167: 136-0 | B167: ブースター | C167: ほのお | E167: 65 | F167: 130 | G167: 60 | H167: 95 | I167: 110 | J167: 65 | K167: もらいび | M167: こんじょう
A168: 137-0 | B168: ポリゴン | C168: ノーマル | E168: 65 | F168: 60 | G168: 70 | H168: 85 | I168: 75 | J168: 40 | K168: トレース | L168: ダウンロード | M168: アナライズ
A169: 138-0 | B169: オムナイト | C169: いわ | D169: みず | E169: 35 | F169: 40 | G169: 100 | H169: 90 | I169: 55 | J169: 35 | K169: すいすい | L169: シェルアーマー | M169: くだけるよろい
A170: 139-0 | B170: オムスター | C170: いわ | D170: みず | E170: 70 | F170: 60 | G170: 125 | H170: 115 | I170: 70 | J170: 55 | K170: すいすい | L170: シェルアーマー | M170: くだけるよろい
A171: 140-0 | B171: カブト | C171: いわ | D171: みず | E171: 30 | F171: 80 | G171: 90 | H171: 55 | I171: 45 | J171: 55 | K171: すいすい | L171: カブトアーマー | M171: くだけるよろい
A172: 141-0 | B172: カブトプス | C172: いわ | D172: みず | E172: 60 | F172: 115 | G172: 105 | H172: 65 | I172: 70 | J172: 80 | K172: すいすい | L172: カブトアーマー | M172: くだけるよろい
A173: 142-0 | B173: プテラ | C173: いわ | D173: ひこう | E173: 80 | F173: 105 | G173: 65 | H173: 60 | I173: 75 | J173: 130 | K173: いしあたま | L173: プレッシャー | M173: きんちょうかん
A174: 142-1 | B174: メガプテラ | C174: いわ | D174: ひこう | E174: 80 | F174: 135 | G174: 85 | H174: 70 | I174: 95 | J174: 150 | K174: かたいツメ
A175: 143-0 | B175: カビゴン | C175: ノーマル | E175: 160 | F175: 110 | G175: 65 | H175: 65 | I175: 110 | J175: 30 | K175: めんえき | L175: あついしぼう | M175: くいしんぼう
A176: 144-0 | B176: フリーザー | C176: こおり | D176: ひこう | E176: 90 | F176: 85 | G176: 100 | H176: 95 | I176: 125 | J176: 85 | K176: プレッシャー | M176: ゆきがくれ
A177: 145-0 | B177: サンダー | C177: でんき | D177: ひこう | E177: 90 | F177: 90 | G177: 85 | H177: 125 | I177: 90 | J177: 100 | K177: プレッシャー | M177: せいでんき
A178: 146-0 | B178: ファイヤー | C178: ほのお | D178: ひこう | E178: 90 | F178: 100 | G178: 90 | H178: 125 | I178: 85 | J178: 90 | K178: プレッシャー | M178: ほのおのからだ
A179: 147-0 | B179: ミニリュウ | C179: ドラゴン | E179: 41 | F179: 64 | G179: 45 | H179: 50 | I179: 50 | J179: 50 | K179: だっぴ | M179: ふしぎなうろこ
A180: 148-0 | B180: ハクリュー | C180: ドラゴン | E180: 61 | F180: 84 | G180: 65 | H180: 70 | I180: 70 | J180: 70 | K180: だっぴ | M180: ふしぎなうろこ
A181: 149-0 | B181: カイリュー | C181: ドラゴン | D181: ひこう | E181: 91 | F181: 134 | G181: 95 | H181: 100 | I181: 100 | J181: 80 | K181: せいしんりょく | M181: マルチスケイル
A182: 150-0 | B182: ミュウツー | C182: エスパー | E182: 106 | F182: 110 | G182: 90 | H182: 154 | I182: 90 | J182: 130 | K182: プレッシャー | M182: きんちょうかん
A183: 150-1 | B183: メガミュウツーX | C183: エスパー | D183: かくとう | E183: 106 | F183: 190 | G183: 100 | H183: 154 | I183: 100 | J183: 130 | K183: ふくつのこころ
A184: 150-1 | B184: メガミュウツーY | C184: エスパー | E184: 106 | F184: 150 | G184: 70 | H184: 194 | I184: 120 | J184: 140 | K184: ふみん
A185: 151-0 | B185: ミュウ | C185: エスパー | E185: 100 | F185: 100 | G185: 100 | H185: 100 | I185: 100 | J185: 100 | K185: シンクロ
A186: 152-0 | B186: チコリータ | C186: くさ | E186: 45 | F186: 49 | G186: 65 | H186: 49 | I186: 65 | J186: 45 | K186: しんりょく | M186: リーフガード
A187: 153-0 | B187: ベイリーフ | C187: くさ | E187: 60 | F187: 62 | G187: 80 | H187: 63 | I187: 80 | J187: 60 | K187: しんりょく | M187: リーフガード
A188: 154-0 | B188: メガニウム | C188: くさ | E188: 80 | F188: 82 | G188: 100 | H188: 83 | I188: 100 | J188: 80 | K188: しんりょく | M188: リーフガード
A189: 155-0 | B189: ヒノアラシ | C189: ほのお | E189: 39 | F189: 52 | G189: 43 | H189: 60 | I189: 50 | J189: 65 | K189: もうか | M189: もらいび
A190: 156-0 | B190: マグマラシ | C190: ほのお | E190: 58 | F190: 64 | G190: 58 | H190: 80 | I190: 65 | J190: 80 | K190: もうか | M190: もらいび
A191: 157-0 | B191: バクフーン | C191: ほのお | E191: 78 | F191: 84 | G191: 78 | H191: 109 | I191: 85 | J191: 100 | K191: もうか | M191: もらいび
A192: 158-0 | B192: ワニノコ | C192: みず | E192: 50 | F192: 65 | G192: 64 | H192: 44 | I192: 48 | J192: 43 | K192: げきりゅう | M192: ちからずく
A193: 159-0 | B193: アリゲイツ | C193: みず | E193: 65 | F193: 80 | G193: 80 | H193: 59 | I193: 63 | J193: 58 | K193: げきりゅう | M193: ちからずく
A194: 160-0 | B194: オーダイル | C194: みず | E194: 85 | F194: 105 | G194: 100 | H194: 79 | I194: 83 | J194: 78 | K194: げきりゅう | M194: ちからずく
A195: 161-0 | B195: オタチ | C195: ノーマル | E195: 35 | F195: 46 | G195: 34 | H195: 35 | I195: 45 | J195: 20 | K195: にげあし | L195: するどいめ | M195: おみとおし
A196: 162-0 | B196: オオタチ | C196: ノーマル | E196: 85 | F196: 76 | G196: 64 | H196: 45 | I196: 55 | J196: 90 | K196: にげあし | L196: するどいめ | M196: おみとおし
A197: 163-0 | B197: ホーホー | C197: ノーマル | D197: ひこう | E197: 60 | F197: 30 | G197: 30 | H197: 36 | I197: 56 | J197: 50 | K197: ふみん | L197: するどいめ | M197: いろめがね
A198: 164-0 | B198: ヨルノズク | C198: ノーマル | D198: ひこう | E198: 100 | F198: 50 | G198: 50 | H198: 86 | I198: 96 | J198: 70 | K198: ふみん | L198: するどいめ | M198: いろめがね
A199: 165-0 | B199: レディバ | C199: むし | D199: ひこう | E199: 40 | F199: 20 | G199: 30 | H199: 40 | I199: 80 | J199: 55 | K199: むしのしらせ | L199: はやおき | M199: びびり
A200: 166-0 | B200: レディアン | C200: むし | D200: ひこう | E200: 55 | F200: 35 | G200: 50 | H200: 55 | I200: 110 | J200: 85 | K200: むしのしらせ | L200: はやおき | M200: てつのこぶし
... 709 more rows

Sheet キャプチャ用 (hidden)
B2: No. | C2: =計算表!F2 -> 330 | E2: =IF(H2=TRUE,"【H】"&IF(計算表!D13<10," ",IF(計算表!D13<100," ",""))&IF(計算表!D13=0,"0","")&計算表!D13&"(36x"&TRUNC(計算表!D13/36)&"+4x"&TRUNC(MOD(計算表!D13,36)/4)&"+"&MOD(MOD(計算表!D13,36),4)&")","") -> 【H】 6(36x0+4x1+2) | H2: TRUE
B3: なまえ | C3: =計算表!F3 -> メガフライゴン | E3: =IF(H3=TRUE,"【A】"&IF(計算表!D14<10," ",IF(計算表!D14<100," ",""))&IF(計算表!D14=0,"0","")&計算表!D14&"(36x"&TRUNC(計算表!D14/36)&"+4x"&TRUNC(MOD(計算表!D14,36)/4)&"+"&MOD(MOD(計算表!D14,36),4)&")","") -> 【A】252(36x7+4x0+0) | H3: =H2 -> TRUE
B4: タイプ | C4: =計算表!F4 -> はがね | D4: =IF(計算表!G4<>"",計算表!G4,"") -> ドラゴン | E4: =IF(H4=TRUE,"【B】"&IF(計算表!D15<10," ",IF(計算表!D15<100," ",""))&IF(計算表!D15=0,"0","")&計算表!D15&"(36x"&TRUNC(計算表!D15/36)&"+4x"&TRUNC(MOD(計算表!D15,36)/4)&"+"&MOD(MOD(計算表!D15,36),4)&")","") -> 【B】 0(36x0+4x0+0) | H4: =H3 -> TRUE
B5: とくせい | C5: =計算表!F5 -> ふゆう | D5: =IF(計算表!G5<>"",計算表!G5,"") ->  | E5: =IF(H5=TRUE,"【C】"&IF(計算表!D16<10," ",IF(計算表!D16<100," ",""))&IF(計算表!D16=0,"0","")&計算表!D16&"(36x"&TRUNC(計算表!D16/36)&"+4x"&TRUNC(MOD(計算表!D16,36)/4)&"+"&MOD(MOD(計算表!D16,36),4)&")","") -> 【C】 0(36x0+4x0+0) | H5: TRUE
B6: ゆめとくせい | C6: =IF(計算表!F6<>"",計算表!F6,"") ->  | E6: =IF(H6=TRUE,"【D】"&IF(計算表!D17<10," ",IF(計算表!D17<100," ",""))&IF(計算表!D17=0,"0","")&計算表!D17&"(36x"&TRUNC(計算表!D17/36)&"+4x"&TRUNC(MOD(計算表!D17,36)/4)&"+"&MOD(MOD(計算表!D17,36),4)&")","") -> 【D】 0(36x0+4x0+0) | H6: TRUE
C7: ステータス計算 | E7: =IF(H7=TRUE,"【S】"&IF(計算表!D18<10," ",IF(計算表!D18<100," ",""))&IF(計算表!D18=0,"0","")&計算表!D18&"(36x"&TRUNC(計算表!D18/36)&"+4x"&TRUNC(MOD(計算表!D18,36)/4)&"+"&MOD(MOD(計算表!D18,36),4)&")","") -> 【S】252(36x7+4x0+0) | H7: TRUE
C8: ="性格："&計算表!C10 -> 性格：ようき | E8: ="もちもの："&計算表!B19 -> もちもの：その他
C9: 種族値 | D9: 個体値 | E9: 努力値 | F9: Lv.50時
B10: HP（H） | C10: =計算表!B13 -> 80 | D10: =計算表!C13 -> 31 | E10: =計算表!D13 -> 6 | F10: =計算表!G13 -> 156
B11: こうげき（A） | C11: =計算表!B14 -> 145 | D11: =計算表!C14 -> 31 | E11: =計算表!D14 -> 252 | F11: =計算表!G14 -> 197
B12: ぼうぎょ（B） | C12: =計算表!B15 -> 105 | D12: =計算表!C15 -> 31 | E12: =計算表!D15 -> 0 | F12: =計算表!G15 -> 125
B13: とくこう（C） | C13: =計算表!B16 -> 80 | D13: =計算表!C16 -> 31 | E13: =計算表!D16 -> 0 | F13: =計算表!G16 -> 90
B14: とくぼう（D） | C14: =計算表!B17 -> 105 | D14: =計算表!C17 -> 31 | E14: =計算表!D17 -> 0 | F14: =計算表!G17 -> 125
B15: すばやさ（S） | C15: =計算表!B18 -> 105 | D15: =計算表!C18 -> 30 | E15: =計算表!D18 -> 252 | F15: =計算表!G18 -> 171

Sheet 技一覧
B2: 技名 | C2: タイプ | D2: 威力 | E2: 命中 | F2: PP | G2: PPMAX | H2: 分類 | I2: 対象 | J2: 接触 | K2: 優先度 | L2: 急所 | M2: 毒 | N2: 猛毒 | O2: 麻痺 | P2: 火傷 | Q2: 眠り | R2: 凍り | S2: 混乱 | T2: メロメロ | U2: 怯み | V2: 説明
B3: 10まんばりき | C3: じめん | D3: 95 | E3: 95 | F3: 10 | G3: 16 | H3: 物理 | I3: 選択 | J3: 〇 | V3: -
B4: 10まんボルト | C4: でんき | D4: 90 | E4: 100 | F4: 15 | G4: 24 | H4: 特殊 | I4: 選択 | J4: × | O4: 0.1
B5: ＤＤラリアット | C5: あく | D5: 85 | E5: 100 | F5: 10 | G5: 16 | H5: 物理 | I5: 選択 | J5: 〇 | V5: 相手の能力変化を無視してダメージを与える。
B6: Vジェネレート | C6: ほのお | D6: 180 | E6: 95 | F6: 5 | G6: 8 | H6: 物理 | I6: 選択 | J6: ○ | V6: 攻撃後、自分の『すばやさ』『ぼうぎょ』『とくぼう』ランクが1段階ずつ下がる。
B7: アームハンマー | C7: かくとう | D7: 100 | E7: 90 | F7: 10 | G7: 16 | H7: 物理 | I7: 選択 | J7: ○ | V7: 攻撃後、自分の『すばやさ』ランクが1段階下がる。特性『てつのこぶし』の時、威力が1.2倍になる。
B8: アイアンテール | C8: はがね | D8: 100 | E8: 75 | F8: 15 | G8: 24 | H8: 物理 | I8: 選択 | J8: ○ | V8: 30%の確率で相手の『ぼうぎょ』ランクを1段階下げる。
B9: アイアンヘッド | C9: はがね | D9: 80 | E9: 100 | F9: 15 | G9: 24 | H9: 物理 | I9: 選択 | J9: ○ | U9: 0.3
B10: アイスハンマー | C10: こおり | D10: 100 | E10: 90 | F10: 10 | G10: 16 | H10: 物理 | I10: 選択 | J10: 〇 | V10: 攻撃後、自分の『すばやさ』ランクが1段階下がる。
B11: アイスボール | C11: こおり | D11: 30 | E11: 90 | F11: 20 | G11: 32 | H11: 物理 | I11: 選択 | J11: ○ | V11: 外れるまで5ターン連続で攻撃し、攻撃が当たる度にダメージが倍増する。事前に技『まるくなる』を使っているとダメージが2倍になる。
B12: あおいほのお | C12: ほのお | D12: 130 | E12: 85 | F12: 5 | G12: 8 | H12: 特殊 | I12: 選択 | J12: × | P12: 0.2
B13: アクアジェット | C13: みず | D13: 40 | E13: 100 | F13: 20 | G13: 32 | H13: 物理 | I13: 選択 | J13: ○ | K13: +1
B14: アクアテール | C14: みず | D14: 90 | E14: 90 | F14: 10 | G14: 16 | H14: 物理 | I14: 選択 | J14: ○
B15: アクアブレイク | C15: みず | D15: 85 | E15: 100 | F15: 10 | G15: 16 | H15: 物理 | I15: 選択 | J15: 〇 | V15: 20%の確率で、相手の『ぼうぎょ』ランクを1段階下げる。
B16: アクアリング | C16: みず | D16: - | E16: - | F16: 20 | G16: 32 | H16: 変化 | I16: 自分 | J16: × | V16: 使用後、毎ターン、HPが少しずつ回復する。
B17: あくうせつだん | C17: ドラゴン | D17: 100 | E17: 95 | F17: 5 | G17: 8 | H17: 特殊 | I17: 選択 | J17: × | L17: +1
B18: アクセルロック | C18: いわ | D18: 40 | E18: 100 | F18: 20 | G18: 32 | H18: 物理 | I18: 選択 | J18: 〇 | K18: +1 | V18: -
B19: あくのはどう | C19: あく | D19: 80 | E19: 100 | F19: 15 | G19: 24 | H19: 特殊 | I19: 選択 | J19: × | U19: 0.2
B20: あくび | C20: ノーマル | D20: - | E20: - | F20: 10 | G20: 16 | H20: 変化 | I20: 選択 | J20: × | Q20: 1 | V20: 次のターン終了時にただし、そのポケモンが交代されると効果は消える。
B21: あくまのキッス | C21: ノーマル | D21: - | E21: 75 | F21: 10 | G21: 16 | H21: 変化 | I21: 選択 | J21: × | Q21: 1
B22: あくむ | C22: ゴースト | D22: - | E22: 100 | F22: 15 | G22: 24 | H22: 変化 | I22: 選択 | J22: × | V22: 相手が『ねむり』状態の時、『あくむ』状態にする。『あくむ』状態になると、毎ターン、HPが最大HPの1/4ずつ減る。ただし『ねむり』状態から覚めると『あくむ』状態も解かれる。
B23: アクロバット | C23: ひこう | D23: 55 | E23: 100 | F23: 15 | G23: 24 | H23: 物理 | I23: 選択 | J23: ○ | V23: 自分が道具を持っていない時、威力が2倍になる。
B24: あさのひざし | C24: ノーマル | D24: - | E24: - | F24: 5 | G24: 8 | H24: 変化 | I24: 自分 | J24: × | V24: HPが、天気が通常の時は最大HPの1/2、『ひざしがつよい』の時は最大HPの2/3、『あめ』『あられ』『すなあらし』の時は最大HPの1/4回復する。
B25: アシストギア | C25: はがね | D25: – | E25: – | F25: 20 | G25: 32 | H25: 変化 | I25: 味方全体 | J25: × | V25: 味方の特性『プラス』『マイナス』のポケモンの『こうげき』『とくこう』を1段階ずつ上げる。
B26: アシストパワー | C26: エスパー | D26: 20 | E26: 100 | F26: 10 | G26: 16 | H26: 特殊 | I26: 選択 | J26: × | V26: 自分のいずれかの『のうりょく』ランクが1つ上がる度に威力が20上がる。
B27: アシッドボム | C27: どく | D27: 40 | E27: 100 | F27: 20 | G27: 32 | H27: 特殊 | I27: 選択 | J27: × | V27: 相手の『とくぼう』ランクを2段階下げる。
B28: あてみなげ | C28: かくとう | D28: 70 | E28: - | F28: 10 | G28: 16 | H28: 物理 | I28: 選択 | J28: ○ | K28: -1 | V28: 必ず後攻になる代わりに、自分の命中率、相手の回避率に関係なく必ず命中する。
B29: あなをほる | C29: じめん | D29: 80 | E29: 100 | F29: 10 | G29: 16 | H29: 物理 | I29: 選択 | J29: ○ | V29: 1ターン目に地中に潜り、2ターン目に攻撃する。地中にいる間はほとんどの技を受けない。
B30: あばれる | C30: ノーマル | D30: 120 | E30: 100 | F30: 10 | G30: 16 | H30: 物理 | I30: ランダム1体 | J30: ○ | V30: 2～3ターン連続で攻撃し、その後自分は1～4ターンの間『こんらん』状態になる。
B31: アフロブレイク | C31: ノーマル | D31: 120 | E31: 100 | F31: 15 | G31: 24 | H31: 物理 | I31: 選択 | J31: ○ | V31: 相手に与えたダメージの1/4を自分も受ける。
B32: あまいかおり | C32: ノーマル | D32: - | E32: 100 | F32: 20 | G32: 32 | H32: 変化 | I32: 相手全体 | J32: × | V32: 相手の回避率を2段階下げる。フィールドで使うと野生のポケモンが出現し、群れバトルが発生する場所では群れバトルになる。XYのみ雨が降っている場所では群れバトルは発生しない。
B33: あまえる | C33: フェアリー | D33: - | E33: 100 | F33: 20 | G33: 32 | H33: 変化 | I33: 選択 | J33: × | V33: 相手の『こうげき』ランクを2段階下げる。
B34: あまごい | C34: みず | D34: - | E34: - | F34: 5 | G34: 8 | H34: 変化 | I34: 全体の場 | J34: × | V34: 5ターンの間、天気を『あめ』にする。
B35: あやしいかぜ | C35: ゴースト | D35: 60 | E35: 100 | F35: 5 | G35: 8 | H35: 特殊 | I35: 選択 | J35: × | V35: 10%の確率で自分の『こうげき』『ぼうぎょ』『とくこう』『とくぼう』『すばやさ』ランクが1段階ずつ上がる。
B36: あやしいひかり | C36: ゴースト | D36: - | E36: 100 | F36: 10 | G36: 16 | H36: 変化 | I36: 選択 | J36: × | S36: 1
B37: あられ | C37: こおり | D37: - | E37: - | F37: 10 | G37: 16 | H37: 変化 | I37: 全体の場 | J37: × | V37: 5ターンの間、天気を『あられ』にする。
B38: アロマセラピー | C38: くさ | D38: - | E38: - | F38: 5 | G38: 8 | H38: 変化 | I38: 味方全体 | J38: × | V38: すべての味方のポケモンの状態異常を治す。
B39: アロマミスト | C39: フェアリー | D39: - | E39: - | F39: 20 | G39: 32 | H39: 変化 | I39: 味方1体 | J39: × | V39: 味方1体の『とくぼう』を1段階上げる。ダブルバトル・トリプルバトル用。
B40: あわ | C40: みず | D40: 40 | E40: 100 | F40: 30 | G40: 48 | H40: 特殊 | I40: 相手全体 | J40: × | V40: 10%の確率で相手の『すばやさ』ランクを1段階下げる。
B41: アンカーショット | C41: はがね | D41: 80 | E41: 100 | F41: 20 | G41: 32 | H41: 物理 | I41: 選択 | J41: 〇 | V41: 相手は逃げたり交代できなくなる。
B42: アンコール | C42: ノーマル | D42: - | E42: 100 | F42: 5 | G42: 8 | H42: 変化 | I42: 選択 | J42: × | V42: 3ターンの間、相手は最後に使用した技しか使えなくなる。ただし、PPが0になると解除される。
B43: いあいぎり | C43: ノーマル | D43: 50 | E43: 95 | F43: 30 | G43: 48 | H43: 物理 | I43: 選択 | J43: ○
B44: いえき | C44: どく | D44: - | E44: 100 | F44: 10 | G44: 16 | H44: 変化 | I44: 選択 | J44: × | V44: 相手の特性を無効にする。
B45: イカサマ | C45: あく | D45: 95 | E45: 100 | F45: 15 | G45: 24 | H45: 物理 | I45: 選択 | J45: ○ | V45: 自分の『こうげき』ではなく、相手の『こうげき』の能力値でダメージ計算する。
B46: いかり | C46: ノーマル | D46: 20 | E46: 100 | F46: 20 | G46: 32 | H46: 物理 | I46: 選択 | J46: ○ | V46: 相手の攻撃を受ける度にこの技の威力が倍増する。ただし、攻撃が外れたり連続で使用しないと元に戻る。
B47: いかりのこな | C47: むし | D47: - | E47: - | F47: 20 | G47: 32 | H47: 変化 | I47: 自分 | J47: × | K47: +2 | V47: そのターンの相手の技をすべて自分が受ける。『くさ』タイプや特性『ぼうじん』のポケモンには無効。ダブルバトル・トリプルバトル用。
B48: いかりのまえば | C48: ノーマル | D48: - | E48: 90 | F48: 10 | G48: 16 | H48: 物理 | I48: 選択 | J48: ○ | V48: 相手のHPを残りHPの半分にする。
B49: いじげんホール | C49: エスパー | D49: 80 | E49: - | F49: 5 | G49: 8 | H49: 特殊 | I49: 選択 | J49: × | V49: 相手の『まもる』『みきり』『たたみがえし』『キングシールド』『ニードルガード』の効果を受けない。
B50: いじげんラッシュ | C50: あく | D50: 100 | E50: - | F50: 5 | G50: 8 | H50: 物理 | I50: 選択 | J50: × | V50: 相手の『まもる』『みきり』『たたみがえし』『キングシールド』『ニードルガード』の効果を受けない。攻撃後、自分の『ぼうぎょ』ランクが1段階下がる。
B51: いたみわけ | C51: ノーマル | D51: - | E51: - | F51: 20 | G51: 32 | H51: 変化 | I51: 選択 | J51: × | V51: 自分と相手のHPを2匹の残りHPの平均値にする。(足して2で割る)
B52: いちゃもん | C52: あく | D52: - | E52: 100 | F52: 15 | G52: 24 | H52: 変化 | I52: 選択 | J52: × | V52: 使用後、相手は同じ技を連続で出せなくなる。
B53: いとをはく | C53: むし | D53: - | E53: 95 | F53: 40 | G53: 64 | H53: 変化 | I53: 相手全体 | J53: × | V53: 相手の『すばやさ』ランクを2段階下げる。
B54: いにしえのうた | C54: ノーマル | D54: 75 | E54: 100 | F54: 10 | G54: 16 | H54: 特殊 | I54: 相手全体 | J54: × | Q54: 0.1 | V54: 相手が『みがわり』状態でも命中する。
B55: いのちがけ | C55: かくとう | D55: - | E55: 100 | F55: 5 | G55: 8 | H55: 特殊 | I55: 選択 | J55: ○ | V55: 自分のHPを0にし、その分のダメージを相手に与える。
B56: いばる | C56: ノーマル | D56: - | E56: 85 | F56: 15 | G56: 24 | H56: 変化 | I56: 選択 | J56: × | S56: 1 | V56: 相手の『こうげき』ランクを2段階上げてしまう。
B57: いびき | C57: ノーマル | D57: 50 | E57: 100 | F57: 15 | G57: 24 | H57: 特殊 | I57: 選択 | J57: × | U57: 0.3 | V57: 自分が『ねむり』状態の時のみ使用可能。相手が『みがわり』状態でも命中する。
B58: いやしのすず | C58: ノーマル | D58: - | E58: - | F58: 5 | G58: 8 | H58: 変化 | I58: 味方全体 | J58: × | V58: すべての味方のポケモンの状態異常を治す。味方が『みがわり』状態でも効果が発生する。
B59: いやしのねがい | C59: エスパー | D59: - | E59: - | F59: 10 | G59: 16 | H59: 変化 | I59: 自分 | J59: × | V59: 自分が『ひんし』になる代わりに、次に出す自分のポケモンの状態異常とHPが全回復する。
B60: いやしのはどう | C60: エスパー | D60: - | E60: - | F60: 10 | G60: 16 | H60: 変化 | I60: 選択 | J60: × | V60: 相手は最大HPの1/2回復する。(ダブルバトル・トリプルバトルで味方に使うと良い)
B61: いやなおと | C61: ノーマル | D61: - | E61: 85 | F61: 40 | G61: 64 | H61: 変化 | I61: 選択 | J61: × | V61: 相手の『ぼうぎょ』ランクを2段階下げる。相手が『みがわり』状態でも命中する。
B62: いわおとし | C62: いわ | D62: 50 | E62: 90 | F62: 15 | G62: 24 | H62: 物理 | I62: 選択 | J62: ×
B63: いわくだき | C63: かくとう | D63: 40 | E63: 100 | F63: 15 | G63: 24 | H63: 物理 | I63: 選択 | J63: ○ | V63: 50%の確率で相手の『ぼうぎょ』ランクを1段階下げる。
B64: いわなだれ | C64: いわ | D64: 75 | E64: 90 | F64: 10 | G64: 16 | H64: 物理 | I64: 相手全体 | J64: × | U64: 0.3
B65: インファイト | C65: かくとう | D65: 120 | E65: 100 | F65: 5 | G65: 8 | H65: 物理 | I65: 選択 | J65: ○ | V65: 攻撃後、自分の『ぼうぎょ』『とくぼう』ランクが1段階ずつ下がる。
B66: ウェザーボール | C66: ノーマル | D66: 50 | E66: 100 | F66: 10 | G66: 16 | H66: 特殊 | I66: 選択 | J66: × | V66: 天気が『ひざしがつよい』の時は『ほのお』タイプ、『あめ』の時は『みず』タイプ、『あられ』の時は『こおり』タイプ、『すなあらし』の時は『いわ』タイプになり、威力が2倍になる。
B67: うずしお | C67: みず | D67: 35 | E67: 85 | F67: 15 | G67: 24 | H67: 特殊 | I67: 選択 | J67: × | V67: 4～5ターンの間、毎ターン終了後最大HPの1/8のダメージを与え、その間相手は逃げられない。相手が『ダイビング』を使っている時でも命中し、ダメージが2倍になる。
B68: うそなき | C68: あく | D68: - | E68: 100 | F68: 20 | G68: 32 | H68: 変化 | I68: 選択 | J68: × | V68: 相手の『とくぼう』ランクを2段階下げる。
B69: うたう | C69: ノーマル | D69: - | E69: 55 | F69: 15 | G69: 24 | H69: 変化 | I69: 選択 | J69: × | Q69: 1 | V69: 相手が『みがわり』状態でも命中する。
B70: うたかたのアリア | C70: みず | D70: 90 | E70: 100 | F70: 10 | G70: 16 | H70: 特殊 | I70: 自分以外 | J70: × | V70: 相手の『やけど』状態を治す。
B71: うちおとす | C71: いわ | D71: 50 | E71: 100 | F71: 15 | G71: 24 | H71: 物理 | I71: 選択 | J71: × | V71: 特性『ふゆう』や、『ひこう』タイプのポケモンに『じめん』タイプの技が当たるようになる。また、技『そらをとぶ』『とびはねる』『でんじふゆう』『テレキネシス』『フリーフォール』の効果が解除される。
B72: ウッドハンマー | C72: くさ | D72: 120 | E72: 100 | F72: 15 | G72: 24 | H72: 物理 | I72: 選択 | J72: ○ | V72: 相手に与えたダメージの1/3を自分も受ける。
B73: ウッドホーン | C73: くさ | D73: 75 | E73: 100 | F73: 10 | G73: 16 | H73: 物理 | I73: 選択 | J73: ○ | V73: 相手に与えたダメージの半分だけ自分のHPが回復する。
B74: うらみ | C74: ゴースト | D74: - | E74: 100 | F74: 10 | G74: 16 | H74: 変化 | I74: 選択 | J74: × | V74: 相手の最後に使った技のPPを4減らす。
B75: エアカッター | C75: ひこう | D75: 60 | E75: 95 | F75: 25 | G75: 40 | H75: 特殊 | I75: 相手全体 | J75: × | L75: +1
B76: エアスラッシュ | C76: ひこう | D76: 75 | E76: 95 | F76: 15 | G76: 24 | H76: 特殊 | I76: 選択 | J76: × | U76: 0.3
B77: エアロブラスト | C77: ひこう | D77: 100 | E77: 95 | F77: 5 | G77: 8 | H77: 特殊 | I77: 選択 | J77: × | L77: +1
B78: エコーボイス | C78: ノーマル | D78: 40 | E78: 100 | F78: 15 | G78: 24 | H78: 特殊 | I78: 選択 | J78: × | V78: 毎ターン、誰かが技『エコーボイス』を使う度に威力が高くなっていく。相手が『みがわり』状態でも命中する。
B79: エナジーボール | C79: くさ | D79: 90 | E79: 100 | F79: 10 | G79: 16 | H79: 特殊 | I79: 選択 | J79: × | V79: 10%の確率で相手の『とくぼう』ランクを1段階下げる。
B80: エレキネット | C80: でんき | D80: 55 | E80: 95 | F80: 15 | G80: 24 | H80: 特殊 | I80: 相手全体 | J80: × | V80: 相手の『すばやさ』ランクを1段階下げる。
B81: エレキフィールド | C81: でんき | D81: - | E81: - | F81: 10 | G81: 16 | H81: 変化 | I81: 全体の場 | J81: × | V81: 5ターンの間、エレキフィールドにする。地面にいるすべてのポケモンは『ねむり』状態にならず、また『でんき』タイプの技の威力が1.5倍になる。
B82: エレキボール | C82: でんき | D82: - | E82: 100 | F82: 10 | G82: 16 | H82: 特殊 | I82: 選択 | J82: × | V82: 相手より『すばやさ』が高いほど威力が高くなる。1倍未満は40、2倍未満は60、3倍未満は80、4倍未満は120、それ以上は150。
B83: えんまく | C83: ノーマル | D83: - | E83: 100 | F83: 20 | G83: 32 | H83: 変化 | I83: 選択 | J83: × | V83: 相手の命中率を1段階下げる。
B84: おいうち | C84: あく | D84: 40 | E84: 100 | F84: 20 | G84: 32 | H84: 物理 | I84: 選択 | J84: ○ | V84: 相手がポケモンを交代する時に攻撃すると、交代前のポケモンに2倍のダメージを与える。
B85: おいかぜ | C85: ひこう | D85: - | E85: - | F85: 30 | G85: 48 | H85: 変化 | I85: 味方の場 | J85: × | V85: 4ターンの間、自分と味方の『すばやさ』が2倍になる。
B86: おいわい | C86: ノーマル | D86: 0 | E86: 0 | F86: 40 | G86: 64 | H86: 変化 | I86: 自分 | J86: × | V86: 効果なし。
B87: おうふくビンタ | C87: ノーマル | D87: 15 | E87: 85 | F87: 10 | G87: 16 | H87: 物理 | I87: 選択 | J87: ○ | V87: 1ターンに2～5回連続で攻撃する。
B88: オウムがえし | C88: ひこう | D88: - | E88: - | F88: 20 | G88: 32 | H88: 変化 | I88: 選択 | J88: × | V88: 相手が最後に使った技で、相手を攻撃する。技の対象が「通常」(1体選択)の場合は技を使用したポケモン(味方を含める)を攻撃し、それ以外の場合は、自分がその技を使用した場合に本来取りうる対象に攻撃する(「相手全体」「自分以外」など)。
B89: オーバーヒート | C89: ほのお | D89: 130 | E89: 90 | F89: 5 | G89: 8 | H89: 特殊 | I89: 選択 | J89: × | V89: 攻撃後、自分の『とくこう』ランクが2段階下がる。
B90: オーロラビーム | C90: こおり | D90: 65 | E90: 100 | F90: 20 | G90: 32 | H90: 特殊 | I90: 選択 | J90: × | V90: 10%の確率で相手の『こうげき』ランクを1段階下げる。
B91: オーロラベール | C91: こおり | D91: – | E91: – | F91: 20 | G91: 32 | H91: 変化 | I91: 味方の場 | J91: × | V91: 天気があられの時のみ使用可能。5ターンの間、物理・特殊ダメージを半減。味方2体やバトルロワイヤルの場合は半分ではなく2/3になる。急所に当たった場合は軽減されない。交代しても効果は続く。
B92: おきみやげ | C92: あく | D92: - | E92: 100 | F92: 10 | G92: 16 | H92: 変化 | I92: 選択 | J92: × | V92: 自分の命中率、相手の回避率に関係なく必ず命中する。自分が『ひんし』になる代わりに、相手の『こうげき』『とくこう』ランクを2段階ずつ下げる。
B93: オクタンほう | C93: みず | D93: 65 | E93: 85 | F93: 10 | G93: 16 | H93: 特殊 | I93: 選択 | J93: × | V93: 50%の確率で相手の命中率を1段階下げる。
B94: おさきにどうぞ | C94: ノーマル | D94: - | E94: - | F94: 15 | G94: 24 | H94: 変化 | I94: 選択 | J94: × | V94: 相手は『すばやさ』に関係なく、この技を受けた直後に行動できるようになる。ダブルバトル・トリプルバトル用。
B95: おしおき | C95: あく | D95: - | E95: 100 | F95: 5 | G95: 8 | H95: 物理 | I95: 選択 | J95: ○ | V95: 相手の『のうりょく』ランクが高い程、威力が高くなる。
B96: おしゃべり | C96: ひこう | D96: 65 | E96: 100 | F96: 20 | G96: 32 | H96: 特殊 | I96: 選択 | J96: × | V96: 『ペラップ』が使うと、相手が『みがわり』状態でも命中する。
B97: おたけび | C97: ノーマル | D97: - | E97: 100 | F97: 30 | G97: 48 | H97: 変化 | I97: 選択 | J97: × | V97: 相手の『こうげき』『とくこう』ランクを1段階下げる。相手が『みがわり』状態でも命中する。
B98: おだてる | C98: あく | D98: - | E98: 100 | F98: 15 | G98: 24 | H98: 変化 | I98: 選択 | J98: × | S98: 1 | V98: 相手の『とくこう』ランクを1段階上げてしまう。
B99: おどろかす | C99: ゴースト | D99: 30 | E99: 100 | F99: 15 | G99: 24 | H99: 物理 | I99: 選択 | J99: ○ | U99: 0.3
B100: おにび | C100: ほのお | D100: - | E100: 85 | F100: 15 | G100: 24 | H100: 変化 | I100: 選択 | J100: × | P100: 1 | V100: 『ほのお』タイプには無効。
B101: おまじない | C101: ノーマル | D101: - | E101: - | F101: 30 | G101: 48 | H101: 変化 | I101: 味方の場 | J101: × | V101: 5ターンの間、相手の攻撃が急所に当たらなくなる。
B102: おんがえし | C102: ノーマル | D102: - | E102: 100 | F102: 20 | G102: 32 | H102: 物理 | I102: 選択 | J102: ○ | V102: ポケモンがなついているほど威力が高くなる。最高102。
B103: おんねん | C103: ゴースト | D103: - | E103: - | F103: 5 | G103: 8 | H103: 変化 | I103: 自分 | J103: × | V103: 相手の技のダメージで『ひんし』状態になった場合、その技のPPを0にする。
B104: ガードシェア | C104: エスパー | D104: - | E104: - | F104: 10 | G104: 16 | H104: 変化 | I104: 選択 | J104: × | V104: 自分と相手の『ぼうぎょ』と『とくぼう』を足して半分に分ける。
B105: ガードスワップ | C105: エスパー | D105: - | E105: - | F105: 10 | G105: 16 | H105: 変化 | I105: 選択 | J105: × | V105: 自分と相手の『ぼうぎょ』『とくぼう』ランクを入れ替える。
B106: かいでんぱ | C106: でんき | D106: - | E106: 100 | F106: 15 | G106: 24 | H106: 変化 | I106: 選択 | J106: × | V106: 相手の『とくこう』ランクを2段階下げる。
B107: かいふくしれい | C107: むし | D107: - | E107: - | F107: 10 | G107: 16 | H107: 変化 | I107: 自分 | J107: × | V107: HPが最大HPの半分回復する。
B108: かいふくふうじ | C108: エスパー | D108: - | E108: 100 | F108: 15 | G108: 24 | H108: 変化 | I108: 相手全体 | J108: × | V108: 5ターンの間、相手は回復系の技が使えなくなる。
B109: かいりき | C109: ノーマル | D109: 80 | E109: 100 | F109: 15 | G109: 24 | H109: 物理 | I109: 選択 | J109: ○
B110: カウンター | C110: かくとう | D110: - | E110: 100 | F110: 20 | G110: 32 | H110: 物理 | I110: 不定 | J110: ○ | K110: -5 | V110: 相手のぶつり攻撃のダメージの2倍をその相手に与える。『ダブルバトル』の時は最後に受けた技のみ有効になる。
B111: かえんぐるま | C111: ほのお | D111: 60 | E111: 100 | F111: 25 | G111: 40 | H111: 物理 | I111: 選択 | J111: ○ | P111: 0.1 | V111: 自分が『こおり』状態の時でも使う事ができ、使うと『こおり』状態が治る。
B112: かえんだん | C112: ほのお | D112: 100 | E112: 100 | F112: 5 | G112: 8 | H112: 特殊 | I112: 自分以外 | J112: × | P112: 0.3
B113: かえんほうしゃ | C113: ほのお | D113: 90 | E113: 100 | F113: 15 | G113: 24 | H113: 特殊 | I113: 選択 | J113: × | P113: 0.1
B114: かぎわける | C114: ノーマル | D114: - | E114: - | F114: 40 | G114: 64 | H114: 変化 | I114: 選択 | J114: × | V114: 使用後、相手の回避率に関係なく攻撃が当たる。相手が『ゴースト』タイプの時、『ノーマル』『かくとう』タイプの技が当たるようになる。
B115: かくばる | C115: ノーマル | D115: - | E115: - | F115: 30 | G115: 48 | H115: 変化 | I115: 自分 | J115: × | V115: 自分の『こうげき』ランクを1段階上げる。
B116: かげうち | C116: ゴースト | D116: 40 | E116: 100 | F116: 30 | G116: 48 | H116: 物理 | I116: 選択 | J116: ○ | K116: +1
B117: かげぬい | C117: ゴースト | D117: 80 | E117: 100 | F117: 10 | G117: 16 | H117: 物理 | I117: 選択 | J117: × | V117: 相手は逃げたり交代できなくなる。
B118: かげぶんしん | C118: ノーマル | D118: - | E118: - | F118: 15 | G118: 24 | H118: 変化 | I118: 自分 | J118: × | V118: 自分の回避率を1段階上げる。
B119: かぜおこし | C119: ひこう | D119: 40 | E119: 100 | F119: 35 | G119: 56 | H119: 特殊 | I119: 選択 | J119: × | V119: 相手が技『そらをとぶ』『とびはねる』『フリーフォール』を使っている時でも命中し、ダメージが2倍になる。
B120: かたきうち | C120: ノーマル | D120: 70 | E120: 100 | F120: 5 | G120: 8 | H120: 物理 | I120: 選択 | J120: ○ | V120: 前のターンに味方のポケモンが倒されていると威力が2倍になる。
B121: かたくなる | C121: ノーマル | D121: - | E121: - | F121: 30 | G121: 48 | H121: 変化 | I121: 自分 | J121: × | V121: 自分の『ぼうぎょ』ランクを1段階上げる。
B122: かなしばり | C122: ノーマル | D122: - | E122: 100 | F122: 20 | G122: 32 | H122: 変化 | I122: 選択 | J122: × | V122: 相手が最後に使った技を4ターンの間使えなくする。
B123: かふんだんご | C123: むし | D123: 90 | E123: 100 | F123: 15 | G123: 24 | H123: 特殊 | I123: 選択 | J123: × | V123: 味方に攻撃する場合、ダメージではなく味方のHPを回復する。
B124: かまいたち | C124: ノーマル | D124: 80 | E124: 100 | F124: 10 | G124: 16 | H124: 特殊 | I124: 相手全体 | J124: × | L124: +1 | V124: 1ターン目は攻撃せずに、2ターン目で攻撃する。
B125: がまん | C125: ノーマル | D125: - | E125: - | F125: 10 | G125: 16 | H125: 物理 | I125: 自分 | J125: ○ | K125: +1 | V125: 今後2ターンの間に受けたダメージの2倍を相手に与える。その間、全く行動できなくなる。
B126: かみくだく | C126: あく | D126: 80 | E126: 100 | F126: 15 | G126: 24 | H126: 物理 | I126: 選択 | J126: ○ | V126: 20%の確率で相手の『ぼうぎょ』ランクを1段階下げる。
B127: かみつく | C127: あく | D127: 60 | E127: 100 | F127: 25 | G127: 40 | H127: 物理 | I127: 選択 | J127: ○ | U127: 0.3
B128: かみなり | C128: でんき | D128: 110 | E128: 70 | F128: 10 | G128: 16 | H128: 特殊 | I128: 選択 | J128: × | O128: 0.3 | V128: 天気が『あめ』の時は必ず命中し、『ひざしがつよい』の時は命中率が50%になる。相手が技『そらをとぶ』『とびはねる』『フリーフォール』を使っている時でも命中する。
B129: かみなりのキバ | C129: でんき | D129: 65 | E129: 95 | F129: 15 | G129: 24 | H129: 物理 | I129: 選択 | J129: ○ | O129: 0.05 | U129: 0.05
B130: かみなりパンチ | C130: でんき | D130: 75 | E130: 100 | F130: 15 | G130: 24 | H130: 物理 | I130: 選択 | J130: ○ | O130: 0.1 | V130: 特性『てつのこぶし』の時、威力が1.2倍になる。
B131: がむしゃら | C131: ノーマル | D131: - | E131: 100 | F131: 5 | G131: 8 | H131: 物理 | I131: 選択 | J131: ○ | V131: 相手の残りHPから自分の残りHPを引いた分のダメージを与える。
B132: からげんき | C132: ノーマル | D132: 70 | E132: 100 | F132: 20 | G132: 32 | H132: 物理 | I132: 選択 | J132: ○ | V132: 自分が『どく』『まひ』『やけど』状態の時、威力が2倍になる。『やけど』による『こうげき』の半減の影響を受けない。
B133: からてチョップ | C133: かくとう | D133: 50 | E133: 100 | F133: 25 | G133: 40 | H133: 物理 | I133: 選択 | J133: ○ | L133: +1
B134: からではさむ | C134: みず | D134: 35 | E134: 85 | F134: 15 | G134: 24 | H134: 物理 | I134: 選択 | J134: ○ | V134: 4～5ターンの間、毎ターン終了後最大HPの1/8のダメージを与え、その間相手は逃げられない。
B135: からにこもる | C135: みず | D135: - | E135: - | F135: 40 | G135: 64 | H135: 変化 | I135: 自分 | J135: × | V135: 自分の『ぼうぎょ』ランクを1段階上げる。
B136: からみつく | C136: ノーマル | D136: 10 | E136: 100 | F136: 35 | G136: 56 | H136: 物理 | I136: 選択 | J136: ○ | V136: 10%の確率で相手の『すばやさ』ランクを1段階下げる。
B137: からをやぶる | C137: ノーマル | D137: - | E137: - | F137: 15 | G137: 24 | H137: 変化 | I137: 自分 | J137: × | V137: 自分の『ぼうぎょ』『とくぼう』ランクが1段階ずつ下がり、『こうげき』『とくこう』『すばやさ』ランクが2段階ずつ上がる。
B138: ガリョウテンセイ | C138: ひこう | D138: 120 | E138: 100 | F138: 5 | G138: 8 | H138: 物理 | I138: 選択 | J138: ○ | V138: 自分の『ぼうぎょ』『とくぼう』ランクが1段階ずつ下がる。
B139: かわらわり | C139: かくとう | D139: 75 | E139: 100 | F139: 15 | G139: 24 | H139: 物理 | I139: 選択 | J139: ○ | V139: 相手の技『リフレクター』『オーロラベール』の効果を受けず、相手の技『リフレクター』『ひかりのかべ』『オーロラベール』を壊す。
B140: がんせきふうじ | C140: いわ | D140: 60 | E140: 95 | F140: 15 | G140: 24 | H140: 物理 | I140: 選択 | J140: × | V140: 相手の『すばやさ』ランクを1段階下げる。
B141: がんせきほう | C141: いわ | D141: 150 | E141: 90 | F141: 5 | G141: 8 | H141: 物理 | I141: 選択 | J141: × | V141: 使用した次のターンは行動できない。
B142: きあいだま | C142: かくとう | D142: 120 | E142: 70 | F142: 5 | G142: 8 | H142: 特殊 | I142: 選択 | J142: × | V142: 10%の確率で相手の『とくぼう』ランクを1段階下げる。
B143: きあいだめ | C143: ノーマル | D143: - | E143: - | F143: 30 | G143: 48 | H143: 変化 | I143: 自分 | J143: × | V143: 急所ランクが2段階上がる『きあいだめ』状態となり、今後自分の技が急所に当たりやすくなる。
B144: きあいパンチ | C144: かくとう | D144: 150 | E144: 100 | F144: 20 | G144: 32 | H144: 物理 | I144: 選択 | J144: ○ | K144: -3 | V144: 攻撃するまでに技を受けると失敗してしまう。特性『てつのこぶし』の時、威力が1.2倍になる。
B145: ギアソーサー | C145: はがね | D145: 50 | E145: 85 | F145: 15 | G145: 24 | H145: 物理 | I145: 選択 | J145: ○ | V145: 1ターンに2回連続で攻撃する。
B146: ギアチェンジ | C146: はがね | D146: - | E146: - | F146: 10 | G146: 16 | H146: 変化 | I146: 自分 | J146: × | V146: 自分の『すばやさ』ランクが2段階、『こうげき』ランクが1段階上がる。
B147: ギガインパクト | C147: ノーマル | D147: 150 | E147: 90 | F147: 5 | G147: 8 | H147: 物理 | I147: 選択 | J147: ○ | V147: 使用した次のターンは行動できない。
B148: ギガドレイン | C148: くさ | D148: 75 | E148: 100 | F148: 10 | G148: 16 | H148: 特殊 | I148: 選択 | J148: × | V148: 相手に与えたダメージの半分だけ自分のHPが回復する。
B149: きしかいせい | C149: かくとう | D149: - | E149: 100 | F149: 15 | G149: 24 | H149: 物理 | I149: 選択 | J149: ○ | V149: 自分の残りHPが少ないほど威力が高くなる。
B150: きつけ | C150: ノーマル | D150: 70 | E150: 100 | F150: 10 | G150: 16 | H150: 物理 | I150: 選択 | J150: ○ | V150: 相手が『まひ』状態の時、ダメージが2倍になるが、『まひ』状態は治る。
B151: キノコのほうし | C151: くさ | D151: - | E151: 100 | F151: 15 | G151: 24 | H151: 変化 | I151: 選択 | J151: × | Q151: 1 | V151: 『くさ』タイプや特性『ぼうじん』のポケモンには無効。
B152: ギフトパス | C152: ノーマル | D152: - | E152: - | F152: 15 | G152: 24 | H152: 変化 | I152: 選択 | J152: × | V152: 自分の持っている道具を相手に渡す。相手が道具を持っている時は失敗する。
B153: きゅうけつ | C153: むし | D153: 80 | E153: 100 | F153: 10 | G153: 24 | H153: 物理 | I153: 選択 | J153: ○ | V153: 相手に与えたダメージの半分だけ自分のHPが回復する。
B154: きりさく | C154: ノーマル | D154: 70 | E154: 100 | F154: 20 | G154: 32 | H154: 物理 | I154: 選択 | J154: ○ | L154: +1
B155: きりばらい | C155: ひこう | D155: - | E155: - | F155: 15 | G155: 24 | H155: 変化 | I155: 選択 | J155: × | V155: 相手の回避率を1段階下げる。相手の場の『しろいきり』『ひかりのかべ』『リフレクター』『しんぴのまもり』、両方の場の『まきびし』『どくびし』『ステルスロック』『ねばねばネット』の効果を解除する。
B156: きりふだ | C156: ノーマル | D156: - | E156: - | F156: 5 | G156: 8 | H156: 特殊 | I156: 選択 | J156: ○ | V156: 自分の命中率、相手の回避率に関係なく必ず命中する。この技の残りPPが少ない程、威力が高くなる。最高200。
B157: ぎんいろのかぜ | C157: むし | D157: 60 | E157: 100 | F157: 5 | G157: 8 | H157: 特殊 | I157: 選択 | J157: × | V157: 10%の確率で自分の『こうげき』『ぼうぎょ』『とくこう』『とくぼう』『すばやさ』ランクが1段階ずつ上がる。
B158: キングシールド | C158: はがね | D158: - | E158: - | F158: 10 | G158: 16 | H158: 変化 | I158: 自分 | J158: × | K158: +4 | V158: そのターンの間、相手の攻撃技を受けない。また、直接攻撃をしてきた相手の『こうげき』ランクを2段階下げる(無効タイプで直接攻撃された場合でも低下する)。連続で使うと失敗しやすくなる。
B159: きんぞくおん | C159: はがね | D159: - | E159: 85 | F159: 40 | G159: 64 | H159: 変化 | I159: 選択 | J159: × | V159: 相手の『とくぼう』ランクを2段階下げる。
B160: くさのちかい | C160: くさ | D160: 80 | E160: 100 | F160: 10 | G160: 16 | H160: 特殊 | I160: 選択 | J160: × | V160: ダブルバトル・トリプルバトルで、技『ほのおのちかい』と組み合わせて使用すると4ターンの間毎ターン『ほのお』タイプ以外の相手にダメージを与え、技『みずのちかい』と組み合わせて使用すると4ターンの間相手の『すばやさ』が下がる。また、威力が150になる。
B161: くさぶえ | C161: くさ | D161: - | E161: 55 | F161: 15 | G161: 24 | H161: 変化 | I161: 選択 | J161: × | Q161: 1
B162: くさむすび | C162: くさ | D162: - | E162: 100 | F162: 20 | G162: 32 | H162: 特殊 | I162: 選択 | J162: ○ | V162: 相手の『おもさ』が重いほど威力が高くなる。10kg未満は20、25kg未満は40、50kg未満は60、100kg未満は80、200kg未満は100、それ以上は120。
B163: くすぐる | C163: ノーマル | D163: - | E163: 100 | F163: 20 | G163: 32 | H163: 変化 | I163: 選択 | J163: × | V163: 相手の『こうげき』『ぼうぎょ』ランクを1段階ずつ下げる。
B164: くちばしキャノン | C164: ひこう | D164: 100 | E164: 100 | F164: 15 | G164: 24 | H164: 物理 | I164: 選択 | J164: × | K164: -3 | V164: 技が発動する前に直接攻撃を受けると、そのポケモンを『やけど』状態にする。技はそのまま打てる。
B165: クモのす | C165: むし | D165: - | E165: - | F165: 10 | G165: 16 | H165: 変化 | I165: 選択 | J165: × | V165: 相手を逃げたり、交代できなくする。
B166: グラスフィールド | C166: くさ | D166: - | E166: - | F166: 10 | G166: 16 | H166: 変化 | I166: 全体の場 | J166: × | V166: 5ターンの間、グラスフィールドにする。地面にいるすべてのポケモンは毎ターン最大HPの1/16ずつ回復し、また『くさ』タイプの技の威力が1.5倍になり、『じしん』『じならし』『マグニチュード』の威力が半分になる。
B167: グラスミキサー | C167: くさ | D167: 65 | E167: 90 | F167: 10 | G167: 16 | H167: 特殊 | I167: 選択 | J167: × | V167: 50%の確率で相手の命中率を1段階下げる。
B168: クラブハンマー | C168: みず | D168: 100 | E168: 90 | F168: 10 | G168: 16 | H168: 物理 | I168: 選択 | J168: ○ | L168: +1
B169: グランドフォース | C169: じめん | D169: 90 | E169: 100 | F169: 10 | G169: 16 | H169: 物理 | I169: 相手全体 | J169: ×
B170: クリアスモッグ | C170: どく | D170: 50 | E170: - | F170: 15 | G170: 24 | H170: 特殊 | I170: 選択 | J170: × | V170: 相手の『のうりょく』ランクの変化を元に戻す。
B171: くろいきり | C171: こおり | D171: - | E171: - | F171: 30 | G171: 48 | H171: 変化 | I171: 全体の場 | J171: × | V171: すべてのポケモンの『のうりょく』ランクの変化を元に戻す。
B172: くろいまなざし | C172: ノーマル | D172: - | E172: - | F172: 5 | G172: 8 | H172: 変化 | I172: 選択 | J172: × | V172: 相手を逃げたり、交代できなくする。
B173: グロウパンチ | C173: かくとう | D173: 40 | E173: 100 | F173: 20 | G173: 32 | H173: 物理 | I173: 選択 | J173: ○ | V173: 自分の『こうげき』ランクが1段階上がる。特性『てつのこぶし』の時、威力が1.2倍になる。
B174: クロスサンダー | C174: でんき | D174: 100 | E174: 100 | F174: 5 | G174: 8 | H174: 物理 | I174: 選択 | J174: × | V174: ダブルバトル・トリプルバトルで、技『クロスフレイム』と組み合わせて使用すると威力が上がる。
B175: クロスチョップ | C175: かくとう | D175: 100 | E175: 80 | F175: 5 | G175: 8 | H175: 物理 | I175: 選択 | J175: ○ | L175: +1
B176: クロスフレイム | C176: ほのお | D176: 100 | E176: 100 | F176: 5 | G176: 8 | H176: 特殊 | I176: 選択 | J176: × | V176: ダブルバトル・トリプルバトルで、技『クロスサンダー』と組み合わせて使用すると威力が上がる。
B177: クロスポイズン | C177: どく | D177: 70 | E177: 100 | F177: 20 | G177: 32 | H177: 物理 | I177: 選択 | J177: ○ | L177: +1 | M177: 0.1
B178: げきりん | C178: ドラゴン | D178: 120 | E178: 100 | F178: 10 | G178: 16 | H178: 物理 | I178: ランダム1体 | J178: ○ | V178: 2～3ターン連続で攻撃し、その後自分は1～4ターンの間『こんらん』状態になる。
B179: けたぐり | C179: かくとう | D179: - | E179: 100 | F179: 20 | G179: 32 | H179: 物理 | I179: 選択 | J179: ○ | V179: 相手の『おもさ』が重いほど威力が高くなる。10kg未満は20、25kg未満は40、50kg未満は60、100kg未満は80、200kg未満は100、それ以上は120。
B180: ゲップ | C180: どく | D180: 120 | E180: 90 | F180: 10 | G180: 16 | H180: 特殊 | I180: 選択 | J180: × | V180: この技は『きのみ』を食べると使えるようになる。
B181: げんしのちから | C181: いわ | D181: 60 | E181: 100 | F181: 5 | G181: 8 | H181: 特殊 | I181: 選択 | J181: × | V181: 10%の確率で自分の『こうげき』『ぼうぎょ』『とくこう』『とくぼう』『すばやさ』ランクが1段階ずつ上がる。
B182: コアパニッシャー | C182: ドラゴン | D182: 100 | E182: 100 | F182: 10 | G182: 16 | H182: 特殊 | I182: 相手全体 | J182: × | V182: この技のダメージを受けたポケモンがそのターンにすでに技を使用していた場合、そのポケモンは特性が無効になる。
B183: こうげきしれい | C183: むし | D183: 90 | E183: 100 | F183: 15 | G183: 24 | H183: 物理 | I183: 選択 | J183: × | L183: +1
B184: こうごうせい | C184: くさ | D184: - | E184: - | F184: 5 | G184: 8 | H184: 変化 | I184: 自分 | J184: × | V184: HPが、天気が通常の時は最大HPの1/2、『ひざしがつよい』の時は最大HPの2/3、『あめ』『あられ』『すなあらし』の時は最大HPの1/4回復する。
B185: こうそくいどう | C185: エスパー | D185: - | E185: - | F185: 30 | G185: 48 | H185: 変化 | I185: 自分 | J185: × | V185: 自分の『すばやさ』ランクが2段階上がる。
B186: こうそくスピン | C186: ノーマル | D186: 20 | E186: 100 | F186: 40 | G186: 64 | H186: 物理 | I186: 選択 | J186: ○ | V186: 技『うずしお』『からではさむ』『しめつける』『すなじごく』『ほのおのうず』『まきつく』『まきびし』『やどりぎのタネ』から解放される。
B187: ゴーストダイブ | C187: ゴースト | D187: 90 | E187: 100 | F187: 10 | G187: 16 | H187: 物理 | I187: 選択 | J187: ○ | V187: 1ターン目に消えて、2ターン目に攻撃する。消えている間はほとんどの技を受けない。相手の『まもる』『みきり』『たたみがえし』『キングシールド』『ニードルガード』の効果を受けない。相手が『ちいさくなる』を使用していると必ず命中し、威力が2倍になる。
B188: こおりのいぶき | C188: こおり | D188: 60 | E188: 90 | F188: 10 | G188: 16 | H188: 特殊 | I188: 選択 | J188: × | V188: 必ず急所に当たる。
B189: こおりのキバ | C189: こおり | D189: 65 | E189: 95 | F189: 15 | G189: 24 | H189: 物理 | I189: 選択 | J189: ○ | R189: 0.05 | U189: 0.05
B190: こおりのつぶて | C190: こおり | D190: 40 | E190: 100 | F190: 30 | G190: 48 | H190: 物理 | I190: 選択 | J190: × | K190: +1
B191: コールドフレア | C191: こおり | D191: 140 | E191: 90 | F191: 5 | G191: 8 | H191: 特殊 | I191: 選択 | J191: × | P191: 0.3 | V191: 1ターン目は攻撃せずに、2ターン目で攻撃する。
B192: こごえるかぜ | C192: こおり | D192: 55 | E192: 95 | F192: 15 | G192: 24 | H192: 特殊 | I192: 相手全体 | J192: × | V192: 相手の『すばやさ』ランクを1段階下げる。
B193: こごえるせかい | C193: こおり | D193: 65 | E193: 95 | F193: 10 | G193: 16 | H193: 特殊 | I193: 相手全体 | J193: × | V193: 相手の『すばやさ』ランクを1段階下げる。
B194: こころのめ | C194: ノーマル | D194: - | E194: - | F194: 5 | G194: 8 | H194: 変化 | I194: 選択 | J194: × | V194: 次のターン、使った相手に自分の技が必ず命中する。
B195: コスモパワー | C195: エスパー | D195: - | E195: - | F195: 20 | G195: 32 | H195: 変化 | I195: 自分 | J195: × | V195: 自分の『ぼうぎょ』『とくぼう』ランクが1段階ずつ上がる。
B196: ゴッドバード | C196: ひこう | D196: 140 | E196: 90 | F196: 5 | G196: 8 | H196: 物理 | I196: 選択 | J196: × | L196: +1 | U196: 0.3 | V196: 1ターン目は攻撃せずに、2ターン目で攻撃する。
B197: コットンガード | C197: くさ | D197: - | E197: - | F197: 10 | G197: 16 | H197: 変化 | I197: 自分 | J197: × | V197: 自分の『ぼうぎょ』ランクが3段階上がる。
B198: こなゆき | C198: こおり | D198: 40 | E198: 100 | F198: 25 | G198: 40 | H198: 特殊 | I198: 相手全体 | J198: × | R198: 0.1
B199: このは | C199: くさ | D199: 40 | E199: 100 | F199: 40 | G199: 64 | H199: 物理 | I199: 選択 | J199: × | V199: -
B200: このゆびとまれ | C200: ノーマル | D200: - | E200: - | F200: 20 | G200: 32 | H200: 変化 | I200: 自分 | J200: × | K200: +2 | V200: そのターンの相手の技をすべて自分が受ける。ダブルバトル・トリプルバトル用。
B201: コメットパンチ | C201: はがね | D201: 90 | E201: 90 | F201: 10 | G201: 16 | H201: 物理 | I201: 選択 | J201: ○ | V201: 20%の確率で自分の『こうげき』ランクが1段階上がる。特性『てつのこぶし』の時、威力が1.2倍になる。
... 468 more rows

Sheet 特性一覧
B2: 特性名 | C2: 効果
B3: アイスボディ | C3: 天気が『あられ』の時、ダメージを受けず、毎ターン終了時にHPが最大HPの1/16回復する。
B4: あくしゅう | C4: 相手に技のダメージを与えると、10%の確率でひるませる。／野生のポケモンと出会いにくくなる。
B5: あついしぼう | C5: 『ほのお』『こおり』タイプの技を受けた時、ダメージが半減する。
B6: あとだし | C6: 技を出す順番が必ず一番最後になる。
B7: アナライズ | C7: 自分の攻撃がターンで一番最後の時、技の威力が1.3倍になる。
B8: あまのじゃく | C8: 『のうりょく』ランクを変化させる技の効果が逆になる(1段階上がるものは1段階下がる)。
B9: あめうけざら | C9: 天気が『あめ』の時毎ターン、HPが最大HPの1/16回復する。
B10: あめふらし | C10: 戦闘に出ると5ターンの間、天気が『あめ』になる。
B11: ありじごく | C11: 相手は逃げたり、ポケモンを交代することができなくなる。ただし、相手が『ひこう』タイプや『ゴースト』タイプ、特性『ふゆう』の場合は効果がない。／野生のポケモンと出会いやすくなる。
B12: アロマベール | C12: 自分と味方へのメンタル攻撃技『アンコール』『いちゃもん』『かいふくふうじ』『かなしばり』『ちょうはつ』『メロメロ』を無効化する。
B13: いかく | C13: 戦闘に出たときに相手の『こうげき』ランクを1段階下げる。／レベルの低い野生のポケモンと出会いにくくなる。
B14: いかりのつぼ | C14: 自分への攻撃が急所に当たると、『こうげき』ランクが最大まで上がる。
B15: いしあたま | C15: 技『アフロブレイク』『ウッドハンマー』『じごくぐるま』『すてみタックル』『とっしん』『フレアドライブ』『ブレイブバード』『ボルテッカー』『もろはのずつき』『ワイルドボルト』の反動を受けない。技『わるあがき』の反動は受ける。
B16: いたずらごころ | C16: 自分の使う変化技の優先度が1だけ加算される。優先度0の変化技も優先度+1として『すばやさ』に関係なく先制攻撃できる。『あく』タイプのポケモンに対して変化技を使った場合、その変化技は無効となる。
B17: いやしのこころ | C17: 毎ターン終了時、1/3の確率で自分以外の味方の状態異常が治る。
B18: イリュージョン | C18: 手持ちの最後のポケモンの姿と名前で戦闘に出る。『タイプ』や『のうりょく』に変化はない。ダメージを受けると元に戻る。
B19: いろめがね | C19: 自分の技のタイプ相性が『こうかは いまひとつのようだ』の場合、1/2倍の時は通常に、1/4倍の時は1/2倍になる。
B20: うるおいボイス | C20: 音に関する技のタイプを『みず』タイプに変える。
B21: うるおいボディ | C21: 天気が『あめ』の時、ターン終了時に状態異常が回復する。
B22: エアロック | C22: 全てのポケモンに対しての天気の影響がなくなる。
B23: エレキスキン | C23: 自分の『ノーマル』タイプの技が『でんき』タイプになり、さらに威力が1.2倍になる。
B24: えんかく | C24: 直接攻撃を非直接攻撃に変える。
B25: オーラブレイク | C25: お互いのポケモンの特性『フェアリーオーラ』『ダークオーラ』の効果において、威力が4/3倍ではなく3/4倍(0.75倍)になる。
B26: おどりこ | C26: 場のポケモンがおどり系の技を使用した場合、同じ技を直後に出す。
B27: おみとおし | C27: 戦闘に出てきた時、すべての相手の持っている道具の名前が分かる。
B28: おやこあい | C28: 同じ技を1ターンに2回攻撃できる。2回目の攻撃は、威力が半分になる。能力ランクを下げるなどの効果は2回分与えられる。1ターンに連続して攻撃する技や、複数の相手に攻撃する技の場合は2回攻撃できない
B29: おわりのだいち | C29: 戦闘に出ている間、天気が『ひざしがとてもつよい』になる。通常の天気『ひざしがつよい』状態に加えて、『みず』タイプの攻撃技が無効になる。また、技『あまごい』『にほんばれ』『すなあらし』『あられ』が失敗し、特性『あめふらし』『ひでり』『すなおこし』『ゆきふらし』が発動しなくなる。
B30: カーリーヘア | C30: 接触をした相手の「すばやさ」を下げる。
B31: かいりきバサミ | C31: 『こうげき』ランクが下がらない。
B32: かげふみ | C32: 相手は逃げたり、ポケモンを交代することができなくなる。お互いが特性『かげふみ』の場合は無効になる。『ゴースト』タイプには無効。
B33: かそく | C33: 毎ターン、『すばやさ』ランクが1段階ずつ上がる。
B34: かたいツメ | C34: 直接攻撃する技の威力が1.3倍になる。
B35: かたやぶり | C35: 相手の特性の影響を受けずに攻撃できる。ただし、攻撃後に受ける効果は消えない。
B36: かちき | C36: 相手の技や特性で『のうりょく』ランクが下がると、『とくこう』ランクが2段階上がる。
B37: カブトアーマー | C37: 自分への攻撃は急所に当たらない。
B38: かるわざ | C38: 持っている道具がなくなると『すばやさ』が2倍になる。再び道具を持つと元に戻る。最初から道具を持っていない場合は効果がない。
B39: かわりもの | C39: 戦闘に出ると、相手のポケモンに変身し、『へんしん』状態になる。
B40: かんそうはだ | C40: 『ほのお』タイプの技の受けるダメージが1.25倍になる。『みず』タイプの技を受けると、ダメージを受けずHPが最大HPの1/4回復する。また、天気が『ひざしがつよい』の時は毎ターン最大HPの1/8のダメージを受け、『あめ』の時は毎ターンHPが最大HPの1/8回復する。
B41: がんじょう | C41: HPが最大の時、『ひんし』状態になるダメージを受けても必ず1残る。また、一撃で『ひんし』になる技『じわれ』『ぜったいれいど』『つのドリル』『ハサミギロチン』を受けない。
B42: がんじょうあご | C42: あごやキバを使って攻撃する技『かみつく』『かみくだく』『ひっさつまえば』『ほのおのキバ』『かみなりのキバ』『こおりのキバ』『どくどくのキバ』の威力が1.5倍になる。
B43: ききかいひ | C43: HPが半分以下になると手持ちに戻る。
B44: きけんよち | C44: 戦闘に出てきた時、相手が『こうかは ばつぐん』や一撃必殺となる技を持っているかが分かる。技の名前などは分からない。
B45: きもったま | C45: 相手が『ゴースト』タイプでも、『ノーマル』『かくとう』タイプの技が等倍で当たる。
B46: きゅうばん | C46: 相手を交代させる技『ふきとばし』『ほえる』『ドラゴンテール』の効果を受けない。／『てもち』の先頭にいると釣りが成功しやすくなる。
B47: きょううん | C47: 急所ランクが1段階上がった状態となり、自分の攻撃が急所に当たりやすくなる。
B48: きょうせい | C48: 味方が道具を使ったり失った時、自分の持っている道具を味方に移動する。
B49: ぎょぐん | C49: レベル20以上になると、戦闘中だけ『むれたすがた』にフォルムチェンジする。残りHPが最大HPの1/4以下になると、『たんどくのすがた』に戻る。
B50: きんちょうかん | C50: すべての相手は『きのみ』を使用できなくなる。
B51: くいしんぼう | C51: 通常より早く、HPが最大HPの半分以下になると『きのみ』を使う。
B52: くさのけがわ | C52: グラスフィールドの時、『ぼうぎょ』が1.5倍になる。
B53: くだけるよろい | C53: 物理技を受けると、『ぼうぎょ』ランクが1段階下がり、『すばやさ』ランクが1段階上がる。
B54: クリアボディ | C54: 相手の『のうりょく』ランクを下げる技や特性の効果を受けない。
B55: ぎゃくじょう | C55: HPが半分以下になると、『とくこう』が1段階上がる
B56: げきりゅう | C56: HPが1/3以下の時、『みず』タイプの技の威力が1.5倍になる。
B57: こんじょう | C57: 状態異常の時、『こうげき』が1.5倍になる。またその時、『やけど』状態による『こうげき』半減の効果を受けない。
B58: サーフテール | C58: 場がエレキフィールド状態の時、『すばやさ』が2倍になる
B59: さいせいりょく | C59: 他のポケモンに交代するとHPが最大HPの1/3回復する。
B60: さめはだ | C60: 直接攻撃を受けると、相手のHPを相手の最大HPの1/8減らす。
B61: サンパワー | C61: 天気が『ひざしがつよい』の時、『とくこう』が1.5倍になるが、毎ターン終了時に最大HPの1/8のダメージを受ける。
B62: シェルアーマー | C62: 自分への攻撃は急所に当たらない。
B63: じきゅうりょく | C63: ポケモンがダメージを受けた時、「ぼうぎょ」が1段階上がる。
B64: しぜんかいふく | C64: 他のポケモンに交代すると異常状態が回復する。
B65: しめりけ | C65: 全てのポケモンは技『じばく』『だいばくはつ』及び、特性『ゆうばく』が無効になる。
B66: しゅうかく | C66: ターン終了時、そのターン自分が使用した『きのみ』が50%の確率で元に戻る。天気が『ひざしがつよい』の時は100%の確率で元に戻る。
B67: しょうりのほし | C67: 自分と味方の技の命中率が上がる。
B68: しろいけむり | C68: 相手の『のうりょく』ランクを下げる技や特性の効果を受けない。／野生のポケモンと出会いにくくなる。
B69: シンクロ | C69: 『どく』『まひ』『やけど』状態になった時、相手も同じ状態異常になる。／同じ『せいかく』の野生のポケモンと出会いやすくなる。
B70: しんりょく | C70: HPが1/3以下の時、『くさ』タイプの技の威力が1.5倍になる。
B71: じしんかじょう | C71: 自分の技で相手を倒すと、『こうげき』ランクが1段階上がる。
B72: じゅうなん | C72: 『まひ』状態にならない。
B73: じょおうのいげん | C73: 相手は先制技が出せなくなる
B74: じりょく | C74: 相手の『はがね』タイプのポケモンは逃げたり、ポケモンを交代することができなくなる。／『はがね』タイプの野生のポケモンと出会いやすくなる。
B75: スイートベール | C75: 自分や味方のポケモンは『ねむり』状態にならない。
B76: すいすい | C76: 天気が『あめ』の時、『すばやさ』が2倍になる。
B77: すいほう | C77: ほのおタイプの技の威力を下がる代わりに「やけど」状態にならない。
B78: スカイスキン | C78: 自分の『ノーマル』タイプの技が『ひこう』タイプになり、さらに威力が1.2倍になる。
B79: スキルリンク | C79: 2～5回連続で当たる技が必ず5回当たる。
B80: すてみ | C80: 技『アフロブレイク』『ウッドハンマー』『じごくぐるま』『すてみタックル』『とっしん』『とびげり』『とびひざげり』『もろはのずつき』『フレアドライブ』『ブレイブバード』『ボルテッカー』『ワイルドボルト』の威力が1.2倍になる。
B81: スナイパー | C81: 自分の攻撃が急所に当たると、ダメージが1.5倍ではなく2.25倍になる。
B82: すなおこし | C82: 戦闘に出ると5ターンの間、天気が『すなあらし』になる。
B83: すなかき | C83: 天気が『すなあらし』の時、『すばやさ』が2倍になる。また、『すなあらし』によるダメージを受けない。
B84: すながくれ | C84: 天気が『すなあらし』の時、回避率が上がる。また、『すなあらし』によるダメージを受けない。／フィールドの天気が『すなあらし』の時、野生のポケモンと出会いにくくなる。
B85: すなのちから | C85: 天気が『すなあらし』の時、自分の『じめん』『いわ』『はがね』タイプの技の威力が1.3倍になる。また、『すなあらし』によるダメージを受けない。
B86: すりぬけ | C86: 相手の『リフレクター』『ひかりのかべ』『しろいきり』『しんぴのまもり』『みがわり』の効果を受けない。
B87: するどいめ | C87: 命中率ランクが下がらない。相手の回避率ランクが上がっていても、影響を受けない。／レベルの低い野生のポケモンと出会いにくくなる。
B88: スロースタート | C88: 戦闘に出てから5ターンの間、『こうげき』『すばやさ』が半分になる。
B89: スワームチェンジ | C89: HPが半分以下になると、ジガルデ・パーフェクトフォルムにフォルムチェンジする
B90: せいぎのこころ | C90: 『あく』タイプの技を受けると、『こうげき』ランクが1段階上がる。
B91: せいしんりょく | C91: 相手の技で『ひるみ』状態にならない。技『きあいパンチ』には影響しない。
B92: せいでんき | C92: 直接攻撃を受けると、30%の確率で相手を『まひ』状態にする。／『でんき』タイプの野生のポケモンと出会いやすくなる。
B93: ぜったいねむり | C93: 常にゆめうつつ状態となる。他の状態異常にかからない。
B94: そうしょく | C94: 『くさ』タイプの技を受けると技が無効化され、『こうげき』ランクが1段階上がる。
B95: ターボブレイズ | C95: 相手の特性の影響を受けずに攻撃できる。ただし、攻撃後に受ける効果は消えない。
B96: たいねつ | C96: 『ほのお』タイプの技を受けた時と、『やけど』状態によるダメージが半減する。
B97: たんじゅん | C97: 『のうりょく』ランクの変化が2倍になる。
B98: ダークオーラ | C98: お互いのすべてのポケモンの『あく』タイプの技の威力が4/3倍(1.33倍)になる。
B99: ダウンロード | C99: 相手の『ぼうぎょ』が『とくぼう』より低い場合は『こうげき』ランクを、『とくぼう』の方が低い場合は『とくこう』ランクを1段階上げる。
B100: だっぴ | C100: ターンごとに1/3の確率で状態異常が治る。
B101: ダルマモード | C101: 自分の残りHPが半分以下になるとフォルムチェンジする。回復して半分より多くなると元に戻る。
B102: ちからずく | C102: 追加効果のある技を使うと、追加効果が発動しない代わりに威力が1.3倍になる。
B103: ちからもち | C103: 自分の物理技の威力が2倍になる。
B104: ちくでん | C104: 『でんき』タイプの技を受けるとダメージや効果はなくなり、最大HPの1/4回復する。
B105: ちどりあし | C105: 『こんらん』状態の時、回避率が上がる。
B106: ちょすい | C106: 『みず』タイプの技を受けるとダメージや効果はなくなり、最大HPの1/4回復する。
B107: てきおうりょく | C107: 自分の『タイプ』と同じ『タイプ』の技のダメージが1.5倍ではなく2倍になる。
B108: テクニシャン | C108: 威力が60以下の技の威力が1.5倍になる。威力の変動する技や、威力が修正された場合も影響する。
B109: てつのこぶし | C109: パンチ系の技『アームハンマー』『かみなりパンチ』『きあいパンチ』『グロウパンチ』『コメットパンチ』『シャドーパンチ』『スカイアッパー』『ドレインパンチ』『ばくれつパンチ』『バレットパンチ』『ピヨピヨパンチ』『ほのおのパンチ』『マッハパンチ』『メガトンパンチ』『れいとうパンチ』『れんぞくパンチ』の威力が1.2倍になる。
B110: てつのトゲ | C110: 直接攻撃を受けると、相手のHPを相手の最大HPの1/8減らす。
B111: テラボルテージ | C111: 相手の特性の影響を受けずに攻撃できる。ただし、攻撃後に受ける効果は消えない。
B112: テレパシー | C112: 味方の技のダメージを受けない。
B113: てんきや | C113: 天気が『ひざしがつよい』の時は『ほのお』タイプに、『あめ』の時は『みず』タイプに、『あられ』の時は『こおり』タイプになり、姿がそれぞれ変化する。
B114: てんねん | C114: 相手の『のうりょく』ランクの変化の影響を受けない。
B115: てんのめぐみ | C115: 技の追加効果の発生率が2倍になる。
B116: デルタストリーム | C116: 戦闘に出ている間、天気が『らんきりゅう』になる。『ひこう』タイプのポケモンの弱点となるタイプの技のダメージが通常のダメージになる。また、ごく一部のポケモンを除いて天気を他の状態に変えることができなくなり、技『あまごい』『にほんばれ』『すなあらし』『あられ』が失敗し、特性『あめふらし』『ひでり』『すなおこし』『ゆきふらし』が発動しなくなる。
B117: でんきエンジン | C117: 『でんき』タイプの技を受けるとダメージや効果はなくなり、『すばやさ』ランクが1段階上がる。
B118: とうそうしん | C118: 性別が同じ相手に対しては『こうげき』『とくこう』が1.25倍になるが、異なる場合は0.75倍になる。性別のないポケモンの場合は効果がない。
B119: とびだすなかみ | C119: 倒された時に、相手にダメージを与える
B120: トレース | C120: 相手と同じ特性になる。相手が2体いる場合はランダムにどちらかの特性が選ばれる。相手の特性が『てんきや』『トレース』『バトルスイッチ』の場合は効果がない。
B121: どくしゅ | C121: 相手に直接攻撃をすると、30%の確率で相手を『どく』状態にする。
B122: どくのトゲ | C122: 直接攻撃を受けると、30%の確率で相手を『どく』状態にする。
B123: どくぼうそう | C123: 『どく』『もうどく』状態の時、自分の物理技の威力が1.5倍になる。
B124: どんかん | C124: 『メロメロ』『ちょうはつ』『ゆうわく』状態にならない。
B125: ナイトメア | C125: 相手が『ねむり』状態の時、HPを減らす。
B126: なまけ | C126: 1ターンおきにしか技が使えない。
B127: にげあし | C127: 野生のポケモンとの戦闘の場合、必ず逃げられる。
B128: にげごし | C128: ポケモンのHPが半分になると、逃げたり交代したりする。
B129: ぬめぬめ | C129: 直接攻撃を受けると、相手の『すばやさ』ランクを1段階下げる。
B130: ねつぼうそう | C130: 『やけど』状態の時、自分の特殊技の威力が1.5倍になる。
B131: ねんちゃく | C131: 持っている道具を相手に奪われない。／『てもち』の先頭にいると釣りが成功しやすくなる。
B132: ノーガード | C132: お互いに技が命中率・回避率に関係なく必ず命中する。／野生のポケモンと出会いやすくなる。
B133: ノーてんき | C133: 全てのポケモンに対しての天気の影響がなくなる。
B134: ノーマルスキン | C134: 自分の全ての技が『ノーマル』タイプになる。
B135: のろわれボディ | C135: 相手から攻撃技を受けた時、30%の確率で3ターンの間、その相手の技を『かなしばり』状態にする。
B136: ハードロック | C136: タイプ相性が『こうかは ばつぐん』の技の受けるダメージが3/4になる。例えば、2倍弱点の場合は1.5倍のダメージになる。
B137: はがねつかい | C137: はがねタイプの技の威力が上昇する。
B138: ばけのかわ | C138: 1回だけ敵からの攻撃のダメージを防ぎ、姿が変わる。
B139: はじまりのうみ | C139: 戦闘に出ている間、天気が『つよいあめ』になる。通常の天気『あめ』状態に加えて、『ほのお』タイプの攻撃技が無効になる。また、技『あまごい』『にほんばれ』『すなあらし』『あられ』が失敗し、特性『あめふらし』『ひでり』『すなおこし』『ゆきふらし』が発動しなくなる。
B140: はっこう | C140: 野生のポケモンと出会いやすくなる。
B141: はとむね | C141: 相手の『ぼうぎょ』ランクを下げる技や特性の効果を受けない。
B142: はやあし | C142: 状態異常の時、『すばやさ』が1.5倍になる。／野生のポケモンと出会いにくくなる。
B143: はやおき | C143: 『ねむり』状態の時、ねむり状態のターン経過が2倍になり、通常より早く回復する。
B144: はやてのつばさ | C144: 自分の残りHPが最大値の時、優先度0の『ひこう』タイプの技を『すばやさ』に関係なく先制攻撃できる。(優先度:+1)
B145: はりきり | C145: 『こうげき』が1.5倍になるが、物理攻撃の命中率が0.8倍になる。／レベルの高い野生のポケモンと出会いやすくなる。
B146: はりこみ | C146: 交代で出てきたポケモンに対して、2倍のダメージを与える
B147: バトルスイッチ | C147: 攻撃技を使用する場合ブレードフォルムになり(攻撃・特攻が高い)、技『キングシールド』を使用するとシールドフォルムになる(防御・特防が高い)。
B148: ヒーリングシフト | C148: 回復技の優先度が上がり、「すばやさ」に関係なく先制できる。
B149: ひでり | C149: 戦闘に出ると5ターンの間、天気が『ひざしがつよい』になる。
B150: ひとでなし | C150: 相手が「どく」状態の時、自分の攻撃が相手の急所に当たりやすくなる。
B151: ひらいしん | C151: 『でんき』タイプの技を受けるとダメージが無効化され、逆に『とくこう』ランクが1段階上がる。またダブルバトル・トリプルバトルの時、自分以外の全てのポケモンの『でんき』タイプの技の攻撃対象が自分になる。
B152: ビビッドボディ | C152: 相手は先制技が出せなくなる。
B153: びびり | C153: 『ゴースト』『むし』『あく』タイプの技を受けた時、『すばやさ』ランクが1段階上がる。
B154: ファーコート | C154: 物理攻撃の受けるダメージが半減する。
B155: フィルター | C155: タイプ相性が『こうかは ばつぐん』の技の受けるダメージが3/4になる。例えば、2倍弱点の場合は1.5倍のダメージになる。
B156: フェアリーオーラ | C156: お互いのすべてのポケモンの『フェアリー』タイプの技の威力が4/3倍(1.33倍)になる。
B157: フェアリースキン | C157: 自分の『ノーマル』タイプの技が『フェアリー』タイプになり、さらに威力が1.2倍になる。
B158: ふくがん | C158: 命中率が1.3倍になる。／『てもち』の先頭にいると道具を持った野生のポケモンと出会いやすくなる。
B159: ふくつのこころ | C159: 相手の技でひるむと、『すばやさ』ランクが1段階上がる。
B160: ふしぎなうろこ | C160: 状態異常の時、『ぼうぎょ』が1.5倍になる。
B161: ふしぎなまもり | C161: タイプ相性が『こうかは ばつぐん』でない技のダメージを受けない。ただし、タイプ相性に関係のない技は影響しない。
B162: ふしょく | C162: はがねやどくタイプの相手もどく状態にすることができる
B163: ふみん | C163: 『ねむり』状態にならない。技『ねむる』を使えない。
B164: ふゆう | C164: 『じめん』タイプの技を受けない。
B165: フラワーギフト | C165: 天気が『ひざしがつよい』の時、すべての味方の『こうげき』『とくぼう』が1.5倍になる。
B166: フラワーベール | C166: 味方すべての『くさ』タイプのポケモンは、味方自身以外の技や特性によって『のうりょく』ランクを下げられず、状態異常にもならない。
B167: フリーズスキン | C167: 自分の『ノーマル』タイプの技が『こおり』タイプになり、さらに威力が1.2倍になる。
B168: フレンドガード | C168: 自分以外の味方が受けるダメージが3/4に軽減される。(ダブルバトル・トリプルバトル用)
B169: ぶきよう | C169: 持っている道具の効果が発揮されない。
B170: プラス | C170: 特性『プラス』か『マイナス』のポケモンが戦闘にいると『とくこう』が1.5倍になる。
B171: プレッシャー | C171: 技を受けた時、技のPPを2減らす。／レベルの高い野生のポケモンと出会いやすくなる。
B172: ヘドロえき | C172: HPを吸い取る技『きゅうけつ』『ギガドレイン』『すいとる』『ドレインキッス』『ドレインパンチ』『メガドレイン』『やどりぎのタネ』を受けた時、逆に相手にダメージを与える。
B173: へんげんじざい | C173: 自分の技を出すタイミングで、自分のタイプが技と同じタイプになる。
B174: へんしょく | C174: 技を受けると、その技のタイプになる。
B175: ヘヴィメタル | C175: 自分の『おもさ』が2倍になる。(技『ヘビーボンバー』などで有効)
B176: ほうし | C176: 直接攻撃を受けると、30%の確率で相手を『どく』『まひ』『ねむり』状態のいずれかにする。
B177: ほおぶくろ | C177: 自分の持っている『きのみ』を食べる時、本来の効果に加えて、さらにHPも最大HPの1/3回復する。
B178: ほのおのからだ | C178: 直接攻撃を受けると、30%の確率で相手を『やけど』状態にする。／『てもち』にいると、ポケモンのタマゴが2倍かえりやすくなる。
B179: ぼうおん | C179: 音の技『いびき』『いやしのすず』『いやなおと』『うたう』『エコーボイス』『おしゃべり』『おたけび』『きんぞくおん』『くさぶえ』『さわぐ』『すてゼリフ』『チャームボイス』『ちょうおんぱ』『ないしょばなし』『なきごえ』『バークアウト』『ハイパーボイス』『ばくおんぱ』『ほえる』『ほろびのうた』『むしのさざめき』『りんしょう』を受けない。
B180: ぼうじん | C180: 天気『あられ』『すなあらし』によるダメージを受けない。粉系の技『いかりのこな』『キノコのほうし』『しびれごな』『どくのこな』『ねむりごな』『ふんじん』『わたほうし』、特性『ほうし』の効果を受けない。
B181: ぼうだん | C181: たま・爆弾系の技『アイスボール』『アシッドボム』『ウェザーボール』『エナジーボール』『エレキボール』『オクタンほう』『かえんだん』『がんせきほう』『きあいだま』『ジャイロボール』『シャドーボール』『タネばくだん』『タネマシンガン』『タマゴばくだん』『たまなげ』『でんじほう』『どろばくだん』『はどうだん』『ヘドロばくだん』『マグネットボム』『ミストボール』を無効化する。
B182: ポイズンヒール | C182: 『どく』状態の時毎ターン、HPが減らずに最大HPの1/8だけ回復する。『もうどく』状態でも回復量は変わらない。
B183: マイナス | C183: 特性『プラス』か『マイナス』のポケモンが戦闘にいると『とくこう』が1.5倍になる。
B184: マイペース | C184: 『こんらん』状態にならない。
B185: マグマのよろい | C185: 『こおり』状態にならない。／『てもち』にいると、ポケモンのタマゴが2倍かえりやすくなる。
B186: まけんき | C186: 相手の技や特性で『のうりょく』ランクが下がった時、自分の『こうげき』ランクが2段階上がる。
B187: マジシャン | C187: 自分の攻撃時、技を当てた相手が持っている道具を奪う。
B188: マジックガード | C188: 直接のダメージ以外を受けない。具体的には、『どく』『やけど』状態や特性『さめはだ』『てつのトゲ』『ヘドロえき』『ゆうばく』、天気『あられ』『すなあらし』、技『あくむ』『うずしお』『からではさむ』『しめつける』『ステルスロック』『すなじごく』『どくびし』『のろい』『はじけるほのお』『ふんじん』『ほのおのうず』『ほのおのちかい』『まきつく』『まきびし』『マグマストーム』『まとわりつく』『やどりぎのタネ』によるダメージ、反動のある技による反動ダメージや失敗時に受けるダメージ、道具『いのちのたま』『くっつきバリ』『くろいヘドロ』『ゴツゴツメット』の効果によるダメージを受けない。ただし『こんらん』『じばく』『だいばくはつ』『わるあがき』などには影響しない。
B189: マジックミラー | C189: 技『マジックコート』で跳ね返すことのできる技を跳ね返せる。
B190: マルチスケイル | C190: 自分の残りHPが最大値の時、受けるダメージが半減される。
B191: マルチタイプ | C191: 持っている『プレート』に対応して『タイプ』が変化する。
B192: ミイラ | C192: 直接攻撃を受けると、相手の特性を『ミイラ』にする(相手の本来の特性を無効化する)。
B193: みずがため | C193: 『みず』タイプの技を受けると、『ぼうぎょ』が2段階上昇する
B194: みずのベール | C194: 『やけど』状態にならない。
B195: みつあつめ | C195: ／道具を持っていない時、戦闘後にどうぐ『あまいミツ』を拾ってくることがある。戦闘に参加しなくてもよい。レベルが高い程、拾ってくる確率が上がる。
B196: ミラクルスキン | C196: 相手の変化技の命中する確率が50%より大きい場合、命中率が50%になる。
B197: むしのしらせ | C197: HPが1/3以下の時、『むし』タイプの技の威力が1.5倍になる。
B198: ムラっけ | C198: ターン終了時、いずれかの『のうりょく』ランクが2段階上がり、別の『のうりょく』ランクが1段階下がる。
B199: メガランチャー | C199: 波動系の技『あくのはどう』『はどうだん』『みずのはどう』『りゅうのはどう』の技の威力が1.5倍になり、『いやしのはどう』は最大HPの3/4回復する。
B200: メロメロボディ | C200: 直接攻撃を受けると、30%の確率で相手を『メロメロ』状態にする。性別が同じ場合や、性別不明の場合は効果がない。／異なる性別の野生のポケモンと出会いやすくなる。
B201: めんえき | C201: 『どく』状態にならない。
... 20 more rows

Sheet 各タイプ最大威力 (hidden)
B1: 物理 | H1: 特殊
B2: ポケモン | C2: 特性 | D2: 種族値 | E2: 技名 | F2: 威力 | G2: 火力指数 | H2: ポケモン | I2: 特性 | J2: 種族値 | K2: 技名 | L2: 威力 | M2: 火力指数
A3: ノーマル | B3: ホルード | C3: ちからもち | D3: 56 | E3: ギガインパクト | F3: 150 | G3: =TRUNC(TRUNC(((TRUNC((D3*2+31+TRUNC(252/4))*50)/100)+5)*1.1)*F3*1.5*1.3*2) -> 69030 | H3: ポリゴンＺ | I3: てきおうりょく | J3: 135 | K3: はかいこうせん | L3: 150 | M3: =TRUNC(TRUNC(((TRUNC((J3*2+31+TRUNC(252/4))*50)/100)+5)*1.1)*L3*2*1.3) -> 79950
A4: ほのお | B4: ヒヒダルマ | C4: ちからずく | D4: 140 | E4: フレアドライブ | F4: 120 | G4: =TRUNC(TRUNC(((TRUNC((D4*2+31+TRUNC(252/4))*50)/100)+5)*1.1)*F4*1.5*1.3*1.3) -> 64186 | H4: メガリザードンＹ | J4: 159 | K4: ブラストバーン | L4: 150 | M4: =TRUNC(TRUNC(((TRUNC((J4*2+31+TRUNC(252/4))*50)/100)+5)*1.1)*L4*1.5*1.3) -> 67860
A5: みず | B5: シザリガー | C5: てきおうりょく | D5: 120 | E5: クラブハンマー | F5: 100 | G5: =TRUNC(TRUNC(((TRUNC((D5*2+31+TRUNC(252/4))*50)/100)+5)*1.1)*F5*2*1.3) -> 49140 | H5: カイオーガ | J5: 180 | K5: ハイドロポンプ | L5: 110 | M5: 54697
A6: でんき | B6: ゼクロム | D6: 150 | E6: らいげき | F6: 130 | G6: =TRUNC(TRUNC(((TRUNC((D6*2+31+TRUNC(252/4))*50)/100)+5)*1.1)*F6*1.5*1.3) -> 56277 | H6: ジバコイル | J6: 130 | K6: でんじほう | L6: 120 | M6: 46800
A7: くさ | B7: オーロット | D7: 110 | E7: ウッドハンマー | F7: 120 | G7: =TRUNC(TRUNC(((TRUNC((D7*2+31+TRUNC(252/4))*50)/100)+5)*1.1)*F7*1.5*1.3) -> 41652 | H7: ジュカイン | J7: 105 | K7: ハードプラント | L7: 150 | M7: 50310
A8: こおり | B8: メガオニゴーリ | C8: フリーズスキン | D8: 120 | E8: だいばくはつ | F8: 250 | G8: =TRUNC(TRUNC(((TRUNC((D8*2+31+TRUNC(252/4))*50)/100)+5)*1.1)*F8*1.5*1.3*1.3) -> 119778 | H8: アマルルガ | I8: フリーズスキン | J8: 99 | K8: はかいこうせん | L8: 150 | M8: =TRUNC(TRUNC(((TRUNC((J8*2+31+TRUNC(252/4))*50)/100)+5)*1.1)*L8*1.5*1.3*1.3) -> 63121
A9: かくとう | B9: チャーレム | D9: 60 | E9: とびひざげり | F9: 130 | G9: 31180 | H9: ケルディオ | J9: 129 | K9: きあいだま | L9: 120 | M9: 46566
A10: どく | B10: ドラミドロ | C10: てきおうりょく | D10: 75 | E10: ダストシュート | F10: 120 | G10: =TRUNC(TRUNC(((TRUNC((D10*2+31+TRUNC(252/4))*50)/100)+5)*1.1)*F10*2*1.3) -> 43368 | H10: ドラミドロ | I10: てきおうりょく | J10: 97 | K10: ヘドロウェーブ | L10: 95 | M10: =TRUNC(TRUNC(((TRUNC((J10*2+31+TRUNC(252/4))*50)/100)+5)*1.1)*L10*2*1.3) -> 40261
A11: じめん | B11: グラードン | D11: 150 | E11: だんがいのつるぎ | F11: 120 | G11: 51948 | H11: ランドロス | I11: ちからずく | J11: 115 | K11: だいちのちから | L11: 90 | M11: =TRUNC(TRUNC(((TRUNC((J11*2+31+TRUNC(252/4))*50)/100)+5)*1.1)*L11*1.5*1.3*1.3) -> 41751
A12: ひこう | B12: メガレックウザ | D12: 180 | E12: ガリョウテンセイ | F12: 120 | G12: 59670 | H12: メガボーマンダ | I12: スカイスキン | J12: 120 | K12: はかいこうせん | L12: 150 | M12: =TRUNC(TRUNC(((TRUNC((J12*2+31+TRUNC(252/4))*50)/100)+5)*1.1)*L12*1.5*1.3*1.3) -> 71867
A13: エスパー | B13: ミュウツー | D13: 154 | E13: サイコブレイク | F13: 100 | G13: 44070 | H13: デオキシス | J13: 180 | K13: サイコブースト | L13: 140 | M13: 69615
A14: むし | B14: シュバルゴ | D14: 135 | E14: メガホーン | F14: 120 | G14: 47970 | H14: ウルガモス | J14: 135 | K14: むしのさざめき | L14: 90 | M14: 35977
A15: いわ | B15: ラムパルド | D15: 165 | E15: もろはのつるぎ | F15: 150 | G15: 69615 | H15: アルセウス | J15: 120 | K15: さばきのつぶて | L15: 100 | M15: 36855
A16: ゴースト | B16: ギルガルド | D16: 150 | E16: シャドークロー | F16: 70 | G16: 30303 | H16: ギルガルド | J16: 150 | K16: シャドーボール | L16: 80 | M16: 34632
A17: ドラゴン | B17: メガレックウザ | D17: 180 | E17: げきりん | F17: 120 | G17: =TRUNC(TRUNC(((TRUNC((D17*2+31+TRUNC(252/4))*50)/100)+5)*1.1)*F17*1.5*1.3) -> 59670 | H17: ディアルガ | J17: 150 | K17: ときのほうこう | L17: 150 | M17: 64935
A18: あく | B18: イベルタル | C18: ダークオーラ | D18: 131 | E18: ふいうち | F18: 80 | G18: =TRUNC(TRUNC(((TRUNC((D18*2+31+TRUNC(252/4))*50)/100)+5)*1.1)*F18*1.5*1.3*1.33) -> 41703 | H18: イベルタル | I18: ダークオーラ | J18: 131 | K18: あくのはどう | L18: 80 | M18: =TRUNC(TRUNC(((TRUNC((J18*2+31+TRUNC(252/4))*50)/100)+5)*1.1)*L18*1.5*1.3*1.33) -> 41703
A19: はがね | B19: アイアント | C19: はりきり | D19: 109 | E19: アイアンヘッド | F19: 80 | G19: =TRUNC(TRUNC(((TRUNC((D19*2+31+TRUNC(252/4))*50)/100)+5)*1.1)*F19*1.5*1.3*1.5) -> 41418 | H19: ディアルガ | J19: 150 | K19: ラスターカノン | L19: 80 | M19: 34632
A20: フェアリー | B20: ニンフィア | C20: フェアリースキン | D20: 65 | E20: ギガインパクト | F20: 150 | G20: =TRUNC(TRUNC(((TRUNC((D20*2+31+TRUNC(252/4))*50)/100)+5)*1.1)*F20*1.5*1.3*1.3) -> 48672 | H20: ニンフィア | I20: フェアリースキン | J20: 110 | K20: はかいこうせん | L20: 150 | M20: =TRUNC(TRUNC(((TRUNC((J20*2+31+TRUNC(252/4))*50)/100)+5)*1.1)*L20*1.5*1.3*1.3) -> 67684
B22: ※メガポケモン以外は持ち物を「こだわりはちまき」若しくは「こだわりメガネ」とする。

Sheet フライングプレス (hidden)
A2: ="" ->  | B2: ノーマル | C2: ほのお | D2: みず | E2: でんき | F2: くさ | G2: こおり | H2: かくとう | I2: どく | J2: じめん | K2: ひこう | L2: エスパー | M2: むし | N2: いわ | O2: ゴースト | P2: ドラゴン | Q2: あく | R2: はがね | S2: フェアリー
B3: ○ | E3: △ | F3: ○ | G3: ○ | H3: ○ | I3: △ | K3: △ | L3: △ | O3: × | Q3: ○ | S3: △
B4: =IF(E5=B2,2,IF(E6=B2,2,1)) -> 1 | C4: 1 | D4: 1 | E4: =IF(E5=E2,0.5,IF(E6=E2,0.5,1)) -> 1 | F4: =IF(E5=F2,2,IF(E6=F2,2,1)) -> 1 | G4: =IF(E5=G2,2,IF(E6=G2,2,1)) -> 1 | H4: =IF(E5=H2,2,IF(E6=H2,2,1)) -> 1 | I4: =IF(E5=I2,0.5,IF(E6=I2,0.5,1)) -> 1 | J4: 1 | K4: =IF(E5=K2,0.5,IF(E6=K2,0.5,1)) -> 0.5 | L4: =IF(E5=L2,0.5,IF(E6=L2,0.5,1)) -> 1 | M4: =IF(E5=M2,0.5,IF(E6=M2,0.5,1)) -> 1 | N4: 1 | O4: =IF(E5=O2,0,IF(E6=O2,0,1)) -> 1 | P4: 1 | Q4: =IF(E5=Q2,2,IF(E6=Q2,2,1)) -> 1 | R4: 1 | S4: =IF(E5=S2,0.5,IF(E6=S2,0.5,1)) -> 1
B5: タイプ１ | E5: =相性表!B28 -> ひこう
B6: タイプ２ | E6: =相性表!B30 -> はがね | I6: ダメージ | M6: =IF(CONCATENATE(E5,E6)="","",PRODUCT(B4:S4)) -> 0.5 | P6: 倍
O7: =IF(M6=4,"○",IF(M6=2,"○",IF(M6=1,"",IF(M6=0.5,"△",IF(M6=0.25,"△",IF(M6=0,"×",)))))) -> △

Sheet ダメージ計算 (hidden)
B2: （（攻撃側のレベル × 2 ÷ 5 ＋ 2）× 技の威力 × 攻撃側の能力値 ÷ 防御側の能力値 ÷ 50 ＋ 2）×（85～100）÷ 100
M3: 特性倍率
B4: その他 | L4: 天候倍率 | M4: 総計 | N4: 総計 | O4: かたいツメ | P4: がんじょうあご | Q4: すてみ | R4: すなのちから | S4: ダークオーラ | T4: ちからずく | U4: ちからもち | V4: テクニシャン | W4: てつのこぶし | X4: はりきり | Y4: フェアリーオーラ | Z4: フェアリースキン | AA4: フラワーギフト | AB4: フリーズスキン | AC4: スカイスキン | AD4: エレキスキン | AE4: メガランチャー | AF4: ヨガパワー | AG4: げきりゅう | AH4: こんじょう | AI4: しんりょく | AJ4: どくぼうそう | AK4: ねつぼうそう | AL4: プラス | AM4: マイナス | AN4: もうか | AO4: よわき | AP4: あついしぼう | AQ4: かんそうはだ | AR4: そうしょく | AS4: たいねつ | AT4: ちくでん | AU4: ちょすい | AV4: ふゆう | AW4: もらいび | AX4: ファーコート | AY4: ぼうおん | AZ4: ぼうだん | BA4: でんきエンジン | BB4: ひらいしん | BC4: よびみず
B5: でんきだま | D5: 2 | E5: =IF(計算表!B19=B5,IF(計算表!F3="ピカチュウ",D5,0),0) -> 0 | H5: レベル | I5: 50
B6: こうごうだま | D6: 1.2 | E6: =IF(計算表!B19=B6,IF(計算表!F3="ディアルガ",D6,0),0) -> 0 | H6: 攻撃値 | I6: =IF(I10="物理",計算表!G14,IF(I10="特殊",計算表!G16,""))*(E22*E23)*L6 -> 197 | J6: =I6*M6 -> 197 | K6: =I6*N6 -> 197 | L6: 1 | M6: =IF(SUM(O6:AF6)=0,1,SUM(O6:AF6)) -> 1 | N6: =IF(SUM(AG6:AO6)=0,1,SUM(AG6:AO6)) -> 1 | O6: 0 | P6: 0 | Q6: 0 | R6: 0 | S6: 0 | T6: 0 | U6: 0 | V6: 0 | W6: 0 | X6: =IF(I14=X4,IF(I10="物理",1.5,1),0) -> 0 | Y6: 0 | Z6: 0 | AA6: =IF(I14=AA4,IF(AND(I15="晴",I10="物理"),1.5,1),0) -> 0 | AB6: 0 | AC6: 0 | AD6: 0 | AE6: 0 | AF6: 0 | AG6: 0 | AH6: =IF(I14=AH4,IF(I10="物理",1.5,1),0) -> 0 | AI6: 0 | AJ6: =IF(I14=AJ4,IF(I10="物理",1.5,1),0) -> 0 | AK6: 0 | AL6: =IF(I14=AL4,IF(I10="特殊",1.5,1),0) -> 0 | AM6: =IF(I14=AM4,IF(I10="特殊",1.5,1),0) -> 0 | AN6: 0 | AO6: =IF(I14=AL4,0.5,0) -> 0
B7: しらたま | D7: 1.2 | E7: =IF(計算表!B19=B7,IF(計算表!F3="パルキア",D7,0),0) -> 0 | H7: 威力 | I7: =計算表!B23*E21*L7 -> 120 | J7: =I7*M7 -> 120 | K7: =I7*N7 -> 120 | L7: =IF(I13="ウェザーボール",IF(I15<>"",2,1),IF(AND(I15="晴",I8="ほのお"),1.5,IF(AND(I15="雨",I8="みず"),1.5,IF(AND(I15="晴",I8="みず"),0.5,IF(AND(I15="雨",I8="ほのお"),0.5,1))))) -> 1 | M7: =IF(SUM(O7:AF7)=0,1,SUM(O7:AF7))*AP7*AQ7*AR7*AS7*AT7*AU7*AV7*AW7*AX7*AY7*AZ7*BA7*BB7*BC7 -> 1 | N7: =TRUNC(IF(SUM(AG7:AO7)=0,1,SUM(AG7:AO7))*IF(I22=TRUE,1.5,1)) -> 1 | O7: =IF(I14=O4,IF(L12="○",1.3,1),0) -> 0 | P7: =IF(I14=P4,IF(OR(I13="かみつく",I13="かみくだく",I13="ひっさつまえば",I13="ほのおのキバ",I13="かみなりのキバ",I13="こおりのキバ",I13="どくどくのキバ"),1.5,1),0) -> 0 | Q7: =IF(I14=Q4,IF(OR(I13="アフロブレイク",I13="ウッドハンマー",I13="じごくぐるま",I13="すてみタックル",I13="とっしん",I13="とびげり",I13="とびひざげり",I13="もろはのずつき",I13="フレアドライブ",I13="ブレイブバード",I13="ボルテッカー",I13="ワイルドボルト"),1.2,1),0) -> 0 | R7: =IF(I14=R4,IF(AND(I15="砂",OR(I8="じめん",I8="いわ",I8="はがね")),1.3,1),0) -> 0 | S7: =IF(OR(I14=Y4,J14=Y4),IF(I8="あく",IF(OR(I14="オーラブレイク",J14="オーラブレイク"),0.75,1.33),1),0) -> 0 | T7: =IF(I14=T4,IF(SUM(計算表!AF22:AP22)<>0,1.3,1),0) -> 0 | U7: =IF(I14=U4,IF(I10="物理",2,1),0) -> 0 | V7: =IF(I14=V4,IF(I7<=60,1.5,1),0) -> 0 | W7: =IF(I14=W4,IF(OR(I13="アームハンマー",I13="かみなりパンチ",I13="きあいパンチ",I13="グロウパンチ",I13="コメットパンチ",I13="シャドーパンチ",I13="スカイアッパー",I13="ドレインパンチ",I13="ばくれつパンチ",I13="バレットパンチ",I13="ピヨピヨパンチ",I13="ほのおのパンチ",I13="マッハパンチ",I13="メガトンパンチ",I13="れいとうパンチ",I13="れんぞくパンチ"),1.2,1),0) -> 0 | X7: 0 | Y7: =IF(OR(I14=Y4,J14=Y4),IF(I8="フェアリー",IF(OR(I14="オーラブレイク",J14="オーラブレイク"),0.75,1.33),1),0) -> 0 | Z7: =IF(OR(I14=Z4,J14=Z4),IF(I8="ノーマル",1.2,1),0) -> 0 | AA7: 0 | AB7: =IF(I14=AB4,IF(I8="ノーマル",1.2,1),0) -> 0 | AC7: =IF(I14=AC4,IF(I8="ノーマル",1.2,1),0) -> 0 | AD7: =IF(I14=AD4,IF(I8="ノーマル",1.2,1),0) -> 0 | AE7: =IF(I14=AE4,IF(OR(I13="あくのはどう",I13="はどうだん",I13="みずのはどう",I13="りゅうのはどう"),1.5,1),0) -> 0 | AF7: =IF(I14=AF4,IF(I10="物理",2,1),0) -> 0 | AG7: =IF(I14=AG4,IF(I8="みず",1.5,1),0) -> 0 | AH7: 0 | AI7: =IF(I14=AI4,IF(I8="くさ",1.5,1),0) -> 0 | AJ7: 0 | AK7: =IF(I14=AK4,IF(I10="特殊",1.5,1),0) -> 0 | AL7: 0 | AM7: 0 | AN7: =IF(I14=AN4,IF(I8="ほのお",1.5,1),0) -> 0 | AO7: 0 | AP7: =IF(J14=AP4,IF(OR(I8="ほのお",I8="こおり"),0.5,1),1) -> 1 | AQ7: =IF(J14=AQ4,IF(I8="みず",0,IF(I8="ほのお",1.25,1)),1) -> 1 | AR7: =IF(J14=AR4,IF(I8="くさ",0,1),1) -> 1 | AS7: =IF(J14=AS4,IF(I8="ほのお",0.5,1),1) -> 1 | AT7: =IF(J14=AT4,IF(I8="でんき",0,1),1) -> 1 | AU7: =IF(J14=AU4,IF(I8="みず",0,1),1) -> 1 | AV7: =IF(J14=AV4,IF(I8="じめん",0,1),1) -> 1 | AW7: =IF(J14=AW4,IF(I8="じめん",0,1),1) -> 1 | AX7: =IF(J14=AX4,IF(I10="物理",0.5,1),1) -> 1 | AY7: =IF(J14=AY4,IF(OR(I13="いびき",I13="いやしのすず",I13="いやなおと",I13="うたう",I13="エコーボイス",I13="おしゃべり",I13="おたけび",I13="きんぞくおん",I13="くさぶえ",I13="さわぐ",I13="すてゼリフ",I13="チャームボイス",I13="ちょうおんぱ",I13="ないしょばなし",I13="なきごえ",I13="バークアウト",I13="ハイパーボイス",I13="ばくおんぱ",I13="ほえる",I13="ほろびのうた",I13="むしのさざめき",I13="りんしょう"),0,1),1) -> 1 | AZ7: =IF(J14=AZ4,IF(OR(I13="アイスボール",I13="アシッドボム",I13="ウェザーボール",I13="エナジーボール",I13="エレキボール",I13="オクタンほう",I13="かえんだん",I13="がんせきほう",I13="きあいだま",I13="ジャイロボール",I13="シャドーボール",I13="タネばくだん",I13="タネマシンガン",I13="タマゴばくだん",I13="たまなげ",I13="でんじほう",I13="どろばくだん",I13="はどうだん",I13="ヘドロばくだん",I13="マグネットボム",I13="ミストボール"),0,1),1) -> 1 | BA7: =IF(J14=BA4,IF(I8="でんき",0,1),1) -> 1 | BB7: =IF(J14=BB4,IF(I8="でんき",0,1),1) -> 1 | BC7: =IF(J14=BC4,IF(I8="みず",0,1),1) -> 1
B8: はっきんだま | D8: 1.2 | E8: =IF(計算表!B19=B8,IF(MID(計算表!F3,1,5)="ギラティナ",D8,0),0) -> 0 | H8: タイプ | I8: =IF(AND(I14="フェアリースキン",計算表!B26="ノーマル"),"フェアリー",IF(AND(I14="フリーズスキン",計算表!B26="ノーマル"),"こおり",IF(I14="ノーマルスキン","ノーマル",計算表!B26))) -> ドラゴン
B9: こだわりハチマキ | D9: 1.5 | E9: =IF(計算表!B19=B9,D9,0) -> 0 | H9: 一致 | I9: =IF(I14="てきおうりょく",IF(OR(計算表!F4=I8,計算表!G4=I8),2,1),IF(I14="へんげんじざい",1.5,IF(OR(計算表!F4=I8,計算表!G4=I8),1.5,1))) -> 1.5
B10: こだわりメガネ | D10: 1.5 | E10: =IF(計算表!B19=B10,D10,0) -> 0 | H10: 物理/特殊 | I10: =計算表!B25 -> 物理
B11: こだわりスカーフ | H11: ばつぐん | I11: =IF(計算表!B27="ばつぐん(4倍)",4,IF(計算表!B27="ばつぐん(2倍)",2,IF(計算表!B27="いまひとつ(0.5倍)",IF(I14="いろめがね",1,0.5),IF(計算表!B27="いまひとつ(0.25倍)",IF(I14="いろめがね",0.5,0.25),1))))*IF(OR(J14="フィルター",J14="ハードロック"),4/3,1) -> 2
B12: ちからのハチマキ | D12: 1.1 | E12: =IF(計算表!B19=B12,D12,0) -> 0 | H12: 直接 | I12: =計算表!F24 -> ○
B13: ものしりメガネ | D13: 1.1 | E13: =IF(計算表!B19=B13,D13,0) -> 0 | H13: 技名 | I13: =計算表!B22 -> げきりん
B14: しんかいのキバ | D14: 2 | E14: =IF(計算表!B19=B14,IF(計算表!F3="パールル",D14,0),0) -> 0 | H14: 特性 | I14: =計算表!C11 -> ふゆう | J14: =計算表!AF26 -> さめはだ
B15: ふといホネ | D15: 2 | E15: =IF(計算表!B19=B15,IF(計算表!F3="ガラガラ",D15,0),0) -> 0 | G15: =IF(計算表!AI25=B16,D16,0) -> 0 | H15: 天候 | I15: =IF(OR(計算表!H23="ひざしがつよい",計算表!H23="ひざしがとてもつよい"),"晴",IF(OR(計算表!H23="あめ",計算表!H23="つよいあめ"),"雨",IF(計算表!H23="あられ","雪",IF(計算表!H23="すなあらし","砂",IF(計算表!H23="らんきりゅう","乱",""))))) -> 
B16: こころのしずく | D16: 1.5 | E16: =IF(計算表!B19=B16,D16,0) -> 0 | I16: ダメージ倍率 | J16: =IF(I13="ソーラービーム",IF(OR(I15="晴",I15=""),1,0.5),1) -> 1 | L16: =J16 -> 1
B17: たつじんのおび | D17: 1.2 | E17: =IF(AND(ダメージ計算!I11>1,計算表!B19=B17),D17,0) -> 0 | J17: 通常 | K17: 急所 | L17: 最終表示
B18: いのちのたま | D18: 1.3 | E18: =IF(計算表!B19=B18,D18,0) -> 0 | G18: フィールド | H18: =計算表!H25 -> なし | I18: 0.85 | J18: =TRUNC(TRUNC(TRUNC(TRUNC((TRUNC(TRUNC(22*(J7*N7)*(J6*N6)/H20)/50)+2)*0.85)*I9)*I11)*IF(I23=TRUE,0.5,1)) -> 234 | K18: =IF(OR(J14="シェルアーマー",J14="カブトアーマー"),J18,TRUNC(J18*IF(I14="スナイパー",2.25,1.5))) -> 351 | L18: =J18&L21 -> 234 | M18: =K18&M21 -> 351
B19: とつげきチョッキ | D19: 1.5 | E19: =IF(計算表!AI25=B19,D19,0) -> 0 | G19: =計算表!H25 -> なし | I19: 0.925 | J19: =TRUNC(TRUNC(TRUNC(TRUNC((TRUNC(TRUNC(22*(J7*N7)*(J6*N6)/H20)/50)+2)*0.925)*I9)*I11)*IF(I23=TRUE,0.5,1)) -> 254 | K19: =IF(OR(J14="シェルアーマー",J14="カブトアーマー"),J19,TRUNC(J19*IF(I14="スナイパー",2.25,1.5))) -> 381 | L19: =J19&L22 -> 254 | M19: 381
B20: 半減の実 | D20: 0.5 | E20: =IF(計算表!AI25=B20,D20,0) -> 0 | G20: 防ステータス | H20: =IF(AND(J14="くさのけがわ",H18="グラスフィールド",I10="物理"),TRUNC(計算表!AF24*1.5),計算表!AF24) -> 115 | I20: 100 | J20: =TRUNC(TRUNC(TRUNC(TRUNC((TRUNC(TRUNC(22*(J7*N7)*(J6*N6)/H20)/50)+2)*1)*I9)*I11)*IF(I23=TRUE,0.5,1)) -> 276 | K20: =IF(OR(J14="シェルアーマー",J14="カブトアーマー"),J20,TRUNC(J20*IF(I14="スナイパー",2.25,1.5))) -> 414 | L20: 276 | M20: 414 | N20: ふしぎなうろこ | O20: 状態異常の時、『ぼうぎょ』が1.5倍になる。
D21: 威力 | E21: =IF(E5+E6+E7+E8+E12+E13=0,1,E5+E6+E7+E8+E12+E13) -> 1 | J21: =IF(J14="マルチスケイル",TRUNC(J18/2),"") ->  | K21: =IF(J14="マルチスケイル",TRUNC(K18/2),"") ->  | L21: =IF(J21<>"","/"&J21,"") ->  | M21: =IF(K21<>"","/"&K21,"") ->  | N21: マルチスケイル | O21: 自分の残りHPが最大値の時、受けるダメージが半減される。
B22: ひざしがつよい | D22: 攻撃 | E22: =IF(IF(計算表!B25="物理",E9+E15,)=0,1,IF(計算表!B25="物理",E9+E15,)) -> 1 | G22: 自フィールド適用 | H22: =AND(計算表!F4<>"ひこう",計算表!G4<>"ひこう",計算表!C11<>"ふゆう") -> FALSE | I22: =OR(AND(H22=TRUE,H18="グラスフィールド",I8="くさ"),AND(H22=TRUE,H18="エレキフィールド",I8="でんき"),AND(H22=TRUE,H18="サイコフィールド",I8="エスパー")) -> FALSE | J22: =IF(J14="マルチスケイル",TRUNC(J19/2),"") ->  | K22: =IF(J14="マルチスケイル",TRUNC(K19/2),"") ->  | L22: =IF(J22<>"","/"&J22,"") -> 
B23: ひざしがとてもつよい | D23: 特攻 | E23: =IF(IF(計算表!B25="特殊",E10+E14+E16,)=0,1,IF(計算表!B25="特殊",E10+E14+E16,)) -> 1 | G23: 敵フィールド適用 | H23: =AND(計算表!AF27<>"ひこう",計算表!AH27<>"ひこう",計算表!AF26<>"ふゆう") -> TRUE | I23: =OR(AND(H23=TRUE,H18="ミストフィールド",I8="ドラゴン"),AND(H23=TRUE,H18="グラスフィールド",OR(I13="じしん",I13="じならし",I13="マグニチュード"))) -> FALSE | J23: =IF(J14="マルチスケイル",TRUNC(J20/2),"") ->  | K23: =IF(J14="マルチスケイル",TRUNC(K20/2),"") -> 
B24: あめ | D24: 特防 | E24: =IF(IF(計算表!B25="特殊",G15+E19,)=0,1,IF(計算表!B25="特殊",G15+E19,)) -> 1
B25: つよいあめ | D25: ダメージ | E25: =IF(E17+E18=0,1,E17+E18) -> 1
B26: あられ | D26: 被ダメージ | E26: =IF(E20=0,1,E20) -> 1
B27: すなあらし | E27: =E25*E26 -> 1
B28: らんきりゅう
